Workbook

Sheet Tarifierung
A1: V-Jahr | B1: 2080 | C1: 2018 | D1: 51 | G1: VP2 | I1: 5 | L1: VP3 | N1: 1 | Q1: VP4 | S1: 1
A2: Dynamik | B2: 0.05 | C2: V-Beginn | D2: Alter Vbeginn | I2: Alter Vbeginn | N2: Alter Vbeginn | S2: Alter Vbeginn
A3: Raucher | B3: nein | F3: Raucher | G3: nein | K3: Raucher | L3: nein | P3: Raucher | Q3: nein
A4: Risikozuschlag URP | B4: 0 | F4: Risikozuschlag URP | G4: 0 | K4: Risikozuschlag URP | L4: 0 | P4: Risikozuschlag URP | Q4: 0
A5: Alter zum V-Beginn | B5: =VJahr-(C1-D1) -> 113 | F5: Alter zum V-Beginn | G5: =VJahr-(C1-I1) -> 67 | K5: Alter zum V-Beginn | L5: =VJahr-(C1-N1) -> 63 | P5: Alter zum V-Beginn | Q5: =VJahr-(C1-S1) -> 63
A6: Gefahrengruppe | B6: S | F6: Gefahrengruppe | G6: S | K6: Gefahrengruppe | L6: A | P6: Gefahrengruppe | Q6: A
A7: Integralfranchise | B7: nein | C7: BS | D7: Nettobeitrag | F7: Integralfranchise | G7: nein | H7: BS | I7: Nettobeitrag | K7: nein | L7: nein | M7: BS | N7: Nettobeitrag | P7: Integralfranchise | Q7: nein | R7: BS | S7: Nettobeitrag
A8: Invalidität 600 | B8: 335000 | C8: 13.01 | D8: =(B8/1000)*C8 -> 4358.35 | F8: Invalidität 350 | G8: 575000 | H8: 1.12 | I8: =(G8/1000)*H8 -> 644 | K8: Invalidität | L8: 0 | M8: 0 | N8: =(L8/1000)*M8 -> 0 | P8: Invalidität | Q8: 0 | R8: 0 | S8: =(Q8/1000)*R8 -> 0
A9: verb. GT Ärzte | B9: 0 | C9: 0 | D9: =(B9/1000)*C9 -> 0 | F9: verb. GT Ärzte | G9: 0 | H9: 0 | I9: =(G9/1000)*H9 -> 0 | K9: verb. GT Ärzte | L9: 0 | M9: 0 | N9: =(L9/1000)*M9 -> 0 | P9: verb. GT Ärzte | Q9: 0 | R9: 0 | S9: =(Q9/1000)*R9 -> 0
A10: Todesfallsumme | B10: 474000 | C10: 5.89 | D10: =(B10/1000)*C10 -> 2791.86 | F10: Todesfallsumme | G10: 607000 | H10: 0.62 | I10: =(G10/1000)*H10 -> 376.34 | K10: Todesfallsumme | L10: 0 | M10: 0 | N10: =(L10/1000)*M10 -> 0 | P10: Todesfallsumme | Q10: 0 | R10: 0 | S10: =(Q10/1000)*R10 -> 0
A11: UKTG | B11: 200 | C11: 3.95 | D11: =B11*C11 -> 790 | F11: UKTG | G11: 200 | H11: 0.42 | I11: =G11*H11 -> 84 | K11: UKTG | L11: 0 | M11: 0 | N11: =L11*M11 -> 0 | P11: UKTG | Q11: 0 | R11: 0 | S11: =Q11*R11 -> 0
A12: Genesungsgeld | B12: 0 | C12: 0 | D12: =B12*C12 -> 0 | F12: Genesungsgeld | G12: 0 | H12: 0 | I12: =G12*H12 -> 0 | K12: Genesungsgeld | L12: 0 | M12: 0 | N12: =L12*M12 -> 0 | P12: Genesungsgeld | Q12: 0 | R12: 0 | S12: =Q12*R12 -> 0
A13: TG ab 8. Tag | B13: 0 | C13: 0 | D13: =C13*B13 -> 0 | F13: TG ab 8. Tag | G13: 0 | H13: 0 | I13: =H13*G13 -> 0 | K13: TG ab 8. Tag | L13: 0 | M13: 0 | N13: =M13*L13 -> 0 | P13: TG ab 8. Tag | Q13: 0 | R13: 0 | S13: =R13*Q13 -> 0
A14: Tagegeld spezial | B14: 0 | C14: 0 | D14: =C14*B14 -> 0 | F14: Tagegeld spezial | G14: 0 | H14: 0 | I14: =H14*G14 -> 0 | K14: Tagegeld spezial | L14: 0 | M14: 0 | N14: =M14*L14 -> 0 | P14: Tagegeld spezial | Q14: 0 | R14: 0 | S14: =R14*Q14 -> 0
A15: KOP | B15: 50000 | C15: 0 | D15: =IF(B22="Basis",((B15-15000)/5000)*C15,(IF(B22="Plus",((B15-25000)/5000)*C15,((B15-50000)/5000)*C15))) -> 0 | F15: KOP | G15: 25000 | H15: 6.7 | I15: =IF(G22="Basis",((G15-15000)/5000)*H15,(IF(G22="Plus",((G15-25000)/5000)*H15,((G15-50000)/5000)*H15))) -> 0 | K15: KOP | L15: 15000 | M15: 6.7 | N15: =IF(L22="Basis",((L15-15000)/5000)*M15,(IF(L22="Plus",((L15-25000)/5000)*M15,((L15-50000)/5000)*M15))) -> 0 | P15: KOP | Q15: 15000 | R15: 6.7 | S15: =IF(Q22="Basis",((Q15-15000)/5000)*R15,(IF(Q22="Plus",((Q15-25000)/5000)*R15,((Q15-50000)/5000)*R15))) -> 0
A16: Bergungskosten | B16: 50000 | C16: 0 | D16: =IF(B22="Basis",((B16-15000)/5000)*C16,(IF(B22="Plus",((B16-25000)/5000)*C16,((B16-50000)/5000)*C16))) -> 0 | F16: Bergungskosten | G16: 25000 | H16: 4.8 | I16: =IF(G22="Basis",((G16-15000)/5000)*H16,(IF(G22="Plus",((G16-25000)/5000)*H16,((G16-50000)/5000)*H16))) -> 0 | K16: Bergungskosten | L16: 15000 | M16: 4.8 | N16: =IF(L22="Basis",((L16-15000)/5000)*M16,(IF(L22="Plus",((L16-25000)/5000)*M16,((L16-50000)/5000)*M16))) -> 0 | P16: Bergungskosten | Q16: 15000 | R16: 4.8 | S16: =IF(Q22="Basis",((Q16-15000)/5000)*R16,(IF(Q22="Plus",((Q16-25000)/5000)*R16,((Q16-50000)/5000)*R16))) -> 0
A17: UIR | B17: 0 | C17: 0 | D17: =B17/10*C17 -> 0 | F17: UIR | G17: 0 | H17: 0 | I17: =G17/10*H17 -> 0 | K17: UIR | L17: 0 | M17: 0 | N17: =L17/10*M17 -> 0 | P17: UIR | Q17: 0 | R17: 0 | S17: =Q17/10*R17 -> 0
A18: URP | B18: 0 | C18: 0 | D18: =IF(B3="nein",B18/10*C18,B18/10*C18*(1+Werte!$B$14)) -> 0 | F18: URP 67 K | G18: 0 | H18: 0 | I18: =IF(G3="nein",G18/10*H18,G18/10*H18*(1+Werte!$B$14)) -> 0 | K18: URP | L18: 0 | M18: 0 | N18: =IF(L3="nein",L18/10*M18,L18/10*M18*(1+Werte!$B$14)) -> 0 | P18: URP | Q18: 0 | R18: 0 | S18: =IF(Q3="nein",Q18/10*R18,Q18/10*R18*(1+Werte!$B$14)) -> 0
A19: Kinderzusatzschutz | B19: nein | C19: 0 | D19: =VP1_KiMo_BS -> 0 | F19: Kinderzusatzschutz | G19: nein | H19: 0 | I19: =VP2_KiMo_BS -> 0 | K19: Kinderzusatzschutz | L19: nein | M19: 0 | N19: =VP3_KiMo_BS -> 0 | P19: Kinderzusatzschutz | Q19: nein | R19: 0 | S19: =VP4_KiMo_BS -> 0
A20: Körpermodul | B20: nein | F20: Körpermodul | G20: nein | K20: Körpermodul | L20: nein | P20: Körpermodul | Q20: nein
A21: CuraPlus | B21: nein | C21: 0 | D21: =C21 -> 0 | F21: CuraPlus | G21: nein | H21: 0 | I21: =H21 -> 0 | K21: CuraPlus | L21: nein | M21: 0 | N21: =M21 -> 0 | P21: CuraPlus | Q21: nein | R21: 0 | S21: =R21 -> 0
A22: Produktlinie | B22: Premium | C22: 1.432 | D22: =(SUM(D8:D17)+D18*(1+B4)+SUM(D19:D21))*C22 -> 11370.38072 | F22: Produktlinie | G22: Plus | H22: 1.268 | I22: =(SUM(I8:I17)+I18*(1+G4)+SUM(I19:I21))*H22 -> 1400.30312 | K22: Produktlinie | L22: Basis | M22: 1 | N22: =(SUM(N8:N17)+N18*(1+L4)+SUM(N19:N21))*M22 -> 0 | P22: Produktlinie | Q22: Basis | R22: 1 | S22: =(SUM(S8:S17)+S18*(1+Q4)+SUM(S19:S21))*R22 -> 0
A24: abzgl. SHU-Quote | B24: 0.2 | D24: =ROUND((1-B$24)*D22,2) -> 9096.3 | F24: abzgl. SHU-Quote | G24: 0.2 | I24: =ROUND((1-G$24)*I22,2) -> 1120.24 | K24: abzgl. SHU-Quote | L24: 0 | N24: =ROUND((1-L$24)*N22,2) -> 0 | P24: abzgl. SHU-Quote | Q24: 0 | S24: =ROUND((1-Q$24)*S22,2) -> 0
A25: abzgl. DN | B25: 0.05 | D25: =ROUND((1-B$25)*D24,2) -> 8641.49 | F25: abzgl. DN | G25: =VP1_DN -> 0.05 | I25: =ROUND((1-G$25)*I24,2) -> 1064.23 | K25: abzgl. DN | L25: =VP1_DN -> 0.05 | N25: =ROUND((1-L$25)*N24,2) -> 0 | P25: abzgl. DN | Q25: =VP1_DN -> 0.05 | S25: =ROUND((1-Q$25)*S24,2) -> 0
A26: Bruttobeitrag | D26: =ROUND(D25*(1+Werte!$B$27),2) -> 10283.37 | F26: Bruttobeitrag | I26: =ROUND(I25*(1+Werte!$B$27),2) -> 1266.43 | K26: Bruttobeitrag | N26: =ROUND(N25*(1+Werte!$B$27),2) -> 0 | P26: Bruttobeitrag | S26: =ROUND(S25*(1+Werte!$B$27),2) -> 0
A28: Gesamtbeitrag (netto) | B28: =D25+I25+N25+S25 -> 9705.72
A29: jährlich (brutto) | B29: =B28*(1+Werte!B27) -> 11549.8068
A30: halbjährlich (brutto) | B30: =ROUND(B29*Werte!B23,2) -> 5948.15
A31: vierteljährlich (brutto) | B31: =ROUND(B29*Werte!B24,2) -> 3031.82
A32: monatlich (brutto) | B32: =ROUND(B29*Werte!B25,2) -> 1029.86

Sheet Tarifgruppen (hidden)
A1: Spalte 1 | B1: Spalte 2 | C1: Spalte 3 | D1: Spalte 4 | E1: Spalte 5 | F1: Spalte 6 | G1: Spalte 7 | H1: Spalte 8 | I1: Spalte 9 | J1: Spalte 10
B2: Leistungsarten Erwachsene Kinder | D2: A | E2: B1 | F2: B2 | G2: B3 | H2: B4 | I2: K | J2: S
A3: Progression | B3: ohne | C3: je 1.000 | D3: 0.66 | E3: 0.93 | F3: 1 | G3: 1.2 | H3: 1.46 | I3: 0.32 | J3: siehe Tarifgruppe S
A4: Progression | B4: 3.5 | C4: je 1.000 | D4: 0.93 | E4: 1.34 | F4: 1.44 | G4: 1.73 | H4: 2.11 | I4: 0.42 | J4: siehe Tarifgruppe S
A5: Progression | B5: 6 | C5: je 1.000 | D5: 1.15 | E5: 1.67 | F5: 1.79 | G5: 2.15 | H5: 2.63 | I5: 0.47 | J5: siehe Tarifgruppe S
B6: mit verbesserter Gliedertaxe für Ärzte UIVGT | C6: je 1.000 | D6: 1.36 | E6: 0 | F6: 0 | G6: 0 | H6: 0 | I6: 0 | J6: -
B7: mit verbesserter Gliedertaxe für Ärzte mit UIVGP 350% | C7: je 1.000 | D7: 2.92 | E7: 0 | F7: 0 | G7: 0 | H7: 0 | I7: 0 | J7: -
B8: Invaliditätsrente 0 – 59 Jahre UIR 65 | C8: je 10 | D8: 0.44 | E8: 0.82 | F8: 0.86 | G8: 0.91 | H8: 1.1 | I8: 0.31 | J8: -
B9: Invaliditätsrente 0 – 59 Jahre UIR (ein Leben lang) | C9: je 10 | D9: 0.79 | E9: 1.29 | F9: 1.37 | G9: 1.44 | H9: 1.75 | I9: 0.36
D10: 0 | E10: 0 | F10: 0 | G10: 0 | H10: 0 | I10: 0
B11: Tod UT | C11: je 1.000 | D11: 0.52 | E11: 0.66 | F11: 0.66 | G11: 0.66 | H11: 0.66 | I11: 0.34 | J11: 0.34
B12: Unfallkrankenhaustagegeld UKT | C12: je 1 | D12: 0.35 | E12: 0.46 | F12: 0.46 | G12: 0.46 | H12: 0.46 | I12: 0.21 | J12: 0.21
B13: Genesungsgeld GG | C13: je 1 | D13: 0.34 | E13: 0.45 | F13: 0.45 | G13: 0.45 | H13: 0.45 | I13: 0.2 | J13: 0.2
A14: Tagegeld | B14: ab 8. Tag | C14: je 1 | D14: 4.46 | E14: 6.94 | F14: 6.94 | G14: 6.94 | H14: 6.94 | I14: 0 | J14: -
A15: Tagegeld | B15: ab 15. Tag | C15: je 1 | D15: 4.07 | E15: 5.16 | F15: 5.16 | G15: 5.16 | H15: 5.16 | I15: 0 | J15: -
A16: Tagegeld | B16: ab 29. Tag | C16: je 1 | D16: 2.95 | E16: 4.38 | F16: 4.38 | G16: 4.38 | H16: 4.38 | I16: 0 | J16: -
A17: Tagegeld | B17: ab 43. Tag | C17: je 1 | D17: 2.79 | E17: 4.11 | F17: 4.11 | G17: 4.11 | H17: 4.11 | I17: 0 | J17: -
B18: Tagegeld Spezial TGsp | C18: je 1 | D18: 4.07 | E18: 5.16 | F18: 5.16 | G18: 5.16 | H18: 5.16 | I18: 3.88 | J18: siehe Tarifgruppe S
B19: Kosmetische Operationen KOP | C19: je 5.000 | D19: 6.7 | E19: 6.7 | F19: 6.7 | G19: 6.7 | H19: 6.7 | I19: 3.35 | J19: 6.7
B20: Bergungskosten BK bis 10.000 beitragsfrei | C20: je 5.000 | D20: 4.8 | E20: 4.8 | F20: 4.8 | G20: 4.8 | H20: 4.8 | I20: 2.4 | J20: 4.8
B21: Baustein CuraPlus | D21: 60 | E21: 60 | F21: 60 | G21: 60 | H21: 60 | I21: 15 | J21: 120
B22: Kinderzusatzschutz | D22: 0 | E22: 0 | F22: 0 | G22: 0 | H22: 0 | I22: 50.76

Sheet Tarifgruppe S (hidden)
A1: Mappingzeile für Makro "BS_Invalidität"
A2: Spalte 1 | B2: Spalte 2 | C2: Spalte 3 | D2: Spalte 4 | E2: Spalte 5 | F2: Spalte 6 | G2: Spalte 7 | H2: Spalte 8 | I2: Spalte 9 | J2: Spalte 10 | K2: Spalte 11 | L2: Spalte 12 | M2: Spalte 13 | N2: Spalte 14 | O2: Spalte 15
A3: VP1 | B3: =ROUND(VLOOKUP(Tarifierung!$B$5,$A$13:$O$75,2,FALSE),2) -> 7.49 | C3: =ROUND(VLOOKUP(Tarifierung!$B$5,$A$13:$O$75,3,FALSE),2) -> 10.54 | D3: =ROUND(VLOOKUP(Tarifierung!$B$5,$A$13:$O$75,4,FALSE),2) -> 13.01 | E3: =ROUND(VLOOKUP(Tarifierung!$B$5,$A$13:$O$75,5,FALSE),2) -> 5.89 | F3: =ROUND(VLOOKUP(Tarifierung!$B$5,$A$13:$O$75,6,FALSE),2) -> 3.95 | G3: =ROUND(VLOOKUP(Tarifierung!$B$5,$A$13:$O$75,7,FALSE),2) -> 3.85 | H3: =ROUND(VLOOKUP(Tarifierung!$B$5,$A$13:$O$75,8,FALSE),2) -> 46.08 | I3: =ROUND(VLOOKUP(Tarifierung!$B$5,$A$13:$O$75,9,FALSE),2) -> 6.24 | J3: =ROUND(VLOOKUP(Tarifierung!$B$5,$A$13:$O$75,10,FALSE),2) -> 8.78 | K3: =ROUND(VLOOKUP(Tarifierung!$B$5,$A$13:$O$75,11,FALSE),2) -> 10.84 | L3: =ROUND(VLOOKUP(Tarifierung!$B$5,$A$13:$O$75,12,FALSE),2) -> 4.91 | M3: =ROUND(VLOOKUP(Tarifierung!$B$5,$A$13:$O$75,13,FALSE),2) -> 3.29 | N3: =ROUND(VLOOKUP(Tarifierung!$B$5,$A$13:$O$75,14,FALSE),2) -> 3.21 | O3: =ROUND(VLOOKUP(Tarifierung!$B$5,$A$13:$O$75,15,FALSE),2) -> 38.4
A4: VP2 | B4: =ROUND(VLOOKUP(Tarifierung!$G$5,$A$13:$O$75,2,FALSE),2) -> 0.79 | C4: =ROUND(VLOOKUP(Tarifierung!$G$5,$A$13:$O$75,3,FALSE),2) -> 1.12 | D4: =ROUND(VLOOKUP(Tarifierung!$G$5,$A$13:$O$75,4,FALSE),2) -> 1.38 | E4: =ROUND(VLOOKUP(Tarifierung!$G$5,$A$13:$O$75,5,FALSE),2) -> 0.62 | F4: =ROUND(VLOOKUP(Tarifierung!$G$5,$A$13:$O$75,6,FALSE),2) -> 0.42 | G4: =ROUND(VLOOKUP(Tarifierung!$G$5,$A$13:$O$75,7,FALSE),2) -> 0.41 | H4: =ROUND(VLOOKUP(Tarifierung!$G$5,$A$13:$O$75,8,FALSE),2) -> 4.88 | I4: =ROUND(VLOOKUP(Tarifierung!$G$5,$A$13:$O$75,9,FALSE),2) -> 0.66 | J4: =ROUND(VLOOKUP(Tarifierung!$G$5,$A$13:$O$75,10,FALSE),2) -> 0.93 | K4: =ROUND(VLOOKUP(Tarifierung!$G$5,$A$13:$O$75,11,FALSE),2) -> 1.15 | L4: =ROUND(VLOOKUP(Tarifierung!$G$5,$A$13:$O$75,12,FALSE),2) -> 0.52 | M4: =ROUND(VLOOKUP(Tarifierung!$G$5,$A$13:$O$75,13,FALSE),2) -> 0.35 | N4: =ROUND(VLOOKUP(Tarifierung!$G$5,$A$13:$O$75,14,FALSE),2) -> 0.34 | O4: =ROUND(VLOOKUP(Tarifierung!$G$5,$A$13:$O$75,15,FALSE),2) -> 4.07
A5: VP3 | B5: =ROUND(VLOOKUP(Tarifierung!$L$5,$A$13:$O$75,2,FALSE),2) ->  | C5: =ROUND(VLOOKUP(Tarifierung!$L$5,$A$13:$O$75,3,FALSE),2) ->  | D5: =ROUND(VLOOKUP(Tarifierung!$L$5,$A$13:$O$75,4,FALSE),2) ->  | E5: =ROUND(VLOOKUP(Tarifierung!$L$5,$A$13:$O$75,5,FALSE),2) ->  | F5: =ROUND(VLOOKUP(Tarifierung!$L$5,$A$13:$O$75,6,FALSE),2) ->  | G5: =ROUND(VLOOKUP(Tarifierung!$L$5,$A$13:$O$75,7,FALSE),2) ->  | H5: =ROUND(VLOOKUP(Tarifierung!$L$5,$A$13:$O$75,8,FALSE),2) ->  | I5: =ROUND(VLOOKUP(Tarifierung!$L$5,$A$13:$O$75,9,FALSE),2) ->  | J5: =ROUND(VLOOKUP(Tarifierung!$L$5,$A$13:$O$75,10,FALSE),2) ->  | K5: =ROUND(VLOOKUP(Tarifierung!$L$5,$A$13:$O$75,11,FALSE),2) ->  | L5: =ROUND(VLOOKUP(Tarifierung!$L$5,$A$13:$O$75,12,FALSE),2) ->  | M5: =ROUND(VLOOKUP(Tarifierung!$L$5,$A$13:$O$75,13,FALSE),2) ->  | N5: =ROUND(VLOOKUP(Tarifierung!$L$5,$A$13:$O$75,14,FALSE),2) ->  | O5: =ROUND(VLOOKUP(Tarifierung!$L$5,$A$13:$O$75,15,FALSE),2) -> 
A6: VP4 | B6: =ROUND(VLOOKUP(Tarifierung!$Q$5,$A$13:$O$75,2,FALSE),2) ->  | C6: =ROUND(VLOOKUP(Tarifierung!$Q$5,$A$13:$O$75,3,FALSE),2) ->  | D6: =ROUND(VLOOKUP(Tarifierung!$Q$5,$A$13:$O$75,4,FALSE),2) ->  | E6: =ROUND(VLOOKUP(Tarifierung!$Q$5,$A$13:$O$75,5,FALSE),2) ->  | F6: =ROUND(VLOOKUP(Tarifierung!$Q$5,$A$13:$O$75,6,FALSE),2) ->  | G6: =ROUND(VLOOKUP(Tarifierung!$Q$5,$A$13:$O$75,7,FALSE),2) ->  | H6: =ROUND(VLOOKUP(Tarifierung!$Q$5,$A$13:$O$75,8,FALSE),2) ->  | I6: =ROUND(VLOOKUP(Tarifierung!$Q$5,$A$13:$O$75,9,FALSE),2) ->  | J6: =ROUND(VLOOKUP(Tarifierung!$Q$5,$A$13:$O$75,10,FALSE),2) ->  | K6: =ROUND(VLOOKUP(Tarifierung!$Q$5,$A$13:$O$75,11,FALSE),2) ->  | L6: =ROUND(VLOOKUP(Tarifierung!$Q$5,$A$13:$O$75,12,FALSE),2) ->  | M6: =ROUND(VLOOKUP(Tarifierung!$Q$5,$A$13:$O$75,13,FALSE),2) ->  | N6: =ROUND(VLOOKUP(Tarifierung!$Q$5,$A$13:$O$75,14,FALSE),2) ->  | O6: =ROUND(VLOOKUP(Tarifierung!$Q$5,$A$13:$O$75,15,FALSE),2) -> 
A10: Unfallkalkulation: Senioren
B12: ohne Integralfranchise | I12: mit Integralfranchise
A13: Alter | B13: ohne Progression | C13: 350 Progression | D13: 600 Progression | E13: Unfalltod | F13: KHTG | G13: GG | H13: TG spez | I13: ohne Progression | J13: 350 Progression | K13: 600 Progression | L13: Unfalltod | M13: KHTG | N13: GG | O13: TG spez
A14: Basis
A17: 67 | B17: 0.79 | C17: 1.12 | D17: 1.38 | E17: 0.62 | F17: 0.42 | G17: 0.41 | H17: 4.88 | I17: 0.66 | J17: 0.93 | K17: 1.15 | L17: 0.52 | M17: 0.35 | N17: 0.34 | O17: 4.07
A18: 68 | B18: 0.83 | C18: 1.17 | D18: 1.45 | E18: 0.66 | F18: 0.44 | G18: 0.43 | H18: 5.13 | I18: 0.69 | J18: 0.98 | K18: 1.21 | L18: 0.55 | M18: 0.37 | N18: 0.36 | O18: 4.27
A19: 69 | B19: 0.87 | C19: 1.23 | D19: 1.52 | E19: 0.69 | F19: 0.46 | G19: 0.45 | H19: 5.38 | I19: 0.73 | J19: 1.03 | K19: 1.27 | L19: 0.57 | M19: 0.38 | N19: 0.37 | O19: 4.49
A20: 70 | B20: 0.92 | C20: 1.29 | D20: 1.6 | E20: 0.72 | F20: 0.48 | G20: 0.47 | H20: 5.65 | I20: 0.77 | J20: 1.08 | K20: 1.33 | L20: 0.6 | M20: 0.4 | N20: 0.39 | O20: 4.71
A21: 71 | B21: 0.96 | C21: 1.36 | D21: 1.68 | E21: 0.76 | F21: 0.51 | G21: 0.5 | H21: 5.94 | I21: 0.8 | J21: 1.13 | K21: 1.4 | L21: 0.63 | M21: 0.42 | N21: 0.41 | O21: 4.95
A22: 72 | B22: 1.01 | C22: 1.43 | D22: 1.76 | E22: 0.8 | F22: 0.53 | G22: 0.52 | H22: 6.23 | I22: 0.84 | J22: 1.19 | K22: 1.47 | L22: 0.66 | M22: 0.44 | N22: 0.43 | O22: 5.19
A23: 73 | B23: 1.06 | C23: 1.5 | D23: 1.85 | E23: 0.84 | F23: 0.56 | G23: 0.55 | H23: 6.55 | I23: 0.89 | J23: 1.25 | K23: 1.54 | L23: 0.7 | M23: 0.47 | N23: 0.46 | O23: 5.45
A24: 74 | B24: 1.12 | C24: 1.57 | D24: 1.94 | E24: 0.88 | F24: 0.59 | G24: 0.57 | H24: 6.87 | I24: 0.93 | J24: 1.31 | K24: 1.62 | L24: 0.73 | M24: 0.49 | N24: 0.48 | O24: 5.73
A25: 75 | B25: 1.17 | C25: 1.65 | D25: 2.04 | E25: 0.92 | F25: 0.62 | G25: 0.6 | H25: 7.22 | I25: 0.98 | J25: 1.38 | K25: 1.7 | L25: 0.77 | M25: 0.51 | N25: 0.5 | O25: 6.01
A26: 76 | B26: 1.23 | C26: 1.73 | D26: 2.14 | E26: 0.97 | F26: 0.65 | G26: 0.63 | H26: 7.58 | I26: 1.03 | J26: 1.44 | K26: 1.78 | L26: 0.81 | M26: 0.54 | N26: 0.53 | O26: 6.31
A27: 77 | B27: 1.29 | C27: 1.82 | D27: 2.25 | E27: 1.02 | F27: 0.68 | G27: 0.66 | H27: 7.96 | I27: 1.08 | J27: 1.52 | K27: 1.87 | L27: 0.85 | M27: 0.57 | N27: 0.55 | O27: 6.63
A28: 78 | B28: 1.36 | C28: 1.91 | D28: 2.36 | E28: 1.07 | F28: 0.72 | G28: 0.7 | H28: 8.35 | I28: 1.13 | J28: 1.59 | K28: 1.96 | L28: 0.89 | M28: 0.6 | N28: 0.58 | O28: 6.96
A29: 79 | B29: 1.42 | C29: 2.01 | D29: 2.48 | E29: 1.12 | F29: 0.75 | G29: 0.73 | H29: 8.77 | I29: 1.19 | J29: 1.67 | K29: 2.06 | L29: 0.93 | M29: 0.63 | N29: 0.61 | O29: 7.31
A30: 80 | B30: 1.5 | C30: 2.11 | D30: 2.6 | E30: 1.18 | F30: 0.79 | G30: 0.77 | H30: 9.21 | I30: 1.25 | J30: 1.76 | K30: 2.17 | L30: 0.98 | M30: 0.66 | N30: 0.64 | O30: 7.67
A31: 81 | B31: 1.57 | C31: 2.21 | D31: 2.73 | E31: 1.24 | F31: 0.83 | G31: 0.81 | H31: 9.67 | I31: 1.31 | J31: 1.84 | K31: 2.27 | L31: 1.03 | M31: 0.69 | N31: 0.67 | O31: 8.06
A32: 82 | B32: 1.65 | C32: 2.32 | D32: 2.87 | E32: 1.3 | F32: 0.87 | G32: 0.85 | H32: 10.15 | I32: 1.37 | J32: 1.94 | K32: 2.39 | L32: 1.08 | M32: 0.72 | N32: 0.71 | O32: 8.46
A33: 83 | B33: 1.73 | C33: 2.44 | D33: 3.01 | E33: 1.36 | F33: 0.91 | G33: 0.89 | H33: 10.66 | I33: 1.44 | J33: 2.03 | K33: 2.51 | L33: 1.14 | M33: 0.76 | N33: 0.74 | O33: 8.88
A34: 84 | B34: 1.82 | C34: 2.56 | D34: 3.16 | E34: 1.43 | F34: 0.96 | G34: 0.94 | H34: 11.19 | I34: 1.52 | J34: 2.13 | K34: 2.63 | L34: 1.19 | M34: 0.8 | N34: 0.78 | O34: 9.33
A35: 85 | B35: 1.91 | C35: 2.69 | D35: 3.32 | E35: 1.5 | F35: 1.01 | G35: 0.98 | H35: 11.75 | I35: 1.59 | J35: 2.24 | K35: 2.76 | L35: 1.25 | M35: 0.84 | N35: 0.82 | O35: 9.79
A36: 86 | B36: 2 | C36: 2.82 | D36: 3.48 | E36: 1.58 | F36: 1.06 | G36: 1.03 | H36: 12.34 | I36: 1.67 | J36: 2.35 | K36: 2.9 | L36: 1.31 | M36: 0.88 | N36: 0.86 | O36: 10.28
A37: 87 | B37: 2.11 | C37: 2.96 | D37: 3.66 | E37: 1.66 | F37: 1.11 | G37: 1.08 | H37: 12.96 | I37: 1.75 | J37: 2.47 | K37: 3.05 | L37: 1.38 | M37: 0.92 | N37: 0.9 | O37: 10.8
A38: 88 | B38: 2.21 | C38: 3.11 | D38: 3.84 | E38: 1.74 | F38: 1.17 | G38: 1.14 | H38: 13.61 | I38: 1.84 | J38: 2.59 | K38: 3.2 | L38: 1.45 | M38: 0.97 | N38: 0.95 | O38: 11.34
A39: 89 | B39: 2.32 | C39: 3.27 | D39: 4.03 | E39: 1.83 | F39: 1.22 | G39: 1.19 | H39: 14.29 | I39: 1.93 | J39: 2.72 | K39: 3.36 | L39: 1.52 | M39: 1.02 | N39: 0.99 | O39: 11.91
A40: 90 | B40: 2.44 | C40: 3.43 | D40: 4.23 | E40: 1.92 | F40: 1.28 | G40: 1.25 | H40: 15 | I40: 2.03 | J40: 2.86 | K40: 3.53 | L40: 1.6 | M40: 1.07 | N40: 1.04 | O40: 12.5
A41: 91 | B41: 2.56 | C41: 3.6 | D41: 4.45 | E41: 2.01 | F41: 1.35 | G41: 1.32 | H41: 15.75 | I41: 2.13 | J41: 3 | K41: 3.7 | L41: 1.68 | M41: 1.12 | N41: 1.1 | O41: 13.13
A42: 92 | B42: 2.69 | C42: 3.78 | D42: 4.67 | E42: 2.11 | F42: 1.42 | G42: 1.38 | H42: 16.54 | I42: 2.24 | J42: 3.15 | K42: 3.89 | L42: 1.76 | M42: 1.18 | N42: 1.15 | O42: 13.78
A43: 93 | B43: 2.82 | C43: 3.97 | D43: 4.9 | E43: 2.22 | F43: 1.49 | G43: 1.45 | H43: 17.37 | I43: 2.35 | J43: 3.31 | K43: 4.08 | L43: 1.85 | M43: 1.24 | N43: 1.21 | O43: 14.47
A44: 94 | B44: 2.96 | C44: 4.17 | D44: 5.15 | E44: 2.33 | F44: 1.56 | G44: 1.52 | H44: 18.23 | I44: 2.47 | J44: 3.48 | K44: 4.29 | L44: 1.94 | M44: 1.3 | N44: 1.27 | O44: 15.2
A45: 95 | B45: 3.11 | C45: 4.38 | D45: 5.4 | E45: 2.45 | F45: 1.64 | G45: 1.6 | H45: 19.15 | I45: 2.59 | J45: 3.65 | K45: 4.5 | L45: 2.04 | M45: 1.37 | N45: 1.33 | O45: 15.95
A46: 96 | B46: 3.27 | C46: 4.6 | D46: 5.67 | E46: 2.57 | F46: 1.72 | G46: 1.68 | H46: 20.1 | I46: 2.72 | J46: 3.83 | K46: 4.73 | L46: 2.14 | M46: 1.43 | N46: 1.4 | O46: 16.75
A47: 97 | B47: 3.43 | C47: 4.83 | D47: 5.96 | E47: 2.7 | F47: 1.81 | G47: 1.76 | H47: 21.11 | I47: 2.86 | J47: 4.02 | K47: 4.97 | L47: 2.25 | M47: 1.51 | N47: 1.47 | O47: 17.59
A48: 98 | B48: 3.6 | C48: 5.07 | D48: 6.26 | E48: 2.83 | F48: 1.9 | G48: 1.85 | H48: 22.16 | I48: 3 | J48: 4.22 | K48: 5.21 | L48: 2.36 | M48: 1.58 | N48: 1.54 | O48: 18.47
A49: 99 | B49: 3.78 | C49: 5.32 | D49: 6.57 | E49: 2.97 | F49: 1.99 | G49: 1.94 | H49: 23.27 | I49: 3.15 | J49: 4.44 | K49: 5.47 | L49: 2.48 | M49: 1.66 | N49: 1.62 | O49: 19.39
A50: 100 | B50: 3.97 | C50: 5.59 | D50: 6.9 | E50: 3.12 | F50: 2.09 | G50: 2.04 | H50: 24.44 | I50: 3.31 | J50: 4.66 | K50: 5.75 | L50: 2.6 | M50: 1.74 | N50: 1.7 | O50: 20.36
A51: 101 | B51: 4.17 | C51: 5.87 | D51: 7.24 | E51: 3.28 | F51: 2.2 | G51: 2.14 | H51: 25.66 | I51: 3.47 | J51: 4.89 | K51: 6.04 | L51: 2.73 | M51: 1.83 | N51: 1.79 | O51: 21.38
A52: 102 | B52: 4.38 | C52: 6.16 | D52: 7.6 | E52: 3.44 | F52: 2.31 | G52: 2.25 | H52: 26.94 | I52: 3.65 | J52: 5.14 | K52: 6.34 | L52: 2.87 | M52: 1.92 | N52: 1.88 | O52: 22.45
A53: 103 | B53: 4.6 | C53: 6.47 | D53: 7.98 | E53: 3.61 | F53: 2.42 | G53: 2.36 | H53: 28.29 | I53: 3.83 | J53: 5.39 | K53: 6.65 | L53: 3.01 | M53: 2.02 | N53: 1.97 | O53: 23.57
A54: 104 | B54: 4.83 | C54: 6.79 | D54: 8.38 | E54: 3.79 | F54: 2.54 | G54: 2.48 | H54: 29.7 | I54: 4.02 | J54: 5.66 | K54: 6.99 | L54: 3.16 | M54: 2.12 | N54: 2.07 | O54: 24.75
A55: 105 | B55: 5.07 | C55: 7.13 | D55: 8.8 | E55: 3.98 | F55: 2.67 | G55: 2.61 | H55: 31.19 | I55: 4.22 | J55: 5.94 | K55: 7.34 | L55: 3.32 | M55: 2.23 | N55: 2.17 | O55: 25.99
A56: 106 | B56: 5.32 | C56: 7.49 | D56: 9.24 | E56: 4.18 | F56: 2.8 | G56: 2.74 | H56: 32.75 | I56: 4.43 | J56: 6.24 | K56: 7.7 | L56: 3.49 | M56: 2.34 | N56: 2.28 | O56: 27.29
A57: 107 | B57: 5.59 | C57: 7.86 | D57: 9.71 | E57: 4.39 | F57: 2.94 | G57: 2.87 | H57: 34.38 | I57: 4.65 | J57: 6.55 | K57: 8.09 | L57: 3.66 | M57: 2.45 | N57: 2.39 | O57: 28.65
A58: 108 | B58: 5.87 | C58: 8.26 | D58: 10.19 | E58: 4.61 | F58: 3.09 | G58: 3.02 | H58: 36.1 | I58: 4.89 | J58: 6.88 | K58: 8.49 | L58: 3.84 | M58: 2.58 | N58: 2.51 | O58: 30.09
A59: 109 | B59: 6.16 | C59: 8.67 | D59: 10.7 | E59: 4.84 | F59: 3.25 | G59: 3.17 | H59: 37.91 | I59: 5.13 | J59: 7.23 | K59: 8.92 | L59: 4.04 | M59: 2.7 | N59: 2.64 | O59: 31.59
A60: 110 | B60: 6.47 | C60: 9.1 | D60: 11.23 | E60: 5.09 | F60: 3.41 | G60: 3.33 | H60: 39.8 | I60: 5.39 | J60: 7.59 | K60: 9.36 | L60: 4.24 | M60: 2.84 | N60: 2.77 | O60: 33.17
A61: 111 | B61: 6.79 | C61: 9.56 | D61: 11.8 | E61: 5.34 | F61: 3.58 | G61: 3.49 | H61: 41.79 | I61: 5.66 | J61: 7.97 | K61: 9.83 | L61: 4.45 | M61: 2.98 | N61: 2.91 | O61: 34.83
A62: 112 | B62: 7.13 | C62: 10.04 | D62: 12.39 | E62: 5.61 | F62: 3.76 | G62: 3.67 | H62: 43.88 | I62: 5.94 | J62: 8.36 | K62: 10.32 | L62: 4.67 | M62: 3.13 | N62: 3.05 | O62: 36.57
A63: 113 | B63: 7.49 | C63: 10.54 | D63: 13.01 | E63: 5.89 | F63: 3.95 | G63: 3.85 | H63: 46.08 | I63: 6.24 | J63: 8.78 | K63: 10.84 | L63: 4.91 | M63: 3.29 | N63: 3.21 | O63: 38.4
A64: 114 | B64: 7.86 | C64: 11.07 | D64: 13.66 | E64: 6.18 | F64: 4.14 | G64: 4.04 | H64: 48.38 | I64: 6.55 | J64: 9.22 | K64: 11.38 | L64: 5.15 | M64: 3.45 | N64: 3.37 | O64: 40.32
A65: 115 | B65: 8.25 | C65: 11.62 | D65: 14.34 | E65: 6.49 | F65: 4.35 | G65: 4.24 | H65: 50.8 | I65: 6.88 | J65: 9.68 | K65: 11.95 | L65: 5.41 | M65: 3.62 | N65: 3.54 | O65: 42.33
A66: 116 | B66: 8.67 | C66: 12.2 | D66: 15.06 | E66: 6.81 | F66: 4.57 | G66: 4.46 | H66: 53.34 | I66: 7.22 | J66: 10.17 | K66: 12.55 | L66: 5.68 | M66: 3.81 | N66: 3.71 | O66: 44.45
A67: 117 | B67: 9.1 | C67: 12.81 | D67: 15.81 | E67: 7.16 | F67: 4.8 | G67: 4.68 | H67: 56.01 | I67: 7.58 | J67: 10.68 | K67: 13.17 | L67: 5.96 | M67: 4 | N67: 3.9 | O67: 46.67
A68: 118 | B68: 9.55 | C68: 13.45 | D68: 16.6 | E68: 7.51 | F68: 5.04 | G68: 4.91 | H68: 58.81 | I68: 7.96 | J68: 11.21 | K68: 13.83 | L68: 6.26 | M68: 4.2 | N68: 4.09 | O68: 49.01
A69: 119 | B69: 10.03 | C69: 14.12 | D69: 17.43 | E69: 7.89 | F69: 5.29 | G69: 5.16 | H69: 61.75 | I69: 8.36 | J69: 11.77 | K69: 14.52 | L69: 6.57 | M69: 4.41 | N69: 4.3 | O69: 51.46
A70: 120 | B70: 10.53 | C70: 14.83 | D70: 18.3 | E70: 8.28 | F70: 5.55 | G70: 5.42 | H70: 64.83 | I70: 8.78 | J70: 12.36 | K70: 15.25 | L70: 6.9 | M70: 4.63 | N70: 4.51 | O70: 54.03
A71: 121 | B71: 11.06 | C71: 15.57 | D71: 19.22 | E71: 8.7 | F71: 5.83 | G71: 5.69 | H71: 68.08 | I71: 9.22 | J71: 12.98 | K71: 16.01 | L71: 7.25 | M71: 4.86 | N71: 4.74 | O71: 56.73
A72: 122 | B72: 11.61 | C72: 16.35 | D72: 20.18 | E72: 9.13 | F72: 6.12 | G72: 5.97 | H72: 71.48 | I72: 9.68 | J72: 13.62 | K72: 16.81 | L72: 7.61 | M72: 5.1 | N72: 4.98 | O72: 59.57
A73: 123 | B73: 12.19 | C73: 17.17 | D73: 21.18 | E73: 9.59 | F73: 6.43 | G73: 6.27 | H73: 75.05 | I73: 10.16 | J73: 14.31 | K73: 17.65 | L73: 7.99 | M73: 5.36 | N73: 5.22 | O73: 62.55
A74: 124 | B74: 12.8 | C74: 18.03 | D74: 22.24 | E74: 10.07 | F74: 6.75 | G74: 6.58 | H74: 78.81 | I74: 10.67 | J74: 15.02 | K74: 18.54 | L74: 8.39 | M74: 5.62 | N74: 5.49 | O74: 65.67
A75: 125 | B75: 13.44 | C75: 18.93 | D75: 23.36 | E75: 10.57 | F75: 7.09 | G75: 6.91 | H75: 82.75 | I75: 11.2 | J75: 15.77 | K75: 19.46 | L75: 8.81 | M75: 5.9 | N75: 5.76 | O75: 68.96

Sheet Tarif URP (hidden)
A1: Beitragssätze aus Datei "Beiträge_Unfallrente_Plus_Stand_130930_send.xls"
A2: VP1 | B2: =VLOOKUP(Tarifierung!$B$5,$A$9:$G$75,2,FALSE) ->  | C2: =VLOOKUP(Tarifierung!$B$5,$A$9:$G$75,3,FALSE) ->  | D2: =VLOOKUP(Tarifierung!$B$5,$A$9:$G$75,4,FALSE) ->  | E2: =VLOOKUP(Tarifierung!$B$5,$A$9:$G$75,5,FALSE) ->  | F2: =VLOOKUP(Tarifierung!$B$5,$A$9:$G$75,6,FALSE) ->  | G2: =VLOOKUP(Tarifierung!$B$5,$A$9:$G$75,7,FALSE) -> 
A3: VP2 | B3: =VLOOKUP(Tarifierung!$G$5,$A$9:$G$75,2,FALSE) ->  | C3: =VLOOKUP(Tarifierung!$G$5,$A$9:$G$75,3,FALSE) ->  | D3: =VLOOKUP(Tarifierung!$G$5,$A$9:$G$75,4,FALSE) ->  | E3: =VLOOKUP(Tarifierung!$G$5,$A$9:$G$75,5,FALSE) ->  | F3: =VLOOKUP(Tarifierung!$G$5,$A$9:$G$75,6,FALSE) ->  | G3: =VLOOKUP(Tarifierung!$G$5,$A$9:$G$75,7,FALSE) -> 
A4: VP3 | B4: =VLOOKUP(Tarifierung!$L$5,$A$9:$G$75,2,FALSE) -> 0 | C4: =VLOOKUP(Tarifierung!$L$5,$A$9:$G$75,3,FALSE) -> 0 | D4: =VLOOKUP(Tarifierung!$L$5,$A$9:$G$75,4,FALSE) -> 19.13 | E4: =VLOOKUP(Tarifierung!$L$5,$A$9:$G$75,5,FALSE) -> 20.92 | F4: =VLOOKUP(Tarifierung!$L$5,$A$9:$G$75,6,FALSE) -> 8.52 | G4: =VLOOKUP(Tarifierung!$L$5,$A$9:$G$75,7,FALSE) -> 8.52
A5: VP4 | B5: =VLOOKUP(Tarifierung!$Q$5,$A$9:$G$75,2,FALSE) -> 0 | C5: =VLOOKUP(Tarifierung!$Q$5,$A$9:$G$75,3,FALSE) -> 0 | D5: =VLOOKUP(Tarifierung!$Q$5,$A$9:$G$75,4,FALSE) -> 19.13 | E5: =VLOOKUP(Tarifierung!$Q$5,$A$9:$G$75,5,FALSE) -> 20.92 | F5: =VLOOKUP(Tarifierung!$Q$5,$A$9:$G$75,6,FALSE) -> 8.52 | G5: =VLOOKUP(Tarifierung!$Q$5,$A$9:$G$75,7,FALSE) -> 8.52
B8: URP 60 | D8: URP lebenslang | F8: URP 67 K
A9: Alter | B9: ohne Passivdynamik | C9: mit Passivdynamik | D9: ohne Passivdynamik | E9: mit Passivdynamik | F9: ohne Passivdynamik | G9: mit Passivdynamik
A10: 1 | B10: 1.07 | C10: 1.45 | D10: 1.24 | E10: 1.84 | F10: 1.2 | G10: 1.76
A11: 2 | B11: 1.07 | C11: 1.45 | D11: 1.24 | E11: 1.84 | F11: 1.2 | G11: 1.76
A12: 3 | B12: 1.07 | C12: 1.45 | D12: 1.24 | E12: 1.84 | F12: 1.2 | G12: 1.76
A13: 4 | B13: 1.07 | C13: 1.45 | D13: 1.24 | E13: 1.84 | F13: 1.2 | G13: 1.76
A14: 5 | B14: 1.07 | C14: 1.45 | D14: 1.24 | E14: 1.84 | F14: 1.2 | G14: 1.76
A15: 6 | B15: 1.07 | C15: 1.45 | D15: 1.24 | E15: 1.84 | F15: 1.2 | G15: 1.76
A16: 7 | B16: 1.07 | C16: 1.45 | D16: 1.24 | E16: 1.84 | F16: 1.2 | G16: 1.76
A17: 8 | B17: 1.07 | C17: 1.45 | D17: 1.24 | E17: 1.84 | F17: 1.2 | G17: 1.76
A18: 9 | B18: 1.07 | C18: 1.45 | D18: 1.24 | E18: 1.84 | F18: 1.2 | G18: 1.76
A19: 10 | B19: 1.07 | C19: 1.45 | D19: 1.24 | E19: 1.84 | F19: 1.2 | G19: 1.76
A20: 11 | B20: 1.07 | C20: 1.45 | D20: 1.24 | E20: 1.84 | F20: 1.2 | G20: 1.76
A21: 12 | B21: 1.07 | C21: 1.45 | D21: 1.24 | E21: 1.84 | F21: 1.2 | G21: 1.76
A22: 13 | B22: 1.07 | C22: 1.45 | D22: 1.24 | E22: 1.84 | F22: 1.2 | G22: 1.76
A23: 14 | B23: 1.07 | C23: 1.45 | D23: 1.24 | E23: 1.84 | F23: 1.2 | G23: 1.76
A24: 15 | B24: 1.07 | C24: 1.45 | D24: 1.24 | E24: 1.84 | F24: 1.2 | G24: 1.76
A25: 16 | B25: 1.07 | C25: 1.45 | D25: 1.24 | E25: 1.84 | F25: 1.2 | G25: 1.76
A26: 17 | B26: 1.07 | C26: 1.45 | D26: 1.24 | E26: 1.84 | F26: 1.2 | G26: 1.76
A27: 18 | B27: 1.49 | C27: 1.82 | D27: 1.84 | E27: 2.63 | F27: 1.84 | G27: 2.36
A28: 19 | B28: 1.49 | C28: 1.82 | D28: 1.84 | E28: 2.63 | F28: 1.84 | G28: 2.36
A29: 20 | B29: 1.49 | C29: 1.82 | D29: 1.84 | E29: 2.63 | F29: 1.84 | G29: 2.36
A30: 21 | B30: 1.49 | C30: 1.82 | D30: 1.84 | E30: 2.63 | F30: 1.84 | G30: 2.36
A31: 22 | B31: 1.49 | C31: 1.82 | D31: 1.84 | E31: 2.63 | F31: 1.84 | G31: 2.36
A32: 23 | B32: 1.49 | C32: 1.82 | D32: 1.84 | E32: 2.63 | F32: 1.84 | G32: 2.36
A33: 24 | B33: 1.49 | C33: 1.82 | D33: 1.84 | E33: 2.63 | F33: 1.84 | G33: 2.36
A34: 25 | B34: 1.49 | C34: 1.82 | D34: 1.84 | E34: 2.63 | F34: 1.84 | G34: 2.36
A35: 26 | B35: 1.49 | C35: 1.82 | D35: 1.84 | E35: 2.63 | F35: 1.84 | G35: 2.36
A36: 27 | B36: 1.49 | C36: 1.82 | D36: 1.84 | E36: 2.63 | F36: 1.85 | G36: 2.36
A37: 28 | B37: 1.49 | C37: 1.82 | D37: 1.84 | E37: 2.63 | F37: 1.85 | G37: 2.36
A38: 29 | B38: 1.49 | C38: 1.82 | D38: 1.84 | E38: 2.63 | F38: 1.85 | G38: 2.36
A39: 30 | B39: 1.49 | C39: 1.82 | D39: 1.84 | E39: 2.63 | F39: 1.85 | G39: 2.36
A40: 31 | B40: 1.49 | C40: 1.82 | D40: 1.84 | E40: 2.63 | F40: 1.85 | G40: 2.36
A41: 32 | B41: 1.49 | C41: 1.82 | D41: 1.84 | E41: 2.63 | F41: 1.85 | G41: 2.36
A42: 33 | B42: 1.49 | C42: 1.82 | D42: 1.85 | E42: 2.63 | F42: 1.85 | G42: 2.36
A43: 34 | B43: 1.49 | C43: 1.82 | D43: 1.99 | E43: 2.63 | F43: 1.85 | G43: 2.36
A44: 35 | B44: 1.52 | C44: 1.82 | D44: 2.09 | E44: 2.63 | F44: 1.88 | G44: 2.36
A45: 36 | B45: 1.62 | C45: 1.82 | D45: 2.26 | E45: 2.82 | F45: 2.03 | G45: 2.39
A46: 37 | B46: 1.73 | C46: 1.89 | D46: 2.43 | E46: 3.01 | F46: 2.17 | G46: 2.54
A47: 38 | B47: 1.83 | C47: 2 | D47: 2.61 | E47: 3.22 | F47: 2.32 | G47: 2.7
A48: 39 | B48: 1.94 | C48: 2.1 | D48: 2.79 | E48: 3.42 | F48: 2.47 | G48: 2.85
A49: 40 | B49: 1.99 | C49: 2.15 | D49: 2.91 | E49: 3.53 | F49: 2.56 | G49: 2.93
A50: 41 | B50: 2.12 | C50: 2.27 | D50: 3.13 | E50: 3.79 | F50: 2.74 | G50: 3.13
A51: 42 | B51: 2.26 | C51: 2.4 | D51: 3.38 | E51: 4.06 | F51: 2.95 | G51: 3.33
A52: 43 | B52: 2.4 | C52: 2.53 | D52: 3.66 | E52: 4.37 | F52: 3.16 | G52: 3.56
A53: 44 | B53: 2.54 | C53: 2.68 | D53: 3.97 | E53: 4.72 | F53: 3.4 | G53: 3.81
A54: 45 | B54: 2.64 | C54: 2.76 | D54: 4.2 | E54: 4.96 | F54: 3.58 | G54: 3.97
A55: 46 | B55: 2.8 | C55: 2.9 | D55: 4.56 | E55: 5.36 | F55: 3.85 | G55: 4.25
A56: 47 | B56: 2.95 | C56: 3.05 | D56: 4.96 | E56: 5.8 | F56: 4.14 | G56: 4.55
A57: 48 | B57: 3.12 | C57: 3.21 | D57: 5.41 | E57: 6.3 | F57: 4.47 | G57: 4.87
A58: 49 | B58: 3.29 | C58: 3.36 | D58: 5.9 | E58: 6.84 | F58: 4.82 | G58: 5.22
A59: 50 | B59: 3.38 | C59: 3.43 | D59: 6.27 | E59: 7.22 | F59: 5.08 | G59: 5.47
A60: 51 | B60: 3.51 | C60: 3.55 | D60: 6.83 | E60: 7.82 | F60: 5.45 | G60: 5.83
A61: 52 | B61: 3.6 | C61: 3.61 | D61: 7.39 | E61: 8.43 | F61: 5.79 | G61: 6.16
A62: 53 | B62: 3.64 | C62: 3.64 | D62: 8 | E62: 9.09 | F62: 6.13 | G62: 6.48
A63: 54 | B63: 3.64 | C63: 3.62 | D63: 8.67 | E63: 9.82 | F63: 6.48 | G63: 6.81
A64: 55 | B64: 3.55 | C64: 3.51 | D64: 9.15 | E64: 10.29 | F64: 6.72 | G64: 7.02
A65: 56 | B65: 3.45 | C65: 3.4 | D65: 9.99 | E65: 11.2 | F65: 7.11 | G65: 7.38
A66: 57 | B66: 3.26 | C66: 3.2 | D66: 10.98 | E66: 12.26 | F66: 7.52 | G66: 7.77
A67: 58 | B67: 2.37 | C67: 2.32 | D67: 12.15 | E67: 13.53 | F67: 7.97 | G67: 8.18
A68: 59 | B68: 0.95 | C68: 0.93 | D68: 13.48 | E68: 14.96 | F68: 8.39 | G68: 8.56
A69: 60 | D69: 14.41 | E69: 15.87 | F69: 8.6 | G69: 8.73
A70: 61 | D70: 15.96 | E70: 17.53 | F70: 8.82 | G70: 8.91
A71: 62 | D71: 17.56 | E71: 19.24 | F71: 8.81 | G71: 8.85
A72: 63 | D72: 19.13 | E72: 20.92 | F72: 8.52 | G72: 8.52
A73: 64 | D73: 20.75 | E73: 22.64 | F73: 7.9 | G73: 7.87
A74: 65 | D74: 21.58 | E74: 23.38 | F74: 5.55 | G74: 5.51
A75: 66 | D75: 23.22 | E75: 25.1 | F75: 2.23 | G75: 2.21

Sheet Werte (hidden)
A4: Progression | B4: nein | C4: 3.5 | D4: 6
A5: Gliedertaxe Ärzte | B5: nein | C5: ohne Progression | D5: 350 Progression
A6: Tagegeld | B6: TG ab 8. Tag | C6: TG ab 15. Tag | D6: TG ab 29. Tag | E6: TG ab 43. Tag
A7: Tagegeld spezial
A8: KOP | B8: 15000 | C8: 20000 | D8: 25000 | E8: 30000 | F8: 35000 | G8: 40000 | H8: 45000 | I8: 50000 | J8: 55000 | K8: 60000
A9: Bergungskosten | B9: 15000 | C9: 20000 | D9: 25000 | E9: 30000 | F9: 35000 | G9: 40000 | H9: 45000 | I9: 50000 | J9: 55000 | K9: 60000
A10: Invaliditätsrente
A11: Kinder-Rente | B11: 100 | C11: 200 | D11: 300 | E11: 400 | F11: 500 | G11: 600 | H11: 700 | I11: 800 | J11: 900 | K11: 1000 | L11: 1100 | M11: 1200 | N11: 1300 | O11: 1400 | P11: 1500
A12: UnfallRente Plus
A13: Deckungsumfang | B13: Basis | C13: Plus | D13: Premium
A14: Raucherzuschlag | B14: 0.2
A16: Nachlässe
A17: DN | B17: 0 | C17: 0.05
A18: V-Tarif | B18: 0.5
A19: Maklertarif Unfall | B19: 0.05 | E19: Zuschlag Plus | F19: Zuschlag Premium | G19: Zuschlag Premium & KöMo
A20: Maklertarif Top & PD | B20: 0.145 | C20: 0.24 | D20: nur Einzelunfall | E20: 1.268 | F20: 1.432 | G20: 1.689
D21: nur URP | E21: 1.208 | F21: 1.246
A22: Faktoren Zahlweise | D22: Einzelunfall & URP | E22: 1.232 | F22: 1.319 | G22: 1.42
A23: 1/2-jährl. | B23: 0.515
A24: 1/4-jährl. | B24: 0.2625
A25: monatl. | B25: 0.089167
A27: Versicherungssteuer | B27: 0.19
A31: mit verbesserter Gliedertaxe für Ärzte mit UIVGP 350%
A35: Entschädigungsgrenzen
A36: EG_Tagegeld | B36: =IF(Tarifierung!B8>(50000/3),"50",(Tarifierung!B8/1000)*3) -> 50
A39: Gefahrengruppen
A40: A | B40: 5
A41: B | B41: 6
A42: K | B42: 14
A43: S | B43: 8
B48: UIR | C48: URP
B49: 0 | C49: 0
B50: 10 | C50: 10
B51: 20 | C51: 20
B52: 30 | C52: 30
B53: 40 | C53: 40
B54: 50 | C54: 50
B55: 60 | C55: 60
B56: 70 | C56: 70
B57: 80 | C57: 80
B58: 90 | C58: 90
B59: 100 | C59: 100
B60: 110 | C60: 110
B61: 120 | C61: 120
B62: 130 | C62: 130
B63: 140 | C63: 140
B64: 150 | C64: 150
B65: 160 | C65: 160
B66: 170 | C66: 170
B67: 180 | C67: 180
B68: 190 | C68: 190
B69: 200 | C69: 200
B70: 210 | C70: 210
B71: 220 | C71: 220
B72: 230 | C72: 230
B73: 240 | C73: 240
B74: 250 | C74: 250
B75: 260 | C75: 260
B76: 270 | C76: 270
B77: 280 | C77: 280
B78: 290 | C78: 290
B79: 300 | C79: 300
B80: 310 | C80: 310
B81: 320 | C81: 320
B82: 330 | C82: 330
B83: 340 | C83: 340
B84: 350 | C84: 350
B85: 360 | C85: 360
B86: 370 | C86: 370
B87: 380 | C87: 380
B88: 390 | C88: 390
B89: 400 | C89: 400
B90: 410 | C90: 410
B91: 420 | C91: 420
B92: 430 | C92: 430
B93: 440 | C93: 440
B94: 450 | C94: 450
B95: 460 | C95: 460
B96: 470 | C96: 470
B97: 480 | C97: 480
B98: 490 | C98: 490
B99: 500 | C99: 500
B100: 510 | C100: 510
B101: 520 | C101: 520
B102: 530 | C102: 530
B103: 540 | C103: 540
B104: 550 | C104: 550
B105: 560 | C105: 560
B106: 570 | C106: 570
B107: 580 | C107: 580
B108: 590 | C108: 590
B109: 600 | C109: 600
B110: 610 | C110: 610
B111: 620 | C111: 620
B112: 630 | C112: 630
B113: 640 | C113: 640
B114: 650 | C114: 650
B115: 660 | C115: 660
B116: 670 | C116: 670
B117: 680 | C117: 680
B118: 690 | C118: 690
B119: 700 | C119: 700
B120: 710 | C120: 710
B121: 720 | C121: 720
B122: 730 | C122: 730
B123: 740 | C123: 740
B124: 750 | C124: 750
B125: 760 | C125: 760
B126: 770 | C126: 770
B127: 780 | C127: 780
B128: 790 | C128: 790
B129: 800 | C129: 800
B130: 810 | C130: 810
B131: 820 | C131: 820
B132: 830 | C132: 830
B133: 840 | C133: 840
B134: 850 | C134: 850
B135: 860 | C135: 860
B136: 870 | C136: 870
B137: 880 | C137: 880
B138: 890 | C138: 890
B139: 900 | C139: 900
B140: 910 | C140: 910
B141: 920 | C141: 920
B142: 930 | C142: 930
B143: 940 | C143: 940
B144: 950 | C144: 950
B145: 960 | C145: 960
B146: 970 | C146: 970
B147: 980 | C147: 980
B148: 990 | C148: 990
B149: 1000 | C149: 1000
B150: 1010 | C150: 1010
B151: 1020 | C151: 1020
B152: 1030 | C152: 1030
B153: 1040 | C153: 1040
B154: 1050 | C154: 1050
B155: 1060 | C155: 1060
B156: 1070 | C156: 1070
B157: 1080 | C157: 1080
B158: 1090 | C158: 1090
B159: 1100 | C159: 1100
B160: 1110 | C160: 1110
B161: 1120 | C161: 1120
B162: 1130 | C162: 1130
B163: 1140 | C163: 1140
B164: 1150 | C164: 1150
B165: 1160 | C165: 1160
B166: 1170 | C166: 1170
B167: 1180 | C167: 1180
B168: 1190 | C168: 1190
B169: 1200 | C169: 1200
B170: 1210 | C170: 1210
B171: 1220 | C171: 1220
B172: 1230 | C172: 1230
B173: 1240 | C173: 1240
B174: 1250 | C174: 1250
B175: 1260 | C175: 1260
B176: 1270 | C176: 1270
B177: 1280 | C177: 1280
B178: 1290 | C178: 1290
B179: 1300 | C179: 1300
B180: 1310 | C180: 1310
B181: 1320 | C181: 1320
B182: 1330 | C182: 1330
B183: 1340 | C183: 1340
B184: 1350 | C184: 1350
B185: 1360 | C185: 1360
B186: 1370 | C186: 1370
B187: 1380 | C187: 1380
B188: 1390 | C188: 1390
B189: 1400 | C189: 1400
B190: 1410 | C190: 1410
B191: 1420 | C191: 1420
B192: 1430 | C192: 1430
B193: 1440 | C193: 1440
B194: 1450 | C194: 1450
B195: 1460 | C195: 1460
B196: 1470 | C196: 1470
B197: 1480 | C197: 1480
B198: 1490 | C198: 1490
B199: 1500 | C199: 1500
C200: 1510
C201: 1520
C202: 1530
C203: 1540
C204: 1550
C205: 1560
C206: 1570
C207: 1580
C208: 1590
C209: 1600
C210: 1610
C211: 1620
C212: 1630
C213: 1640
C214: 1650
C215: 1660
C216: 1670
C217: 1680
... 132 more rows

Sheet Mapping für KRisk (hidden)
A1: Alter | B1: Gefahrengruppe | C1: Integralfranchise | D1: Progression | E1: UI/UIP Vsu | F1: BS UI/UIP | G1: UIVGT/UIVGP | H1: UIVGT/UIVGP Vsu | I1: BS UIVGT | J1: UT-Summe | K1: BS UT | L1: UKTG | M1: BS UKTG | N1: GG | O1: BS GG | P1: TG ab | Q1: TG Vsu | R1: BS Tagegeld | S1: TG spez | T1: BS TG spez | U1: KOP | V1: BS KOP | W1: BK | X1: BS BK | Y1: UIR/UIR 67 | Z1: UIR Vsu | AA1: BS UIR/UIR 67 | AB1: URP | AC1: URP Vsu | AD1: BS URP | AE1: Kindermodul | AF1: Beitrag Kindermodul | AG1: Körpermodul | AH1: CuraPlus | AI1: BS CuraPlus | AJ1: Produktlinie | AK1: Zuschlag Produktlinie | AL1: SHU-Quote | AM1: Laufzeit | AN1: jährlich | AO1: halbjährlich | AP1: vierteljährlich | AQ1: monatlich
A2: =Tarifierung!B5 -> 113 | B2: =VP1_Gruppe -> S | C2: =Tarifierung!B7 -> nein | D2: =VP1_UI -> Invalidität 600 | E2: =Tarifierung!B8 -> 335000 | F2: =Tarifierung!C8 -> 13.01 | G2: =Tarifierung!A9 -> verb. GT Ärzte | H2: =VP1_UIVGT_VSu -> 0 | I2: =Tarifierung!C9 -> 0 | J2: =Tarifierung!B10 -> 474000 | K2: =Tarifierung!C10 -> 5.89 | L2: =Tarifierung!B11 -> 200 | M2: =Tarifierung!C11 -> 3.95 | N2: =Tarifierung!B12 -> 0 | O2: =Tarifierung!C12 -> 0 | P2: =Tarifierung!A13 -> TG ab 8. Tag | Q2: =Tarifierung!B13 -> 0 | R2: =Tarifierung!C13 -> 0 | S2: =Tarifierung!B14 -> 0 | T2: =Tarifierung!C14 -> 0 | U2: =Tarifierung!B15 -> 50000 | V2: =Tarifierung!C15 -> 0 | W2: =Tarifierung!B16 -> 50000 | X2: =Tarifierung!C16 -> 0 | Y2: =Tarifierung!A17 -> UIR | Z2: =Tarifierung!B17 -> 0 | AA2: =Tarifierung!C17 -> 0 | AB2: =Tarifierung!A18 -> URP | AC2: =Tarifierung!B18 -> 0 | AD2: =Tarifierung!C18 -> 0 | AE2: =VP1_KiMo -> nein | AF2: =VP1_KiMo_BS -> 0 | AG2: =VP1_KöMo -> nein | AH2: =Tarifierung!B21 -> nein | AI2: =Tarifierung!C21 -> 0 | AJ2: =Tarifierung!B22 -> Premium | AK2: =Tarifierung!C22 -> 1.432 | AL2: =Tarifierung!B24 -> 0.2 | AM2: =IF(Tarifierung!B25=0,1,5) -> 5 | AN2: =Tarifierung!B29 -> 11549.8068 | AO2: =Tarifierung!B30 -> 5948.15 | AP2: =Tarifierung!B31 -> 3031.82 | AQ2: =Tarifierung!B32 -> 1029.86

Sheet Maklertarif (hidden)
I1: Nachlass | J1: 0.05
B2: Gefahrengruppe A, B, K für Einzelunfall
B3: Leistungsarten Erwachsene Kinder | D3: A | E3: B | F3: K | G3: S
A4: Progression | B4: ohne | C4: je 1.000 | D4: =ROUND(Tarifgruppen!D3*(1-Maklertarif!$J$1),3) -> 0.627 | E4: =ROUND(Tarifgruppen!E3*(1-Maklertarif!$J$1),3) -> 0.884 | F4: =ROUND(Tarifgruppen!I3*(1-Maklertarif!$J$1),3) -> 0.304
A5: Progression | B5: 3.5 | C5: je 1.000 | D5: =ROUND(Tarifgruppen!D4*(1-Maklertarif!$J$1),3) -> 0.884 | E5: =ROUND(Tarifgruppen!E4*(1-Maklertarif!$J$1),3) -> 1.273 | F5: =ROUND(Tarifgruppen!I4*(1-Maklertarif!$J$1),3) -> 0.399
A6: Progression | B6: 6 | C6: je 1.000 | D6: =ROUND(Tarifgruppen!D5*(1-Maklertarif!$J$1),3) -> 1.093 | E6: =ROUND(Tarifgruppen!E5*(1-Maklertarif!$J$1),3) -> 1.587 | F6: =ROUND(Tarifgruppen!I5*(1-Maklertarif!$J$1),3) -> 0.447
B7: mit verbesserter Gliedertaxe für Ärzte UIVGT | C7: je 1.000 | D7: =ROUND(Tarifgruppen!D6*(1-Maklertarif!$J$1),3) -> 1.292
B8: mit verbesserter Gliedertaxe für Ärzte mit UIVGP 350% | C8: je 1.000 | D8: =ROUND(Tarifgruppen!D7*(1-Maklertarif!$J$1),3) -> 2.774
B9: Invaliditätsrente 0 – 59 Jahre UIR 65 | C9: je 10 | D9: =ROUND(Tarifgruppen!D8*(1-Maklertarif!$J$1),3) -> 0.418 | E9: =ROUND(Tarifgruppen!E8*(1-Maklertarif!$J$1),3) -> 0.779 | F9: =ROUND(Tarifgruppen!I8*(1-Maklertarif!$J$1),3) -> 0.295
B10: Invaliditätsrente 0 – 59 Jahre UIR (ein Leben lang) | C10: je 10 | D10: =ROUND(Tarifgruppen!D9*(1-Maklertarif!$J$1),3) -> 0.751 | E10: =ROUND(Tarifgruppen!E9*(1-Maklertarif!$J$1),3) -> 1.226 | F10: =ROUND(Tarifgruppen!I9*(1-Maklertarif!$J$1),3) -> 0.342 | G10: =ROUND(Tarifgruppen!J9*(1-Maklertarif!$J$1),3) -> 0
D11: =ROUND(Tarifgruppen!D10*(1-Maklertarif!$J$1),3) -> 0 | E11: =ROUND(Tarifgruppen!E10*(1-Maklertarif!$J$1),3) -> 0 | F11: =ROUND(Tarifgruppen!I10*(1-Maklertarif!$J$1),3) -> 0 | G11: =ROUND(Tarifgruppen!J10*(1-Maklertarif!$J$1),3) -> 0
B12: Tod UT | C12: je 1.000 | D12: =ROUND(Tarifgruppen!D11*(1-Maklertarif!$J$1),3) -> 0.494 | E12: =ROUND(Tarifgruppen!E11*(1-Maklertarif!$J$1),3) -> 0.627 | F12: =ROUND(Tarifgruppen!J11*(1-Maklertarif!$J$1),3) -> 0.323
B13: Unfallkrankenhaustagegeld UKT | C13: je 1 | D13: =ROUND(Tarifgruppen!D12*(1-Maklertarif!$J$1),3) -> 0.333 | E13: =ROUND(Tarifgruppen!E12*(1-Maklertarif!$J$1),3) -> 0.437 | F13: =ROUND(Tarifgruppen!J12*(1-Maklertarif!$J$1),3) -> 0.2
B14: Genesungsgeld GG | C14: je 1 | D14: =ROUND(Tarifgruppen!D13*(1-Maklertarif!$J$1),3) -> 0.323 | E14: =ROUND(Tarifgruppen!E13*(1-Maklertarif!$J$1),3) -> 0.428 | F14: =ROUND(Tarifgruppen!J13*(1-Maklertarif!$J$1),3) -> 0.19
A15: Tagegeld | B15: ab 8. Tag | C15: je 1 | D15: =ROUND(Tarifgruppen!D14*(1-Maklertarif!$J$1),3) -> 4.237 | E15: =ROUND(Tarifgruppen!E14*(1-Maklertarif!$J$1),3) -> 6.593
A16: Tagegeld | B16: ab 15. Tag | C16: je 1 | D16: =ROUND(Tarifgruppen!D15*(1-Maklertarif!$J$1),3) -> 3.867 | E16: =ROUND(Tarifgruppen!E15*(1-Maklertarif!$J$1),3) -> 4.902
A17: Tagegeld | B17: ab 29. Tag | C17: je 1 | D17: =ROUND(Tarifgruppen!D16*(1-Maklertarif!$J$1),3) -> 2.803 | E17: =ROUND(Tarifgruppen!E16*(1-Maklertarif!$J$1),3) -> 4.161
A18: Tagegeld | B18: ab 43. Tag | C18: je 1 | D18: =ROUND(Tarifgruppen!D17*(1-Maklertarif!$J$1),3) -> 2.651 | E18: =ROUND(Tarifgruppen!E17*(1-Maklertarif!$J$1),3) -> 3.905
B19: Tagegeld Spezial TGsp | C19: je 1 | D19: =ROUND(Tarifgruppen!D18*(1-Maklertarif!$J$1),3) -> 3.867 | E19: =ROUND(Tarifgruppen!E18*(1-Maklertarif!$J$1),3) -> 4.902 | F19: =ROUND(Tarifgruppen!I18*(1-Maklertarif!$J$1),3) -> 3.686
B20: Kosmetische Operationen KOP | C20: je 5.000 | D20: =ROUND(Tarifgruppen!D19*(1-Maklertarif!$J$1),3) -> 6.365 | E20: =ROUND(Tarifgruppen!E19*(1-Maklertarif!$J$1),3) -> 6.365 | F20: =ROUND(Tarifgruppen!I19*(1-Maklertarif!$J$1),3) -> 3.183 | G20: =ROUND(Tarifgruppen!J19*(1-Maklertarif!$J$1),3) -> 6.365
B21: Bergungskosten BK bis 10.000 beitragsfrei | C21: je 5.000 | D21: =ROUND(Tarifgruppen!D20*(1-Maklertarif!$J$1),3) -> 4.56 | E21: =ROUND(Tarifgruppen!E20*(1-Maklertarif!$J$1),3) -> 4.56 | F21: =ROUND(Tarifgruppen!I20*(1-Maklertarif!$J$1),3) -> 2.28 | G21: =ROUND(Tarifgruppen!J20*(1-Maklertarif!$J$1),3) -> 4.56
B22: Baustein CuraPlus | D22: =ROUND(Tarifgruppen!D21*(1-Maklertarif!$J$1),3) -> 57 | E22: =ROUND(Tarifgruppen!E21*(1-Maklertarif!$J$1),3) -> 57 | F22: =ROUND(Tarifgruppen!I21*(1-Maklertarif!$J$1),3) -> 14.25 | G22: =ROUND(Tarifgruppen!J21*(1-Maklertarif!$J$1),3) -> 114
B26: Gefahrengruppe Senioren für Einzelunfall
B27: ohne Integralfranchise | I27: mit Integralfranchise | R27: URP 60 | T27: URP lebenslang
A28: Alter | B28: ohne Progression | C28: 350 Progression | D28: 600 Progression | E28: Unfalltod | F28: KHTG | G28: GG | H28: TG spez | I28: ohne Progression | J28: 350 Progression | K28: 600 Progression | L28: Unfalltod | M28: KHTG | N28: GG | O28: TG spez | Q28: Alter | R28: ohne Passivdynamik | S28: mit Passivdynamik | T28: ohne Passivdynamik | U28: mit Passivdynamik
Q29: 1 | R29: =ROUND('Tarif URP'!B10*(1-Maklertarif!$J$1),3) -> 1.017 | S29: =ROUND('Tarif URP'!C10*(1-Maklertarif!$J$1),3) -> 1.378 | T29: =ROUND('Tarif URP'!D10*(1-Maklertarif!$J$1),3) -> 1.178 | U29: =ROUND('Tarif URP'!E10*(1-Maklertarif!$J$1),3) -> 1.748
Q30: 2 | R30: =ROUND('Tarif URP'!B11*(1-Maklertarif!$J$1),3) -> 1.017 | S30: =ROUND('Tarif URP'!C11*(1-Maklertarif!$J$1),3) -> 1.378 | T30: =ROUND('Tarif URP'!D11*(1-Maklertarif!$J$1),3) -> 1.178 | U30: =ROUND('Tarif URP'!E11*(1-Maklertarif!$J$1),3) -> 1.748
Q31: 3 | R31: =ROUND('Tarif URP'!B12*(1-Maklertarif!$J$1),3) -> 1.017 | S31: =ROUND('Tarif URP'!C12*(1-Maklertarif!$J$1),3) -> 1.378 | T31: =ROUND('Tarif URP'!D12*(1-Maklertarif!$J$1),3) -> 1.178 | U31: =ROUND('Tarif URP'!E12*(1-Maklertarif!$J$1),3) -> 1.748
A32: 67 | B32: =ROUND('Tarifgruppe S'!B17*(1-Maklertarif!$J$1),3) -> 0.751 | C32: =ROUND('Tarifgruppe S'!C17*(1-Maklertarif!$J$1),3) -> 1.064 | D32: =ROUND('Tarifgruppe S'!D17*(1-Maklertarif!$J$1),3) -> 1.311 | E32: =ROUND('Tarifgruppe S'!E17*(1-Maklertarif!$J$1),3) -> 0.589 | F32: =ROUND('Tarifgruppe S'!F17*(1-Maklertarif!$J$1),3) -> 0.399 | G32: =ROUND('Tarifgruppe S'!G17*(1-Maklertarif!$J$1),3) -> 0.39 | H32: =ROUND('Tarifgruppe S'!H17*(1-Maklertarif!$J$1),3) -> 4.636 | I32: =ROUND('Tarifgruppe S'!I17*(1-Maklertarif!$J$1),3) -> 0.627 | J32: =ROUND('Tarifgruppe S'!J17*(1-Maklertarif!$J$1),3) -> 0.884 | K32: =ROUND('Tarifgruppe S'!K17*(1-Maklertarif!$J$1),3) -> 1.093 | L32: =ROUND('Tarifgruppe S'!L17*(1-Maklertarif!$J$1),3) -> 0.494 | M32: =ROUND('Tarifgruppe S'!M17*(1-Maklertarif!$J$1),3) -> 0.333 | N32: =ROUND('Tarifgruppe S'!N17*(1-Maklertarif!$J$1),3) -> 0.323 | O32: =ROUND('Tarifgruppe S'!O17*(1-Maklertarif!$J$1),3) -> 3.867 | Q32: 4 | R32: =ROUND('Tarif URP'!B13*(1-Maklertarif!$J$1),3) -> 1.017 | S32: =ROUND('Tarif URP'!C13*(1-Maklertarif!$J$1),3) -> 1.378 | T32: =ROUND('Tarif URP'!D13*(1-Maklertarif!$J$1),3) -> 1.178 | U32: =ROUND('Tarif URP'!E13*(1-Maklertarif!$J$1),3) -> 1.748
A33: 68 | B33: =ROUND('Tarifgruppe S'!B18*(1-Maklertarif!$J$1),3) -> 0.789 | C33: =ROUND('Tarifgruppe S'!C18*(1-Maklertarif!$J$1),3) -> 1.112 | D33: =ROUND('Tarifgruppe S'!D18*(1-Maklertarif!$J$1),3) -> 1.378 | E33: =ROUND('Tarifgruppe S'!E18*(1-Maklertarif!$J$1),3) -> 0.627 | F33: =ROUND('Tarifgruppe S'!F18*(1-Maklertarif!$J$1),3) -> 0.418 | G33: =ROUND('Tarifgruppe S'!G18*(1-Maklertarif!$J$1),3) -> 0.409 | H33: =ROUND('Tarifgruppe S'!H18*(1-Maklertarif!$J$1),3) -> 4.874 | I33: =ROUND('Tarifgruppe S'!I18*(1-Maklertarif!$J$1),3) -> 0.656 | J33: =ROUND('Tarifgruppe S'!J18*(1-Maklertarif!$J$1),3) -> 0.931 | K33: =ROUND('Tarifgruppe S'!K18*(1-Maklertarif!$J$1),3) -> 1.15 | L33: =ROUND('Tarifgruppe S'!L18*(1-Maklertarif!$J$1),3) -> 0.523 | M33: =ROUND('Tarifgruppe S'!M18*(1-Maklertarif!$J$1),3) -> 0.352 | N33: =ROUND('Tarifgruppe S'!N18*(1-Maklertarif!$J$1),3) -> 0.342 | O33: =ROUND('Tarifgruppe S'!O18*(1-Maklertarif!$J$1),3) -> 4.057 | Q33: 5 | R33: =ROUND('Tarif URP'!B14*(1-Maklertarif!$J$1),3) -> 1.017 | S33: =ROUND('Tarif URP'!C14*(1-Maklertarif!$J$1),3) -> 1.378 | T33: =ROUND('Tarif URP'!D14*(1-Maklertarif!$J$1),3) -> 1.178 | U33: =ROUND('Tarif URP'!E14*(1-Maklertarif!$J$1),3) -> 1.748
A34: 69 | B34: =ROUND('Tarifgruppe S'!B19*(1-Maklertarif!$J$1),3) -> 0.827 | C34: =ROUND('Tarifgruppe S'!C19*(1-Maklertarif!$J$1),3) -> 1.169 | D34: =ROUND('Tarifgruppe S'!D19*(1-Maklertarif!$J$1),3) -> 1.444 | E34: =ROUND('Tarifgruppe S'!E19*(1-Maklertarif!$J$1),3) -> 0.656 | F34: =ROUND('Tarifgruppe S'!F19*(1-Maklertarif!$J$1),3) -> 0.437 | G34: =ROUND('Tarifgruppe S'!G19*(1-Maklertarif!$J$1),3) -> 0.428 | H34: =ROUND('Tarifgruppe S'!H19*(1-Maklertarif!$J$1),3) -> 5.111 | I34: =ROUND('Tarifgruppe S'!I19*(1-Maklertarif!$J$1),3) -> 0.694 | J34: =ROUND('Tarifgruppe S'!J19*(1-Maklertarif!$J$1),3) -> 0.979 | K34: =ROUND('Tarifgruppe S'!K19*(1-Maklertarif!$J$1),3) -> 1.207 | L34: =ROUND('Tarifgruppe S'!L19*(1-Maklertarif!$J$1),3) -> 0.542 | M34: =ROUND('Tarifgruppe S'!M19*(1-Maklertarif!$J$1),3) -> 0.361 | N34: =ROUND('Tarifgruppe S'!N19*(1-Maklertarif!$J$1),3) -> 0.352 | O34: =ROUND('Tarifgruppe S'!O19*(1-Maklertarif!$J$1),3) -> 4.266 | Q34: 6 | R34: =ROUND('Tarif URP'!B15*(1-Maklertarif!$J$1),3) -> 1.017 | S34: =ROUND('Tarif URP'!C15*(1-Maklertarif!$J$1),3) -> 1.378 | T34: =ROUND('Tarif URP'!D15*(1-Maklertarif!$J$1),3) -> 1.178 | U34: =ROUND('Tarif URP'!E15*(1-Maklertarif!$J$1),3) -> 1.748
A35: 70 | B35: =ROUND('Tarifgruppe S'!B20*(1-Maklertarif!$J$1),3) -> 0.874 | C35: =ROUND('Tarifgruppe S'!C20*(1-Maklertarif!$J$1),3) -> 1.226 | D35: =ROUND('Tarifgruppe S'!D20*(1-Maklertarif!$J$1),3) -> 1.52 | E35: =ROUND('Tarifgruppe S'!E20*(1-Maklertarif!$J$1),3) -> 0.684 | F35: =ROUND('Tarifgruppe S'!F20*(1-Maklertarif!$J$1),3) -> 0.456 | G35: =ROUND('Tarifgruppe S'!G20*(1-Maklertarif!$J$1),3) -> 0.447 | H35: =ROUND('Tarifgruppe S'!H20*(1-Maklertarif!$J$1),3) -> 5.368 | I35: =ROUND('Tarifgruppe S'!I20*(1-Maklertarif!$J$1),3) -> 0.732 | J35: =ROUND('Tarifgruppe S'!J20*(1-Maklertarif!$J$1),3) -> 1.026 | K35: =ROUND('Tarifgruppe S'!K20*(1-Maklertarif!$J$1),3) -> 1.264 | L35: =ROUND('Tarifgruppe S'!L20*(1-Maklertarif!$J$1),3) -> 0.57 | M35: =ROUND('Tarifgruppe S'!M20*(1-Maklertarif!$J$1),3) -> 0.38 | N35: =ROUND('Tarifgruppe S'!N20*(1-Maklertarif!$J$1),3) -> 0.371 | O35: =ROUND('Tarifgruppe S'!O20*(1-Maklertarif!$J$1),3) -> 4.475 | Q35: 7 | R35: =ROUND('Tarif URP'!B16*(1-Maklertarif!$J$1),3) -> 1.017 | S35: =ROUND('Tarif URP'!C16*(1-Maklertarif!$J$1),3) -> 1.378 | T35: =ROUND('Tarif URP'!D16*(1-Maklertarif!$J$1),3) -> 1.178 | U35: =ROUND('Tarif URP'!E16*(1-Maklertarif!$J$1),3) -> 1.748
A36: 71 | B36: =ROUND('Tarifgruppe S'!B21*(1-Maklertarif!$J$1),3) -> 0.912 | C36: =ROUND('Tarifgruppe S'!C21*(1-Maklertarif!$J$1),3) -> 1.292 | D36: =ROUND('Tarifgruppe S'!D21*(1-Maklertarif!$J$1),3) -> 1.596 | E36: =ROUND('Tarifgruppe S'!E21*(1-Maklertarif!$J$1),3) -> 0.722 | F36: =ROUND('Tarifgruppe S'!F21*(1-Maklertarif!$J$1),3) -> 0.485 | G36: =ROUND('Tarifgruppe S'!G21*(1-Maklertarif!$J$1),3) -> 0.475 | H36: =ROUND('Tarifgruppe S'!H21*(1-Maklertarif!$J$1),3) -> 5.643 | I36: =ROUND('Tarifgruppe S'!I21*(1-Maklertarif!$J$1),3) -> 0.76 | J36: =ROUND('Tarifgruppe S'!J21*(1-Maklertarif!$J$1),3) -> 1.074 | K36: =ROUND('Tarifgruppe S'!K21*(1-Maklertarif!$J$1),3) -> 1.33 | L36: =ROUND('Tarifgruppe S'!L21*(1-Maklertarif!$J$1),3) -> 0.599 | M36: =ROUND('Tarifgruppe S'!M21*(1-Maklertarif!$J$1),3) -> 0.399 | N36: =ROUND('Tarifgruppe S'!N21*(1-Maklertarif!$J$1),3) -> 0.39 | O36: =ROUND('Tarifgruppe S'!O21*(1-Maklertarif!$J$1),3) -> 4.703 | Q36: 8 | R36: =ROUND('Tarif URP'!B17*(1-Maklertarif!$J$1),3) -> 1.017 | S36: =ROUND('Tarif URP'!C17*(1-Maklertarif!$J$1),3) -> 1.378 | T36: =ROUND('Tarif URP'!D17*(1-Maklertarif!$J$1),3) -> 1.178 | U36: =ROUND('Tarif URP'!E17*(1-Maklertarif!$J$1),3) -> 1.748
A37: 72 | B37: =ROUND('Tarifgruppe S'!B22*(1-Maklertarif!$J$1),3) -> 0.96 | C37: =ROUND('Tarifgruppe S'!C22*(1-Maklertarif!$J$1),3) -> 1.359 | D37: =ROUND('Tarifgruppe S'!D22*(1-Maklertarif!$J$1),3) -> 1.672 | E37: =ROUND('Tarifgruppe S'!E22*(1-Maklertarif!$J$1),3) -> 0.76 | F37: =ROUND('Tarifgruppe S'!F22*(1-Maklertarif!$J$1),3) -> 0.504 | G37: =ROUND('Tarifgruppe S'!G22*(1-Maklertarif!$J$1),3) -> 0.494 | H37: =ROUND('Tarifgruppe S'!H22*(1-Maklertarif!$J$1),3) -> 5.919 | I37: =ROUND('Tarifgruppe S'!I22*(1-Maklertarif!$J$1),3) -> 0.798 | J37: =ROUND('Tarifgruppe S'!J22*(1-Maklertarif!$J$1),3) -> 1.131 | K37: =ROUND('Tarifgruppe S'!K22*(1-Maklertarif!$J$1),3) -> 1.397 | L37: =ROUND('Tarifgruppe S'!L22*(1-Maklertarif!$J$1),3) -> 0.627 | M37: =ROUND('Tarifgruppe S'!M22*(1-Maklertarif!$J$1),3) -> 0.418 | N37: =ROUND('Tarifgruppe S'!N22*(1-Maklertarif!$J$1),3) -> 0.409 | O37: =ROUND('Tarifgruppe S'!O22*(1-Maklertarif!$J$1),3) -> 4.931 | Q37: 9 | R37: =ROUND('Tarif URP'!B18*(1-Maklertarif!$J$1),3) -> 1.017 | S37: =ROUND('Tarif URP'!C18*(1-Maklertarif!$J$1),3) -> 1.378 | T37: =ROUND('Tarif URP'!D18*(1-Maklertarif!$J$1),3) -> 1.178 | U37: =ROUND('Tarif URP'!E18*(1-Maklertarif!$J$1),3) -> 1.748
A38: 73 | B38: =ROUND('Tarifgruppe S'!B23*(1-Maklertarif!$J$1),3) -> 1.007 | C38: =ROUND('Tarifgruppe S'!C23*(1-Maklertarif!$J$1),3) -> 1.425 | D38: =ROUND('Tarifgruppe S'!D23*(1-Maklertarif!$J$1),3) -> 1.758 | E38: =ROUND('Tarifgruppe S'!E23*(1-Maklertarif!$J$1),3) -> 0.798 | F38: =ROUND('Tarifgruppe S'!F23*(1-Maklertarif!$J$1),3) -> 0.532 | G38: =ROUND('Tarifgruppe S'!G23*(1-Maklertarif!$J$1),3) -> 0.523 | H38: =ROUND('Tarifgruppe S'!H23*(1-Maklertarif!$J$1),3) -> 6.223 | I38: =ROUND('Tarifgruppe S'!I23*(1-Maklertarif!$J$1),3) -> 0.846 | J38: =ROUND('Tarifgruppe S'!J23*(1-Maklertarif!$J$1),3) -> 1.188 | K38: =ROUND('Tarifgruppe S'!K23*(1-Maklertarif!$J$1),3) -> 1.463 | L38: =ROUND('Tarifgruppe S'!L23*(1-Maklertarif!$J$1),3) -> 0.665 | M38: =ROUND('Tarifgruppe S'!M23*(1-Maklertarif!$J$1),3) -> 0.447 | N38: =ROUND('Tarifgruppe S'!N23*(1-Maklertarif!$J$1),3) -> 0.437 | O38: =ROUND('Tarifgruppe S'!O23*(1-Maklertarif!$J$1),3) -> 5.178 | Q38: 10 | R38: =ROUND('Tarif URP'!B19*(1-Maklertarif!$J$1),3) -> 1.017 | S38: =ROUND('Tarif URP'!C19*(1-Maklertarif!$J$1),3) -> 1.378 | T38: =ROUND('Tarif URP'!D19*(1-Maklertarif!$J$1),3) -> 1.178 | U38: =ROUND('Tarif URP'!E19*(1-Maklertarif!$J$1),3) -> 1.748
A39: 74 | B39: =ROUND('Tarifgruppe S'!B24*(1-Maklertarif!$J$1),3) -> 1.064 | C39: =ROUND('Tarifgruppe S'!C24*(1-Maklertarif!$J$1),3) -> 1.492 | D39: =ROUND('Tarifgruppe S'!D24*(1-Maklertarif!$J$1),3) -> 1.843 | E39: =ROUND('Tarifgruppe S'!E24*(1-Maklertarif!$J$1),3) -> 0.836 | F39: =ROUND('Tarifgruppe S'!F24*(1-Maklertarif!$J$1),3) -> 0.561 | G39: =ROUND('Tarifgruppe S'!G24*(1-Maklertarif!$J$1),3) -> 0.542 | H39: =ROUND('Tarifgruppe S'!H24*(1-Maklertarif!$J$1),3) -> 6.527 | I39: =ROUND('Tarifgruppe S'!I24*(1-Maklertarif!$J$1),3) -> 0.884 | J39: =ROUND('Tarifgruppe S'!J24*(1-Maklertarif!$J$1),3) -> 1.245 | K39: =ROUND('Tarifgruppe S'!K24*(1-Maklertarif!$J$1),3) -> 1.539 | L39: =ROUND('Tarifgruppe S'!L24*(1-Maklertarif!$J$1),3) -> 0.694 | M39: =ROUND('Tarifgruppe S'!M24*(1-Maklertarif!$J$1),3) -> 0.466 | N39: =ROUND('Tarifgruppe S'!N24*(1-Maklertarif!$J$1),3) -> 0.456 | O39: =ROUND('Tarifgruppe S'!O24*(1-Maklertarif!$J$1),3) -> 5.444 | Q39: 11 | R39: =ROUND('Tarif URP'!B20*(1-Maklertarif!$J$1),3) -> 1.017 | S39: =ROUND('Tarif URP'!C20*(1-Maklertarif!$J$1),3) -> 1.378 | T39: =ROUND('Tarif URP'!D20*(1-Maklertarif!$J$1),3) -> 1.178 | U39: =ROUND('Tarif URP'!E20*(1-Maklertarif!$J$1),3) -> 1.748
A40: 75 | B40: =ROUND('Tarifgruppe S'!B25*(1-Maklertarif!$J$1),3) -> 1.112 | C40: =ROUND('Tarifgruppe S'!C25*(1-Maklertarif!$J$1),3) -> 1.568 | D40: =ROUND('Tarifgruppe S'!D25*(1-Maklertarif!$J$1),3) -> 1.938 | E40: =ROUND('Tarifgruppe S'!E25*(1-Maklertarif!$J$1),3) -> 0.874 | F40: =ROUND('Tarifgruppe S'!F25*(1-Maklertarif!$J$1),3) -> 0.589 | G40: =ROUND('Tarifgruppe S'!G25*(1-Maklertarif!$J$1),3) -> 0.57 | H40: =ROUND('Tarifgruppe S'!H25*(1-Maklertarif!$J$1),3) -> 6.859 | I40: =ROUND('Tarifgruppe S'!I25*(1-Maklertarif!$J$1),3) -> 0.931 | J40: =ROUND('Tarifgruppe S'!J25*(1-Maklertarif!$J$1),3) -> 1.311 | K40: =ROUND('Tarifgruppe S'!K25*(1-Maklertarif!$J$1),3) -> 1.615 | L40: =ROUND('Tarifgruppe S'!L25*(1-Maklertarif!$J$1),3) -> 0.732 | M40: =ROUND('Tarifgruppe S'!M25*(1-Maklertarif!$J$1),3) -> 0.485 | N40: =ROUND('Tarifgruppe S'!N25*(1-Maklertarif!$J$1),3) -> 0.475 | O40: =ROUND('Tarifgruppe S'!O25*(1-Maklertarif!$J$1),3) -> 5.71 | Q40: 12 | R40: =ROUND('Tarif URP'!B21*(1-Maklertarif!$J$1),3) -> 1.017 | S40: =ROUND('Tarif URP'!C21*(1-Maklertarif!$J$1),3) -> 1.378 | T40: =ROUND('Tarif URP'!D21*(1-Maklertarif!$J$1),3) -> 1.178 | U40: =ROUND('Tarif URP'!E21*(1-Maklertarif!$J$1),3) -> 1.748
A41: 76 | B41: =ROUND('Tarifgruppe S'!B26*(1-Maklertarif!$J$1),3) -> 1.169 | C41: =ROUND('Tarifgruppe S'!C26*(1-Maklertarif!$J$1),3) -> 1.644 | D41: =ROUND('Tarifgruppe S'!D26*(1-Maklertarif!$J$1),3) -> 2.033 | E41: =ROUND('Tarifgruppe S'!E26*(1-Maklertarif!$J$1),3) -> 0.922 | F41: =ROUND('Tarifgruppe S'!F26*(1-Maklertarif!$J$1),3) -> 0.618 | G41: =ROUND('Tarifgruppe S'!G26*(1-Maklertarif!$J$1),3) -> 0.599 | H41: =ROUND('Tarifgruppe S'!H26*(1-Maklertarif!$J$1),3) -> 7.201 | I41: =ROUND('Tarifgruppe S'!I26*(1-Maklertarif!$J$1),3) -> 0.979 | J41: =ROUND('Tarifgruppe S'!J26*(1-Maklertarif!$J$1),3) -> 1.368 | K41: =ROUND('Tarifgruppe S'!K26*(1-Maklertarif!$J$1),3) -> 1.691 | L41: =ROUND('Tarifgruppe S'!L26*(1-Maklertarif!$J$1),3) -> 0.77 | M41: =ROUND('Tarifgruppe S'!M26*(1-Maklertarif!$J$1),3) -> 0.513 | N41: =ROUND('Tarifgruppe S'!N26*(1-Maklertarif!$J$1),3) -> 0.504 | O41: =ROUND('Tarifgruppe S'!O26*(1-Maklertarif!$J$1),3) -> 5.995 | Q41: 13 | R41: =ROUND('Tarif URP'!B22*(1-Maklertarif!$J$1),3) -> 1.017 | S41: =ROUND('Tarif URP'!C22*(1-Maklertarif!$J$1),3) -> 1.378 | T41: =ROUND('Tarif URP'!D22*(1-Maklertarif!$J$1),3) -> 1.178 | U41: =ROUND('Tarif URP'!E22*(1-Maklertarif!$J$1),3) -> 1.748
A42: 77 | B42: =ROUND('Tarifgruppe S'!B27*(1-Maklertarif!$J$1),3) -> 1.226 | C42: =ROUND('Tarifgruppe S'!C27*(1-Maklertarif!$J$1),3) -> 1.729 | D42: =ROUND('Tarifgruppe S'!D27*(1-Maklertarif!$J$1),3) -> 2.138 | E42: =ROUND('Tarifgruppe S'!E27*(1-Maklertarif!$J$1),3) -> 0.969 | F42: =ROUND('Tarifgruppe S'!F27*(1-Maklertarif!$J$1),3) -> 0.646 | G42: =ROUND('Tarifgruppe S'!G27*(1-Maklertarif!$J$1),3) -> 0.627 | H42: =ROUND('Tarifgruppe S'!H27*(1-Maklertarif!$J$1),3) -> 7.562 | I42: =ROUND('Tarifgruppe S'!I27*(1-Maklertarif!$J$1),3) -> 1.026 | J42: =ROUND('Tarifgruppe S'!J27*(1-Maklertarif!$J$1),3) -> 1.444 | K42: =ROUND('Tarifgruppe S'!K27*(1-Maklertarif!$J$1),3) -> 1.777 | L42: =ROUND('Tarifgruppe S'!L27*(1-Maklertarif!$J$1),3) -> 0.808 | M42: =ROUND('Tarifgruppe S'!M27*(1-Maklertarif!$J$1),3) -> 0.542 | N42: =ROUND('Tarifgruppe S'!N27*(1-Maklertarif!$J$1),3) -> 0.523 | O42: =ROUND('Tarifgruppe S'!O27*(1-Maklertarif!$J$1),3) -> 6.299 | Q42: 14 | R42: =ROUND('Tarif URP'!B23*(1-Maklertarif!$J$1),3) -> 1.017 | S42: =ROUND('Tarif URP'!C23*(1-Maklertarif!$J$1),3) -> 1.378 | T42: =ROUND('Tarif URP'!D23*(1-Maklertarif!$J$1),3) -> 1.178 | U42: =ROUND('Tarif URP'!E23*(1-Maklertarif!$J$1),3) -> 1.748
A43: 78 | B43: =ROUND('Tarifgruppe S'!B28*(1-Maklertarif!$J$1),3) -> 1.292 | C43: =ROUND('Tarifgruppe S'!C28*(1-Maklertarif!$J$1),3) -> 1.815 | D43: =ROUND('Tarifgruppe S'!D28*(1-Maklertarif!$J$1),3) -> 2.242 | E43: =ROUND('Tarifgruppe S'!E28*(1-Maklertarif!$J$1),3) -> 1.017 | F43: =ROUND('Tarifgruppe S'!F28*(1-Maklertarif!$J$1),3) -> 0.684 | G43: =ROUND('Tarifgruppe S'!G28*(1-Maklertarif!$J$1),3) -> 0.665 | H43: =ROUND('Tarifgruppe S'!H28*(1-Maklertarif!$J$1),3) -> 7.933 | I43: =ROUND('Tarifgruppe S'!I28*(1-Maklertarif!$J$1),3) -> 1.074 | J43: =ROUND('Tarifgruppe S'!J28*(1-Maklertarif!$J$1),3) -> 1.511 | K43: =ROUND('Tarifgruppe S'!K28*(1-Maklertarif!$J$1),3) -> 1.862 | L43: =ROUND('Tarifgruppe S'!L28*(1-Maklertarif!$J$1),3) -> 0.846 | M43: =ROUND('Tarifgruppe S'!M28*(1-Maklertarif!$J$1),3) -> 0.57 | N43: =ROUND('Tarifgruppe S'!N28*(1-Maklertarif!$J$1),3) -> 0.551 | O43: =ROUND('Tarifgruppe S'!O28*(1-Maklertarif!$J$1),3) -> 6.612 | Q43: 15 | R43: =ROUND('Tarif URP'!B24*(1-Maklertarif!$J$1),3) -> 1.017 | S43: =ROUND('Tarif URP'!C24*(1-Maklertarif!$J$1),3) -> 1.378 | T43: =ROUND('Tarif URP'!D24*(1-Maklertarif!$J$1),3) -> 1.178 | U43: =ROUND('Tarif URP'!E24*(1-Maklertarif!$J$1),3) -> 1.748
A44: 79 | B44: =ROUND('Tarifgruppe S'!B29*(1-Maklertarif!$J$1),3) -> 1.349 | C44: =ROUND('Tarifgruppe S'!C29*(1-Maklertarif!$J$1),3) -> 1.91 | D44: =ROUND('Tarifgruppe S'!D29*(1-Maklertarif!$J$1),3) -> 2.356 | E44: =ROUND('Tarifgruppe S'!E29*(1-Maklertarif!$J$1),3) -> 1.064 | F44: =ROUND('Tarifgruppe S'!F29*(1-Maklertarif!$J$1),3) -> 0.713 | G44: =ROUND('Tarifgruppe S'!G29*(1-Maklertarif!$J$1),3) -> 0.694 | H44: =ROUND('Tarifgruppe S'!H29*(1-Maklertarif!$J$1),3) -> 8.332 | I44: =ROUND('Tarifgruppe S'!I29*(1-Maklertarif!$J$1),3) -> 1.131 | J44: =ROUND('Tarifgruppe S'!J29*(1-Maklertarif!$J$1),3) -> 1.587 | K44: =ROUND('Tarifgruppe S'!K29*(1-Maklertarif!$J$1),3) -> 1.957 | L44: =ROUND('Tarifgruppe S'!L29*(1-Maklertarif!$J$1),3) -> 0.884 | M44: =ROUND('Tarifgruppe S'!M29*(1-Maklertarif!$J$1),3) -> 0.599 | N44: =ROUND('Tarifgruppe S'!N29*(1-Maklertarif!$J$1),3) -> 0.58 | O44: =ROUND('Tarifgruppe S'!O29*(1-Maklertarif!$J$1),3) -> 6.945 | Q44: 16 | R44: =ROUND('Tarif URP'!B25*(1-Maklertarif!$J$1),3) -> 1.017 | S44: =ROUND('Tarif URP'!C25*(1-Maklertarif!$J$1),3) -> 1.378 | T44: =ROUND('Tarif URP'!D25*(1-Maklertarif!$J$1),3) -> 1.178 | U44: =ROUND('Tarif URP'!E25*(1-Maklertarif!$J$1),3) -> 1.748
A45: 80 | B45: =ROUND('Tarifgruppe S'!B30*(1-Maklertarif!$J$1),3) -> 1.425 | C45: =ROUND('Tarifgruppe S'!C30*(1-Maklertarif!$J$1),3) -> 2.005 | D45: =ROUND('Tarifgruppe S'!D30*(1-Maklertarif!$J$1),3) -> 2.47 | E45: =ROUND('Tarifgruppe S'!E30*(1-Maklertarif!$J$1),3) -> 1.121 | F45: =ROUND('Tarifgruppe S'!F30*(1-Maklertarif!$J$1),3) -> 0.751 | G45: =ROUND('Tarifgruppe S'!G30*(1-Maklertarif!$J$1),3) -> 0.732 | H45: =ROUND('Tarifgruppe S'!H30*(1-Maklertarif!$J$1),3) -> 8.75 | I45: =ROUND('Tarifgruppe S'!I30*(1-Maklertarif!$J$1),3) -> 1.188 | J45: =ROUND('Tarifgruppe S'!J30*(1-Maklertarif!$J$1),3) -> 1.672 | K45: =ROUND('Tarifgruppe S'!K30*(1-Maklertarif!$J$1),3) -> 2.062 | L45: =ROUND('Tarifgruppe S'!L30*(1-Maklertarif!$J$1),3) -> 0.931 | M45: =ROUND('Tarifgruppe S'!M30*(1-Maklertarif!$J$1),3) -> 0.627 | N45: =ROUND('Tarifgruppe S'!N30*(1-Maklertarif!$J$1),3) -> 0.608 | O45: =ROUND('Tarifgruppe S'!O30*(1-Maklertarif!$J$1),3) -> 7.287 | Q45: 17 | R45: =ROUND('Tarif URP'!B26*(1-Maklertarif!$J$1),3) -> 1.017 | S45: =ROUND('Tarif URP'!C26*(1-Maklertarif!$J$1),3) -> 1.378 | T45: =ROUND('Tarif URP'!D26*(1-Maklertarif!$J$1),3) -> 1.178 | U45: =ROUND('Tarif URP'!E26*(1-Maklertarif!$J$1),3) -> 1.748
A46: 81 | B46: =ROUND('Tarifgruppe S'!B31*(1-Maklertarif!$J$1),3) -> 1.492 | C46: =ROUND('Tarifgruppe S'!C31*(1-Maklertarif!$J$1),3) -> 2.1 | D46: =ROUND('Tarifgruppe S'!D31*(1-Maklertarif!$J$1),3) -> 2.594 | E46: =ROUND('Tarifgruppe S'!E31*(1-Maklertarif!$J$1),3) -> 1.178 | F46: =ROUND('Tarifgruppe S'!F31*(1-Maklertarif!$J$1),3) -> 0.789 | G46: =ROUND('Tarifgruppe S'!G31*(1-Maklertarif!$J$1),3) -> 0.77 | H46: =ROUND('Tarifgruppe S'!H31*(1-Maklertarif!$J$1),3) -> 9.187 | I46: =ROUND('Tarifgruppe S'!I31*(1-Maklertarif!$J$1),3) -> 1.245 | J46: =ROUND('Tarifgruppe S'!J31*(1-Maklertarif!$J$1),3) -> 1.748 | K46: =ROUND('Tarifgruppe S'!K31*(1-Maklertarif!$J$1),3) -> 2.157 | L46: =ROUND('Tarifgruppe S'!L31*(1-Maklertarif!$J$1),3) -> 0.979 | M46: =ROUND('Tarifgruppe S'!M31*(1-Maklertarif!$J$1),3) -> 0.656 | N46: =ROUND('Tarifgruppe S'!N31*(1-Maklertarif!$J$1),3) -> 0.637 | O46: =ROUND('Tarifgruppe S'!O31*(1-Maklertarif!$J$1),3) -> 7.657 | Q46: 18 | R46: =ROUND('Tarif URP'!B27*(1-Maklertarif!$J$1),3) -> 1.416 | S46: =ROUND('Tarif URP'!C27*(1-Maklertarif!$J$1),3) -> 1.729 | T46: =ROUND('Tarif URP'!D27*(1-Maklertarif!$J$1),3) -> 1.748 | U46: =ROUND('Tarif URP'!E27*(1-Maklertarif!$J$1),3) -> 2.499
A47: 82 | B47: =ROUND('Tarifgruppe S'!B32*(1-Maklertarif!$J$1),3) -> 1.568 | C47: =ROUND('Tarifgruppe S'!C32*(1-Maklertarif!$J$1),3) -> 2.204 | D47: =ROUND('Tarifgruppe S'!D32*(1-Maklertarif!$J$1),3) -> 2.727 | E47: =ROUND('Tarifgruppe S'!E32*(1-Maklertarif!$J$1),3) -> 1.235 | F47: =ROUND('Tarifgruppe S'!F32*(1-Maklertarif!$J$1),3) -> 0.827 | G47: =ROUND('Tarifgruppe S'!G32*(1-Maklertarif!$J$1),3) -> 0.808 | H47: =ROUND('Tarifgruppe S'!H32*(1-Maklertarif!$J$1),3) -> 9.643 | I47: =ROUND('Tarifgruppe S'!I32*(1-Maklertarif!$J$1),3) -> 1.302 | J47: =ROUND('Tarifgruppe S'!J32*(1-Maklertarif!$J$1),3) -> 1.843 | K47: =ROUND('Tarifgruppe S'!K32*(1-Maklertarif!$J$1),3) -> 2.271 | L47: =ROUND('Tarifgruppe S'!L32*(1-Maklertarif!$J$1),3) -> 1.026 | M47: =ROUND('Tarifgruppe S'!M32*(1-Maklertarif!$J$1),3) -> 0.684 | N47: =ROUND('Tarifgruppe S'!N32*(1-Maklertarif!$J$1),3) -> 0.675 | O47: =ROUND('Tarifgruppe S'!O32*(1-Maklertarif!$J$1),3) -> 8.037 | Q47: 19 | R47: =ROUND('Tarif URP'!B28*(1-Maklertarif!$J$1),3) -> 1.416 | S47: =ROUND('Tarif URP'!C28*(1-Maklertarif!$J$1),3) -> 1.729 | T47: =ROUND('Tarif URP'!D28*(1-Maklertarif!$J$1),3) -> 1.748 | U47: =ROUND('Tarif URP'!E28*(1-Maklertarif!$J$1),3) -> 2.499
A48: 83 | B48: =ROUND('Tarifgruppe S'!B33*(1-Maklertarif!$J$1),3) -> 1.644 | C48: =ROUND('Tarifgruppe S'!C33*(1-Maklertarif!$J$1),3) -> 2.318 | D48: =ROUND('Tarifgruppe S'!D33*(1-Maklertarif!$J$1),3) -> 2.86 | E48: =ROUND('Tarifgruppe S'!E33*(1-Maklertarif!$J$1),3) -> 1.292 | F48: =ROUND('Tarifgruppe S'!F33*(1-Maklertarif!$J$1),3) -> 0.865 | G48: =ROUND('Tarifgruppe S'!G33*(1-Maklertarif!$J$1),3) -> 0.846 | H48: =ROUND('Tarifgruppe S'!H33*(1-Maklertarif!$J$1),3) -> 10.127 | I48: =ROUND('Tarifgruppe S'!I33*(1-Maklertarif!$J$1),3) -> 1.368 | J48: =ROUND('Tarifgruppe S'!J33*(1-Maklertarif!$J$1),3) -> 1.929 | K48: =ROUND('Tarifgruppe S'!K33*(1-Maklertarif!$J$1),3) -> 2.385 | L48: =ROUND('Tarifgruppe S'!L33*(1-Maklertarif!$J$1),3) -> 1.083 | M48: =ROUND('Tarifgruppe S'!M33*(1-Maklertarif!$J$1),3) -> 0.722 | N48: =ROUND('Tarifgruppe S'!N33*(1-Maklertarif!$J$1),3) -> 0.703 | O48: =ROUND('Tarifgruppe S'!O33*(1-Maklertarif!$J$1),3) -> 8.436 | Q48: 20 | R48: =ROUND('Tarif URP'!B29*(1-Maklertarif!$J$1),3) -> 1.416 | S48: =ROUND('Tarif URP'!C29*(1-Maklertarif!$J$1),3) -> 1.729 | T48: =ROUND('Tarif URP'!D29*(1-Maklertarif!$J$1),3) -> 1.748 | U48: =ROUND('Tarif URP'!E29*(1-Maklertarif!$J$1),3) -> 2.499
A49: 84 | B49: =ROUND('Tarifgruppe S'!B34*(1-Maklertarif!$J$1),3) -> 1.729 | C49: =ROUND('Tarifgruppe S'!C34*(1-Maklertarif!$J$1),3) -> 2.432 | D49: =ROUND('Tarifgruppe S'!D34*(1-Maklertarif!$J$1),3) -> 3.002 | E49: =ROUND('Tarifgruppe S'!E34*(1-Maklertarif!$J$1),3) -> 1.359 | F49: =ROUND('Tarifgruppe S'!F34*(1-Maklertarif!$J$1),3) -> 0.912 | G49: =ROUND('Tarifgruppe S'!G34*(1-Maklertarif!$J$1),3) -> 0.893 | H49: =ROUND('Tarifgruppe S'!H34*(1-Maklertarif!$J$1),3) -> 10.631 | I49: =ROUND('Tarifgruppe S'!I34*(1-Maklertarif!$J$1),3) -> 1.444 | J49: =ROUND('Tarifgruppe S'!J34*(1-Maklertarif!$J$1),3) -> 2.024 | K49: =ROUND('Tarifgruppe S'!K34*(1-Maklertarif!$J$1),3) -> 2.499 | L49: =ROUND('Tarifgruppe S'!L34*(1-Maklertarif!$J$1),3) -> 1.131 | M49: =ROUND('Tarifgruppe S'!M34*(1-Maklertarif!$J$1),3) -> 0.76 | N49: =ROUND('Tarifgruppe S'!N34*(1-Maklertarif!$J$1),3) -> 0.741 | O49: =ROUND('Tarifgruppe S'!O34*(1-Maklertarif!$J$1),3) -> 8.864 | Q49: 21 | R49: =ROUND('Tarif URP'!B30*(1-Maklertarif!$J$1),3) -> 1.416 | S49: =ROUND('Tarif URP'!C30*(1-Maklertarif!$J$1),3) -> 1.729 | T49: =ROUND('Tarif URP'!D30*(1-Maklertarif!$J$1),3) -> 1.748 | U49: =ROUND('Tarif URP'!E30*(1-Maklertarif!$J$1),3) -> 2.499
A50: 85 | B50: =ROUND('Tarifgruppe S'!B35*(1-Maklertarif!$J$1),3) -> 1.815 | C50: =ROUND('Tarifgruppe S'!C35*(1-Maklertarif!$J$1),3) -> 2.556 | D50: =ROUND('Tarifgruppe S'!D35*(1-Maklertarif!$J$1),3) -> 3.154 | E50: =ROUND('Tarifgruppe S'!E35*(1-Maklertarif!$J$1),3) -> 1.425 | F50: =ROUND('Tarifgruppe S'!F35*(1-Maklertarif!$J$1),3) -> 0.96 | G50: =ROUND('Tarifgruppe S'!G35*(1-Maklertarif!$J$1),3) -> 0.931 | H50: =ROUND('Tarifgruppe S'!H35*(1-Maklertarif!$J$1),3) -> 11.163 | I50: =ROUND('Tarifgruppe S'!I35*(1-Maklertarif!$J$1),3) -> 1.511 | J50: =ROUND('Tarifgruppe S'!J35*(1-Maklertarif!$J$1),3) -> 2.128 | K50: =ROUND('Tarifgruppe S'!K35*(1-Maklertarif!$J$1),3) -> 2.622 | L50: =ROUND('Tarifgruppe S'!L35*(1-Maklertarif!$J$1),3) -> 1.188 | M50: =ROUND('Tarifgruppe S'!M35*(1-Maklertarif!$J$1),3) -> 0.798 | N50: =ROUND('Tarifgruppe S'!N35*(1-Maklertarif!$J$1),3) -> 0.779 | O50: =ROUND('Tarifgruppe S'!O35*(1-Maklertarif!$J$1),3) -> 9.301 | Q50: 22 | R50: =ROUND('Tarif URP'!B31*(1-Maklertarif!$J$1),3) -> 1.416 | S50: =ROUND('Tarif URP'!C31*(1-Maklertarif!$J$1),3) -> 1.729 | T50: =ROUND('Tarif URP'!D31*(1-Maklertarif!$J$1),3) -> 1.748 | U50: =ROUND('Tarif URP'!E31*(1-Maklertarif!$J$1),3) -> 2.499
A51: 86 | B51: =ROUND('Tarifgruppe S'!B36*(1-Maklertarif!$J$1),3) -> 1.9 | C51: =ROUND('Tarifgruppe S'!C36*(1-Maklertarif!$J$1),3) -> 2.679 | D51: =ROUND('Tarifgruppe S'!D36*(1-Maklertarif!$J$1),3) -> 3.306 | E51: =ROUND('Tarifgruppe S'!E36*(1-Maklertarif!$J$1),3) -> 1.501 | F51: =ROUND('Tarifgruppe S'!F36*(1-Maklertarif!$J$1),3) -> 1.007 | G51: =ROUND('Tarifgruppe S'!G36*(1-Maklertarif!$J$1),3) -> 0.979 | H51: =ROUND('Tarifgruppe S'!H36*(1-Maklertarif!$J$1),3) -> 11.723 | I51: =ROUND('Tarifgruppe S'!I36*(1-Maklertarif!$J$1),3) -> 1.587 | J51: =ROUND('Tarifgruppe S'!J36*(1-Maklertarif!$J$1),3) -> 2.233 | K51: =ROUND('Tarifgruppe S'!K36*(1-Maklertarif!$J$1),3) -> 2.755 | L51: =ROUND('Tarifgruppe S'!L36*(1-Maklertarif!$J$1),3) -> 1.245 | M51: =ROUND('Tarifgruppe S'!M36*(1-Maklertarif!$J$1),3) -> 0.836 | N51: =ROUND('Tarifgruppe S'!N36*(1-Maklertarif!$J$1),3) -> 0.817 | O51: =ROUND('Tarifgruppe S'!O36*(1-Maklertarif!$J$1),3) -> 9.766 | Q51: 23 | R51: =ROUND('Tarif URP'!B32*(1-Maklertarif!$J$1),3) -> 1.416 | S51: =ROUND('Tarif URP'!C32*(1-Maklertarif!$J$1),3) -> 1.729 | T51: =ROUND('Tarif URP'!D32*(1-Maklertarif!$J$1),3) -> 1.748 | U51: =ROUND('Tarif URP'!E32*(1-Maklertarif!$J$1),3) -> 2.499
A52: 87 | B52: =ROUND('Tarifgruppe S'!B37*(1-Maklertarif!$J$1),3) -> 2.005 | C52: =ROUND('Tarifgruppe S'!C37*(1-Maklertarif!$J$1),3) -> 2.812 | D52: =ROUND('Tarifgruppe S'!D37*(1-Maklertarif!$J$1),3) -> 3.477 | E52: =ROUND('Tarifgruppe S'!E37*(1-Maklertarif!$J$1),3) -> 1.577 | F52: =ROUND('Tarifgruppe S'!F37*(1-Maklertarif!$J$1),3) -> 1.055 | G52: =ROUND('Tarifgruppe S'!G37*(1-Maklertarif!$J$1),3) -> 1.026 | H52: =ROUND('Tarifgruppe S'!H37*(1-Maklertarif!$J$1),3) -> 12.312 | I52: =ROUND('Tarifgruppe S'!I37*(1-Maklertarif!$J$1),3) -> 1.663 | J52: =ROUND('Tarifgruppe S'!J37*(1-Maklertarif!$J$1),3) -> 2.347 | K52: =ROUND('Tarifgruppe S'!K37*(1-Maklertarif!$J$1),3) -> 2.898 | L52: =ROUND('Tarifgruppe S'!L37*(1-Maklertarif!$J$1),3) -> 1.311 | M52: =ROUND('Tarifgruppe S'!M37*(1-Maklertarif!$J$1),3) -> 0.874 | N52: =ROUND('Tarifgruppe S'!N37*(1-Maklertarif!$J$1),3) -> 0.855 | O52: =ROUND('Tarifgruppe S'!O37*(1-Maklertarif!$J$1),3) -> 10.26 | Q52: 24 | R52: =ROUND('Tarif URP'!B33*(1-Maklertarif!$J$1),3) -> 1.416 | S52: =ROUND('Tarif URP'!C33*(1-Maklertarif!$J$1),3) -> 1.729 | T52: =ROUND('Tarif URP'!D33*(1-Maklertarif!$J$1),3) -> 1.748 | U52: =ROUND('Tarif URP'!E33*(1-Maklertarif!$J$1),3) -> 2.499
A53: 88 | B53: =ROUND('Tarifgruppe S'!B38*(1-Maklertarif!$J$1),3) -> 2.1 | C53: =ROUND('Tarifgruppe S'!C38*(1-Maklertarif!$J$1),3) -> 2.955 | D53: =ROUND('Tarifgruppe S'!D38*(1-Maklertarif!$J$1),3) -> 3.648 | E53: =ROUND('Tarifgruppe S'!E38*(1-Maklertarif!$J$1),3) -> 1.653 | F53: =ROUND('Tarifgruppe S'!F38*(1-Maklertarif!$J$1),3) -> 1.112 | G53: =ROUND('Tarifgruppe S'!G38*(1-Maklertarif!$J$1),3) -> 1.083 | H53: =ROUND('Tarifgruppe S'!H38*(1-Maklertarif!$J$1),3) -> 12.93 | I53: =ROUND('Tarifgruppe S'!I38*(1-Maklertarif!$J$1),3) -> 1.748 | J53: =ROUND('Tarifgruppe S'!J38*(1-Maklertarif!$J$1),3) -> 2.461 | K53: =ROUND('Tarifgruppe S'!K38*(1-Maklertarif!$J$1),3) -> 3.04 | L53: =ROUND('Tarifgruppe S'!L38*(1-Maklertarif!$J$1),3) -> 1.378 | M53: =ROUND('Tarifgruppe S'!M38*(1-Maklertarif!$J$1),3) -> 0.922 | N53: =ROUND('Tarifgruppe S'!N38*(1-Maklertarif!$J$1),3) -> 0.903 | O53: =ROUND('Tarifgruppe S'!O38*(1-Maklertarif!$J$1),3) -> 10.773 | Q53: 25 | R53: =ROUND('Tarif URP'!B34*(1-Maklertarif!$J$1),3) -> 1.416 | S53: =ROUND('Tarif URP'!C34*(1-Maklertarif!$J$1),3) -> 1.729 | T53: =ROUND('Tarif URP'!D34*(1-Maklertarif!$J$1),3) -> 1.748 | U53: =ROUND('Tarif URP'!E34*(1-Maklertarif!$J$1),3) -> 2.499
A54: 89 | B54: =ROUND('Tarifgruppe S'!B39*(1-Maklertarif!$J$1),3) -> 2.204 | C54: =ROUND('Tarifgruppe S'!C39*(1-Maklertarif!$J$1),3) -> 3.107 | D54: =ROUND('Tarifgruppe S'!D39*(1-Maklertarif!$J$1),3) -> 3.829 | E54: =ROUND('Tarifgruppe S'!E39*(1-Maklertarif!$J$1),3) -> 1.739 | F54: =ROUND('Tarifgruppe S'!F39*(1-Maklertarif!$J$1),3) -> 1.159 | G54: =ROUND('Tarifgruppe S'!G39*(1-Maklertarif!$J$1),3) -> 1.131 | H54: =ROUND('Tarifgruppe S'!H39*(1-Maklertarif!$J$1),3) -> 13.576 | I54: =ROUND('Tarifgruppe S'!I39*(1-Maklertarif!$J$1),3) -> 1.834 | J54: =ROUND('Tarifgruppe S'!J39*(1-Maklertarif!$J$1),3) -> 2.584 | K54: =ROUND('Tarifgruppe S'!K39*(1-Maklertarif!$J$1),3) -> 3.192 | L54: =ROUND('Tarifgruppe S'!L39*(1-Maklertarif!$J$1),3) -> 1.444 | M54: =ROUND('Tarifgruppe S'!M39*(1-Maklertarif!$J$1),3) -> 0.969 | N54: =ROUND('Tarifgruppe S'!N39*(1-Maklertarif!$J$1),3) -> 0.941 | O54: =ROUND('Tarifgruppe S'!O39*(1-Maklertarif!$J$1),3) -> 11.315 | Q54: 26 | R54: =ROUND('Tarif URP'!B35*(1-Maklertarif!$J$1),3) -> 1.416 | S54: =ROUND('Tarif URP'!C35*(1-Maklertarif!$J$1),3) -> 1.729 | T54: =ROUND('Tarif URP'!D35*(1-Maklertarif!$J$1),3) -> 1.748 | U54: =ROUND('Tarif URP'!E35*(1-Maklertarif!$J$1),3) -> 2.499
A55: 90 | B55: =ROUND('Tarifgruppe S'!B40*(1-Maklertarif!$J$1),3) -> 2.318 | C55: =ROUND('Tarifgruppe S'!C40*(1-Maklertarif!$J$1),3) -> 3.259 | D55: =ROUND('Tarifgruppe S'!D40*(1-Maklertarif!$J$1),3) -> 4.019 | E55: =ROUND('Tarifgruppe S'!E40*(1-Maklertarif!$J$1),3) -> 1.824 | F55: =ROUND('Tarifgruppe S'!F40*(1-Maklertarif!$J$1),3) -> 1.216 | G55: =ROUND('Tarifgruppe S'!G40*(1-Maklertarif!$J$1),3) -> 1.188 | H55: =ROUND('Tarifgruppe S'!H40*(1-Maklertarif!$J$1),3) -> 14.25 | I55: =ROUND('Tarifgruppe S'!I40*(1-Maklertarif!$J$1),3) -> 1.929 | J55: =ROUND('Tarifgruppe S'!J40*(1-Maklertarif!$J$1),3) -> 2.717 | K55: =ROUND('Tarifgruppe S'!K40*(1-Maklertarif!$J$1),3) -> 3.354 | L55: =ROUND('Tarifgruppe S'!L40*(1-Maklertarif!$J$1),3) -> 1.52 | M55: =ROUND('Tarifgruppe S'!M40*(1-Maklertarif!$J$1),3) -> 1.017 | N55: =ROUND('Tarifgruppe S'!N40*(1-Maklertarif!$J$1),3) -> 0.988 | O55: =ROUND('Tarifgruppe S'!O40*(1-Maklertarif!$J$1),3) -> 11.875 | Q55: 27 | R55: =ROUND('Tarif URP'!B36*(1-Maklertarif!$J$1),3) -> 1.416 | S55: =ROUND('Tarif URP'!C36*(1-Maklertarif!$J$1),3) -> 1.729 | T55: =ROUND('Tarif URP'!D36*(1-Maklertarif!$J$1),3) -> 1.748 | U55: =ROUND('Tarif URP'!E36*(1-Maklertarif!$J$1),3) -> 2.499
A56: 91 | B56: =ROUND('Tarifgruppe S'!B41*(1-Maklertarif!$J$1),3) -> 2.432 | C56: =ROUND('Tarifgruppe S'!C41*(1-Maklertarif!$J$1),3) -> 3.42 | D56: =ROUND('Tarifgruppe S'!D41*(1-Maklertarif!$J$1),3) -> 4.228 | E56: =ROUND('Tarifgruppe S'!E41*(1-Maklertarif!$J$1),3) -> 1.91 | F56: =ROUND('Tarifgruppe S'!F41*(1-Maklertarif!$J$1),3) -> 1.283 | G56: =ROUND('Tarifgruppe S'!G41*(1-Maklertarif!$J$1),3) -> 1.254 | H56: =ROUND('Tarifgruppe S'!H41*(1-Maklertarif!$J$1),3) -> 14.963 | I56: =ROUND('Tarifgruppe S'!I41*(1-Maklertarif!$J$1),3) -> 2.024 | J56: =ROUND('Tarifgruppe S'!J41*(1-Maklertarif!$J$1),3) -> 2.85 | K56: =ROUND('Tarifgruppe S'!K41*(1-Maklertarif!$J$1),3) -> 3.515 | L56: =ROUND('Tarifgruppe S'!L41*(1-Maklertarif!$J$1),3) -> 1.596 | M56: =ROUND('Tarifgruppe S'!M41*(1-Maklertarif!$J$1),3) -> 1.064 | N56: =ROUND('Tarifgruppe S'!N41*(1-Maklertarif!$J$1),3) -> 1.045 | O56: =ROUND('Tarifgruppe S'!O41*(1-Maklertarif!$J$1),3) -> 12.474 | Q56: 28 | R56: =ROUND('Tarif URP'!B37*(1-Maklertarif!$J$1),3) -> 1.416 | S56: =ROUND('Tarif URP'!C37*(1-Maklertarif!$J$1),3) -> 1.729 | T56: =ROUND('Tarif URP'!D37*(1-Maklertarif!$J$1),3) -> 1.748 | U56: =ROUND('Tarif URP'!E37*(1-Maklertarif!$J$1),3) -> 2.499
A57: 92 | B57: =ROUND('Tarifgruppe S'!B42*(1-Maklertarif!$J$1),3) -> 2.556 | C57: =ROUND('Tarifgruppe S'!C42*(1-Maklertarif!$J$1),3) -> 3.591 | D57: =ROUND('Tarifgruppe S'!D42*(1-Maklertarif!$J$1),3) -> 4.437 | E57: =ROUND('Tarifgruppe S'!E42*(1-Maklertarif!$J$1),3) -> 2.005 | F57: =ROUND('Tarifgruppe S'!F42*(1-Maklertarif!$J$1),3) -> 1.349 | G57: =ROUND('Tarifgruppe S'!G42*(1-Maklertarif!$J$1),3) -> 1.311 | H57: =ROUND('Tarifgruppe S'!H42*(1-Maklertarif!$J$1),3) -> 15.713 | I57: =ROUND('Tarifgruppe S'!I42*(1-Maklertarif!$J$1),3) -> 2.128 | J57: =ROUND('Tarifgruppe S'!J42*(1-Maklertarif!$J$1),3) -> 2.993 | K57: =ROUND('Tarifgruppe S'!K42*(1-Maklertarif!$J$1),3) -> 3.696 | L57: =ROUND('Tarifgruppe S'!L42*(1-Maklertarif!$J$1),3) -> 1.672 | M57: =ROUND('Tarifgruppe S'!M42*(1-Maklertarif!$J$1),3) -> 1.121 | N57: =ROUND('Tarifgruppe S'!N42*(1-Maklertarif!$J$1),3) -> 1.093 | O57: =ROUND('Tarifgruppe S'!O42*(1-Maklertarif!$J$1),3) -> 13.091 | Q57: 29 | R57: =ROUND('Tarif URP'!B38*(1-Maklertarif!$J$1),3) -> 1.416 | S57: =ROUND('Tarif URP'!C38*(1-Maklertarif!$J$1),3) -> 1.729 | T57: =ROUND('Tarif URP'!D38*(1-Maklertarif!$J$1),3) -> 1.748 | U57: =ROUND('Tarif URP'!E38*(1-Maklertarif!$J$1),3) -> 2.499
A58: 93 | B58: =ROUND('Tarifgruppe S'!B43*(1-Maklertarif!$J$1),3) -> 2.679 | C58: =ROUND('Tarifgruppe S'!C43*(1-Maklertarif!$J$1),3) -> 3.772 | D58: =ROUND('Tarifgruppe S'!D43*(1-Maklertarif!$J$1),3) -> 4.655 | E58: =ROUND('Tarifgruppe S'!E43*(1-Maklertarif!$J$1),3) -> 2.109 | F58: =ROUND('Tarifgruppe S'!F43*(1-Maklertarif!$J$1),3) -> 1.416 | G58: =ROUND('Tarifgruppe S'!G43*(1-Maklertarif!$J$1),3) -> 1.378 | H58: =ROUND('Tarifgruppe S'!H43*(1-Maklertarif!$J$1),3) -> 16.502 | I58: =ROUND('Tarifgruppe S'!I43*(1-Maklertarif!$J$1),3) -> 2.233 | J58: =ROUND('Tarifgruppe S'!J43*(1-Maklertarif!$J$1),3) -> 3.145 | K58: =ROUND('Tarifgruppe S'!K43*(1-Maklertarif!$J$1),3) -> 3.876 | L58: =ROUND('Tarifgruppe S'!L43*(1-Maklertarif!$J$1),3) -> 1.758 | M58: =ROUND('Tarifgruppe S'!M43*(1-Maklertarif!$J$1),3) -> 1.178 | N58: =ROUND('Tarifgruppe S'!N43*(1-Maklertarif!$J$1),3) -> 1.15 | O58: =ROUND('Tarifgruppe S'!O43*(1-Maklertarif!$J$1),3) -> 13.747 | Q58: 30 | R58: =ROUND('Tarif URP'!B39*(1-Maklertarif!$J$1),3) -> 1.416 | S58: =ROUND('Tarif URP'!C39*(1-Maklertarif!$J$1),3) -> 1.729 | T58: =ROUND('Tarif URP'!D39*(1-Maklertarif!$J$1),3) -> 1.748 | U58: =ROUND('Tarif URP'!E39*(1-Maklertarif!$J$1),3) -> 2.499
A59: 94 | B59: =ROUND('Tarifgruppe S'!B44*(1-Maklertarif!$J$1),3) -> 2.812 | C59: =ROUND('Tarifgruppe S'!C44*(1-Maklertarif!$J$1),3) -> 3.962 | D59: =ROUND('Tarifgruppe S'!D44*(1-Maklertarif!$J$1),3) -> 4.893 | E59: =ROUND('Tarifgruppe S'!E44*(1-Maklertarif!$J$1),3) -> 2.214 | F59: =ROUND('Tarifgruppe S'!F44*(1-Maklertarif!$J$1),3) -> 1.482 | G59: =ROUND('Tarifgruppe S'!G44*(1-Maklertarif!$J$1),3) -> 1.444 | H59: =ROUND('Tarifgruppe S'!H44*(1-Maklertarif!$J$1),3) -> 17.319 | I59: =ROUND('Tarifgruppe S'!I44*(1-Maklertarif!$J$1),3) -> 2.347 | J59: =ROUND('Tarifgruppe S'!J44*(1-Maklertarif!$J$1),3) -> 3.306 | K59: =ROUND('Tarifgruppe S'!K44*(1-Maklertarif!$J$1),3) -> 4.076 | L59: =ROUND('Tarifgruppe S'!L44*(1-Maklertarif!$J$1),3) -> 1.843 | M59: =ROUND('Tarifgruppe S'!M44*(1-Maklertarif!$J$1),3) -> 1.235 | N59: =ROUND('Tarifgruppe S'!N44*(1-Maklertarif!$J$1),3) -> 1.207 | O59: =ROUND('Tarifgruppe S'!O44*(1-Maklertarif!$J$1),3) -> 14.44 | Q59: 31 | R59: =ROUND('Tarif URP'!B40*(1-Maklertarif!$J$1),3) -> 1.416 | S59: =ROUND('Tarif URP'!C40*(1-Maklertarif!$J$1),3) -> 1.729 | T59: =ROUND('Tarif URP'!D40*(1-Maklertarif!$J$1),3) -> 1.748 | U59: =ROUND('Tarif URP'!E40*(1-Maklertarif!$J$1),3) -> 2.499
A60: 95 | B60: =ROUND('Tarifgruppe S'!B45*(1-Maklertarif!$J$1),3) -> 2.955 | C60: =ROUND('Tarifgruppe S'!C45*(1-Maklertarif!$J$1),3) -> 4.161 | D60: =ROUND('Tarifgruppe S'!D45*(1-Maklertarif!$J$1),3) -> 5.13 | E60: =ROUND('Tarifgruppe S'!E45*(1-Maklertarif!$J$1),3) -> 2.328 | F60: =ROUND('Tarifgruppe S'!F45*(1-Maklertarif!$J$1),3) -> 1.558 | G60: =ROUND('Tarifgruppe S'!G45*(1-Maklertarif!$J$1),3) -> 1.52 | H60: =ROUND('Tarifgruppe S'!H45*(1-Maklertarif!$J$1),3) -> 18.193 | I60: =ROUND('Tarifgruppe S'!I45*(1-Maklertarif!$J$1),3) -> 2.461 | J60: =ROUND('Tarifgruppe S'!J45*(1-Maklertarif!$J$1),3) -> 3.468 | K60: =ROUND('Tarifgruppe S'!K45*(1-Maklertarif!$J$1),3) -> 4.275 | L60: =ROUND('Tarifgruppe S'!L45*(1-Maklertarif!$J$1),3) -> 1.938 | M60: =ROUND('Tarifgruppe S'!M45*(1-Maklertarif!$J$1),3) -> 1.302 | N60: =ROUND('Tarifgruppe S'!N45*(1-Maklertarif!$J$1),3) -> 1.264 | O60: =ROUND('Tarifgruppe S'!O45*(1-Maklertarif!$J$1),3) -> 15.153 | Q60: 32 | R60: =ROUND('Tarif URP'!B41*(1-Maklertarif!$J$1),3) -> 1.416 | S60: =ROUND('Tarif URP'!C41*(1-Maklertarif!$J$1),3) -> 1.729 | T60: =ROUND('Tarif URP'!D41*(1-Maklertarif!$J$1),3) -> 1.748 | U60: =ROUND('Tarif URP'!E41*(1-Maklertarif!$J$1),3) -> 2.499
A61: 96 | B61: =ROUND('Tarifgruppe S'!B46*(1-Maklertarif!$J$1),3) -> 3.107 | C61: =ROUND('Tarifgruppe S'!C46*(1-Maklertarif!$J$1),3) -> 4.37 | D61: =ROUND('Tarifgruppe S'!D46*(1-Maklertarif!$J$1),3) -> 5.387 | E61: =ROUND('Tarifgruppe S'!E46*(1-Maklertarif!$J$1),3) -> 2.442 | F61: =ROUND('Tarifgruppe S'!F46*(1-Maklertarif!$J$1),3) -> 1.634 | G61: =ROUND('Tarifgruppe S'!G46*(1-Maklertarif!$J$1),3) -> 1.596 | H61: =ROUND('Tarifgruppe S'!H46*(1-Maklertarif!$J$1),3) -> 19.095 | I61: =ROUND('Tarifgruppe S'!I46*(1-Maklertarif!$J$1),3) -> 2.584 | J61: =ROUND('Tarifgruppe S'!J46*(1-Maklertarif!$J$1),3) -> 3.639 | K61: =ROUND('Tarifgruppe S'!K46*(1-Maklertarif!$J$1),3) -> 4.494 | L61: =ROUND('Tarifgruppe S'!L46*(1-Maklertarif!$J$1),3) -> 2.033 | M61: =ROUND('Tarifgruppe S'!M46*(1-Maklertarif!$J$1),3) -> 1.359 | N61: =ROUND('Tarifgruppe S'!N46*(1-Maklertarif!$J$1),3) -> 1.33 | O61: =ROUND('Tarifgruppe S'!O46*(1-Maklertarif!$J$1),3) -> 15.913 | Q61: 33 | R61: =ROUND('Tarif URP'!B42*(1-Maklertarif!$J$1),3) -> 1.416 | S61: =ROUND('Tarif URP'!C42*(1-Maklertarif!$J$1),3) -> 1.729 | T61: =ROUND('Tarif URP'!D42*(1-Maklertarif!$J$1),3) -> 1.758 | U61: =ROUND('Tarif URP'!E42*(1-Maklertarif!$J$1),3) -> 2.499
A62: 97 | B62: =ROUND('Tarifgruppe S'!B47*(1-Maklertarif!$J$1),3) -> 3.259 | C62: =ROUND('Tarifgruppe S'!C47*(1-Maklertarif!$J$1),3) -> 4.589 | D62: =ROUND('Tarifgruppe S'!D47*(1-Maklertarif!$J$1),3) -> 5.662 | E62: =ROUND('Tarifgruppe S'!E47*(1-Maklertarif!$J$1),3) -> 2.565 | F62: =ROUND('Tarifgruppe S'!F47*(1-Maklertarif!$J$1),3) -> 1.72 | G62: =ROUND('Tarifgruppe S'!G47*(1-Maklertarif!$J$1),3) -> 1.672 | H62: =ROUND('Tarifgruppe S'!H47*(1-Maklertarif!$J$1),3) -> 20.055 | I62: =ROUND('Tarifgruppe S'!I47*(1-Maklertarif!$J$1),3) -> 2.717 | J62: =ROUND('Tarifgruppe S'!J47*(1-Maklertarif!$J$1),3) -> 3.819 | K62: =ROUND('Tarifgruppe S'!K47*(1-Maklertarif!$J$1),3) -> 4.722 | L62: =ROUND('Tarifgruppe S'!L47*(1-Maklertarif!$J$1),3) -> 2.138 | M62: =ROUND('Tarifgruppe S'!M47*(1-Maklertarif!$J$1),3) -> 1.435 | N62: =ROUND('Tarifgruppe S'!N47*(1-Maklertarif!$J$1),3) -> 1.397 | O62: =ROUND('Tarifgruppe S'!O47*(1-Maklertarif!$J$1),3) -> 16.711 | Q62: 34 | R62: =ROUND('Tarif URP'!B43*(1-Maklertarif!$J$1),3) -> 1.416 | S62: =ROUND('Tarif URP'!C43*(1-Maklertarif!$J$1),3) -> 1.729 | T62: =ROUND('Tarif URP'!D43*(1-Maklertarif!$J$1),3) -> 1.891 | U62: =ROUND('Tarif URP'!E43*(1-Maklertarif!$J$1),3) -> 2.499
A63: 98 | B63: =ROUND('Tarifgruppe S'!B48*(1-Maklertarif!$J$1),3) -> 3.42 | C63: =ROUND('Tarifgruppe S'!C48*(1-Maklertarif!$J$1),3) -> 4.817 | D63: =ROUND('Tarifgruppe S'!D48*(1-Maklertarif!$J$1),3) -> 5.947 | E63: =ROUND('Tarifgruppe S'!E48*(1-Maklertarif!$J$1),3) -> 2.689 | F63: =ROUND('Tarifgruppe S'!F48*(1-Maklertarif!$J$1),3) -> 1.805 | G63: =ROUND('Tarifgruppe S'!G48*(1-Maklertarif!$J$1),3) -> 1.758 | H63: =ROUND('Tarifgruppe S'!H48*(1-Maklertarif!$J$1),3) -> 21.052 | I63: =ROUND('Tarifgruppe S'!I48*(1-Maklertarif!$J$1),3) -> 2.85 | J63: =ROUND('Tarifgruppe S'!J48*(1-Maklertarif!$J$1),3) -> 4.009 | K63: =ROUND('Tarifgruppe S'!K48*(1-Maklertarif!$J$1),3) -> 4.95 | L63: =ROUND('Tarifgruppe S'!L48*(1-Maklertarif!$J$1),3) -> 2.242 | M63: =ROUND('Tarifgruppe S'!M48*(1-Maklertarif!$J$1),3) -> 1.501 | N63: =ROUND('Tarifgruppe S'!N48*(1-Maklertarif!$J$1),3) -> 1.463 | O63: =ROUND('Tarifgruppe S'!O48*(1-Maklertarif!$J$1),3) -> 17.547 | Q63: 35 | R63: =ROUND('Tarif URP'!B44*(1-Maklertarif!$J$1),3) -> 1.444 | S63: =ROUND('Tarif URP'!C44*(1-Maklertarif!$J$1),3) -> 1.729 | T63: =ROUND('Tarif URP'!D44*(1-Maklertarif!$J$1),3) -> 1.986 | U63: =ROUND('Tarif URP'!E44*(1-Maklertarif!$J$1),3) -> 2.499
A64: 99 | B64: =ROUND('Tarifgruppe S'!B49*(1-Maklertarif!$J$1),3) -> 3.591 | C64: =ROUND('Tarifgruppe S'!C49*(1-Maklertarif!$J$1),3) -> 5.054 | D64: =ROUND('Tarifgruppe S'!D49*(1-Maklertarif!$J$1),3) -> 6.242 | E64: =ROUND('Tarifgruppe S'!E49*(1-Maklertarif!$J$1),3) -> 2.822 | F64: =ROUND('Tarifgruppe S'!F49*(1-Maklertarif!$J$1),3) -> 1.891 | G64: =ROUND('Tarifgruppe S'!G49*(1-Maklertarif!$J$1),3) -> 1.843 | H64: =ROUND('Tarifgruppe S'!H49*(1-Maklertarif!$J$1),3) -> 22.107 | I64: =ROUND('Tarifgruppe S'!I49*(1-Maklertarif!$J$1),3) -> 2.993 | J64: =ROUND('Tarifgruppe S'!J49*(1-Maklertarif!$J$1),3) -> 4.218 | K64: =ROUND('Tarifgruppe S'!K49*(1-Maklertarif!$J$1),3) -> 5.197 | L64: =ROUND('Tarifgruppe S'!L49*(1-Maklertarif!$J$1),3) -> 2.356 | M64: =ROUND('Tarifgruppe S'!M49*(1-Maklertarif!$J$1),3) -> 1.577 | N64: =ROUND('Tarifgruppe S'!N49*(1-Maklertarif!$J$1),3) -> 1.539 | O64: =ROUND('Tarifgruppe S'!O49*(1-Maklertarif!$J$1),3) -> 18.421 | Q64: 36 | R64: =ROUND('Tarif URP'!B45*(1-Maklertarif!$J$1),3) -> 1.539 | S64: =ROUND('Tarif URP'!C45*(1-Maklertarif!$J$1),3) -> 1.729 | T64: =ROUND('Tarif URP'!D45*(1-Maklertarif!$J$1),3) -> 2.147 | U64: =ROUND('Tarif URP'!E45*(1-Maklertarif!$J$1),3) -> 2.679
A65: 100 | B65: =ROUND('Tarifgruppe S'!B50*(1-Maklertarif!$J$1),3) -> 3.772 | C65: =ROUND('Tarifgruppe S'!C50*(1-Maklertarif!$J$1),3) -> 5.311 | D65: =ROUND('Tarifgruppe S'!D50*(1-Maklertarif!$J$1),3) -> 6.555 | E65: =ROUND('Tarifgruppe S'!E50*(1-Maklertarif!$J$1),3) -> 2.964 | F65: =ROUND('Tarifgruppe S'!F50*(1-Maklertarif!$J$1),3) -> 1.986 | G65: =ROUND('Tarifgruppe S'!G50*(1-Maklertarif!$J$1),3) -> 1.938 | H65: =ROUND('Tarifgruppe S'!H50*(1-Maklertarif!$J$1),3) -> 23.218 | I65: =ROUND('Tarifgruppe S'!I50*(1-Maklertarif!$J$1),3) -> 3.145 | J65: =ROUND('Tarifgruppe S'!J50*(1-Maklertarif!$J$1),3) -> 4.427 | K65: =ROUND('Tarifgruppe S'!K50*(1-Maklertarif!$J$1),3) -> 5.463 | L65: =ROUND('Tarifgruppe S'!L50*(1-Maklertarif!$J$1),3) -> 2.47 | M65: =ROUND('Tarifgruppe S'!M50*(1-Maklertarif!$J$1),3) -> 1.653 | N65: =ROUND('Tarifgruppe S'!N50*(1-Maklertarif!$J$1),3) -> 1.615 | O65: =ROUND('Tarifgruppe S'!O50*(1-Maklertarif!$J$1),3) -> 19.342 | Q65: 37 | R65: =ROUND('Tarif URP'!B46*(1-Maklertarif!$J$1),3) -> 1.644 | S65: =ROUND('Tarif URP'!C46*(1-Maklertarif!$J$1),3) -> 1.796 | T65: =ROUND('Tarif URP'!D46*(1-Maklertarif!$J$1),3) -> 2.309 | U65: =ROUND('Tarif URP'!E46*(1-Maklertarif!$J$1),3) -> 2.86
A66: 101 | B66: =ROUND('Tarifgruppe S'!B51*(1-Maklertarif!$J$1),3) -> 3.962 | C66: =ROUND('Tarifgruppe S'!C51*(1-Maklertarif!$J$1),3) -> 5.577 | D66: =ROUND('Tarifgruppe S'!D51*(1-Maklertarif!$J$1),3) -> 6.878 | E66: =ROUND('Tarifgruppe S'!E51*(1-Maklertarif!$J$1),3) -> 3.116 | F66: =ROUND('Tarifgruppe S'!F51*(1-Maklertarif!$J$1),3) -> 2.09 | G66: =ROUND('Tarifgruppe S'!G51*(1-Maklertarif!$J$1),3) -> 2.033 | H66: =ROUND('Tarifgruppe S'!H51*(1-Maklertarif!$J$1),3) -> 24.377 | I66: =ROUND('Tarifgruppe S'!I51*(1-Maklertarif!$J$1),3) -> 3.297 | J66: =ROUND('Tarifgruppe S'!J51*(1-Maklertarif!$J$1),3) -> 4.646 | K66: =ROUND('Tarifgruppe S'!K51*(1-Maklertarif!$J$1),3) -> 5.738 | L66: =ROUND('Tarifgruppe S'!L51*(1-Maklertarif!$J$1),3) -> 2.594 | M66: =ROUND('Tarifgruppe S'!M51*(1-Maklertarif!$J$1),3) -> 1.739 | N66: =ROUND('Tarifgruppe S'!N51*(1-Maklertarif!$J$1),3) -> 1.701 | O66: =ROUND('Tarifgruppe S'!O51*(1-Maklertarif!$J$1),3) -> 20.311 | Q66: 38 | R66: =ROUND('Tarif URP'!B47*(1-Maklertarif!$J$1),3) -> 1.739 | S66: =ROUND('Tarif URP'!C47*(1-Maklertarif!$J$1),3) -> 1.9 | T66: =ROUND('Tarif URP'!D47*(1-Maklertarif!$J$1),3) -> 2.48 | U66: =ROUND('Tarif URP'!E47*(1-Maklertarif!$J$1),3) -> 3.059
A67: 102 | B67: =ROUND('Tarifgruppe S'!B52*(1-Maklertarif!$J$1),3) -> 4.161 | C67: =ROUND('Tarifgruppe S'!C52*(1-Maklertarif!$J$1),3) -> 5.852 | D67: =ROUND('Tarifgruppe S'!D52*(1-Maklertarif!$J$1),3) -> 7.22 | E67: =ROUND('Tarifgruppe S'!E52*(1-Maklertarif!$J$1),3) -> 3.268 | F67: =ROUND('Tarifgruppe S'!F52*(1-Maklertarif!$J$1),3) -> 2.195 | G67: =ROUND('Tarifgruppe S'!G52*(1-Maklertarif!$J$1),3) -> 2.138 | H67: =ROUND('Tarifgruppe S'!H52*(1-Maklertarif!$J$1),3) -> 25.593 | I67: =ROUND('Tarifgruppe S'!I52*(1-Maklertarif!$J$1),3) -> 3.468 | J67: =ROUND('Tarifgruppe S'!J52*(1-Maklertarif!$J$1),3) -> 4.883 | K67: =ROUND('Tarifgruppe S'!K52*(1-Maklertarif!$J$1),3) -> 6.023 | L67: =ROUND('Tarifgruppe S'!L52*(1-Maklertarif!$J$1),3) -> 2.727 | M67: =ROUND('Tarifgruppe S'!M52*(1-Maklertarif!$J$1),3) -> 1.824 | N67: =ROUND('Tarifgruppe S'!N52*(1-Maklertarif!$J$1),3) -> 1.786 | O67: =ROUND('Tarifgruppe S'!O52*(1-Maklertarif!$J$1),3) -> 21.328 | Q67: 39 | R67: =ROUND('Tarif URP'!B48*(1-Maklertarif!$J$1),3) -> 1.843 | S67: =ROUND('Tarif URP'!C48*(1-Maklertarif!$J$1),3) -> 1.995 | T67: =ROUND('Tarif URP'!D48*(1-Maklertarif!$J$1),3) -> 2.651 | U67: =ROUND('Tarif URP'!E48*(1-Maklertarif!$J$1),3) -> 3.249
A68: 103 | B68: =ROUND('Tarifgruppe S'!B53*(1-Maklertarif!$J$1),3) -> 4.37 | C68: =ROUND('Tarifgruppe S'!C53*(1-Maklertarif!$J$1),3) -> 6.147 | D68: =ROUND('Tarifgruppe S'!D53*(1-Maklertarif!$J$1),3) -> 7.581 | E68: =ROUND('Tarifgruppe S'!E53*(1-Maklertarif!$J$1),3) -> 3.43 | F68: =ROUND('Tarifgruppe S'!F53*(1-Maklertarif!$J$1),3) -> 2.299 | G68: =ROUND('Tarifgruppe S'!G53*(1-Maklertarif!$J$1),3) -> 2.242 | H68: =ROUND('Tarifgruppe S'!H53*(1-Maklertarif!$J$1),3) -> 26.876 | I68: =ROUND('Tarifgruppe S'!I53*(1-Maklertarif!$J$1),3) -> 3.639 | J68: =ROUND('Tarifgruppe S'!J53*(1-Maklertarif!$J$1),3) -> 5.121 | K68: =ROUND('Tarifgruppe S'!K53*(1-Maklertarif!$J$1),3) -> 6.318 | L68: =ROUND('Tarifgruppe S'!L53*(1-Maklertarif!$J$1),3) -> 2.86 | M68: =ROUND('Tarifgruppe S'!M53*(1-Maklertarif!$J$1),3) -> 1.919 | N68: =ROUND('Tarifgruppe S'!N53*(1-Maklertarif!$J$1),3) -> 1.872 | O68: =ROUND('Tarifgruppe S'!O53*(1-Maklertarif!$J$1),3) -> 22.392 | Q68: 40 | R68: =ROUND('Tarif URP'!B49*(1-Maklertarif!$J$1),3) -> 1.891 | S68: =ROUND('Tarif URP'!C49*(1-Maklertarif!$J$1),3) -> 2.043 | T68: =ROUND('Tarif URP'!D49*(1-Maklertarif!$J$1),3) -> 2.765 | U68: =ROUND('Tarif URP'!E49*(1-Maklertarif!$J$1),3) -> 3.354
A69: 104 | B69: =ROUND('Tarifgruppe S'!B54*(1-Maklertarif!$J$1),3) -> 4.589 | C69: =ROUND('Tarifgruppe S'!C54*(1-Maklertarif!$J$1),3) -> 6.451 | D69: =ROUND('Tarifgruppe S'!D54*(1-Maklertarif!$J$1),3) -> 7.961 | E69: =ROUND('Tarifgruppe S'!E54*(1-Maklertarif!$J$1),3) -> 3.601 | F69: =ROUND('Tarifgruppe S'!F54*(1-Maklertarif!$J$1),3) -> 2.413 | G69: =ROUND('Tarifgruppe S'!G54*(1-Maklertarif!$J$1),3) -> 2.356 | H69: =ROUND('Tarifgruppe S'!H54*(1-Maklertarif!$J$1),3) -> 28.215 | I69: =ROUND('Tarifgruppe S'!I54*(1-Maklertarif!$J$1),3) -> 3.819 | J69: =ROUND('Tarifgruppe S'!J54*(1-Maklertarif!$J$1),3) -> 5.377 | K69: =ROUND('Tarifgruppe S'!K54*(1-Maklertarif!$J$1),3) -> 6.641 | L69: =ROUND('Tarifgruppe S'!L54*(1-Maklertarif!$J$1),3) -> 3.002 | M69: =ROUND('Tarifgruppe S'!M54*(1-Maklertarif!$J$1),3) -> 2.014 | N69: =ROUND('Tarifgruppe S'!N54*(1-Maklertarif!$J$1),3) -> 1.967 | O69: =ROUND('Tarifgruppe S'!O54*(1-Maklertarif!$J$1),3) -> 23.513 | Q69: 41 | R69: =ROUND('Tarif URP'!B50*(1-Maklertarif!$J$1),3) -> 2.014 | S69: =ROUND('Tarif URP'!C50*(1-Maklertarif!$J$1),3) -> 2.157 | T69: =ROUND('Tarif URP'!D50*(1-Maklertarif!$J$1),3) -> 2.974 | U69: =ROUND('Tarif URP'!E50*(1-Maklertarif!$J$1),3) -> 3.601
A70: 105 | B70: =ROUND('Tarifgruppe S'!B55*(1-Maklertarif!$J$1),3) -> 4.817 | C70: =ROUND('Tarifgruppe S'!C55*(1-Maklertarif!$J$1),3) -> 6.774 | D70: =ROUND('Tarifgruppe S'!D55*(1-Maklertarif!$J$1),3) -> 8.36 | E70: =ROUND('Tarifgruppe S'!E55*(1-Maklertarif!$J$1),3) -> 3.781 | F70: =ROUND('Tarifgruppe S'!F55*(1-Maklertarif!$J$1),3) -> 2.537 | G70: =ROUND('Tarifgruppe S'!G55*(1-Maklertarif!$J$1),3) -> 2.48 | H70: =ROUND('Tarifgruppe S'!H55*(1-Maklertarif!$J$1),3) -> 29.631 | I70: =ROUND('Tarifgruppe S'!I55*(1-Maklertarif!$J$1),3) -> 4.009 | J70: =ROUND('Tarifgruppe S'!J55*(1-Maklertarif!$J$1),3) -> 5.643 | K70: =ROUND('Tarifgruppe S'!K55*(1-Maklertarif!$J$1),3) -> 6.973 | L70: =ROUND('Tarifgruppe S'!L55*(1-Maklertarif!$J$1),3) -> 3.154 | M70: =ROUND('Tarifgruppe S'!M55*(1-Maklertarif!$J$1),3) -> 2.119 | N70: =ROUND('Tarifgruppe S'!N55*(1-Maklertarif!$J$1),3) -> 2.062 | O70: =ROUND('Tarifgruppe S'!O55*(1-Maklertarif!$J$1),3) -> 24.691 | Q70: 42 | R70: =ROUND('Tarif URP'!B51*(1-Maklertarif!$J$1),3) -> 2.147 | S70: =ROUND('Tarif URP'!C51*(1-Maklertarif!$J$1),3) -> 2.28 | T70: =ROUND('Tarif URP'!D51*(1-Maklertarif!$J$1),3) -> 3.211 | U70: =ROUND('Tarif URP'!E51*(1-Maklertarif!$J$1),3) -> 3.857
A71: 106 | B71: =ROUND('Tarifgruppe S'!B56*(1-Maklertarif!$J$1),3) -> 5.054 | C71: =ROUND('Tarifgruppe S'!C56*(1-Maklertarif!$J$1),3) -> 7.116 | D71: =ROUND('Tarifgruppe S'!D56*(1-Maklertarif!$J$1),3) -> 8.778 | E71: =ROUND('Tarifgruppe S'!E56*(1-Maklertarif!$J$1),3) -> 3.971 | F71: =ROUND('Tarifgruppe S'!F56*(1-Maklertarif!$J$1),3) -> 2.66 | G71: =ROUND('Tarifgruppe S'!G56*(1-Maklertarif!$J$1),3) -> 2.603 | H71: =ROUND('Tarifgruppe S'!H56*(1-Maklertarif!$J$1),3) -> 31.113 | I71: =ROUND('Tarifgruppe S'!I56*(1-Maklertarif!$J$1),3) -> 4.209 | J71: =ROUND('Tarifgruppe S'!J56*(1-Maklertarif!$J$1),3) -> 5.928 | K71: =ROUND('Tarifgruppe S'!K56*(1-Maklertarif!$J$1),3) -> 7.315 | L71: =ROUND('Tarifgruppe S'!L56*(1-Maklertarif!$J$1),3) -> 3.316 | M71: =ROUND('Tarifgruppe S'!M56*(1-Maklertarif!$J$1),3) -> 2.223 | N71: =ROUND('Tarifgruppe S'!N56*(1-Maklertarif!$J$1),3) -> 2.166 | O71: =ROUND('Tarifgruppe S'!O56*(1-Maklertarif!$J$1),3) -> 25.926 | Q71: 43 | R71: =ROUND('Tarif URP'!B52*(1-Maklertarif!$J$1),3) -> 2.28 | S71: =ROUND('Tarif URP'!C52*(1-Maklertarif!$J$1),3) -> 2.404 | T71: =ROUND('Tarif URP'!D52*(1-Maklertarif!$J$1),3) -> 3.477 | U71: =ROUND('Tarif URP'!E52*(1-Maklertarif!$J$1),3) -> 4.152
A72: 107 | B72: =ROUND('Tarifgruppe S'!B57*(1-Maklertarif!$J$1),3) -> 5.311 | C72: =ROUND('Tarifgruppe S'!C57*(1-Maklertarif!$J$1),3) -> 7.467 | D72: =ROUND('Tarifgruppe S'!D57*(1-Maklertarif!$J$1),3) -> 9.225 | E72: =ROUND('Tarifgruppe S'!E57*(1-Maklertarif!$J$1),3) -> 4.171 | F72: =ROUND('Tarifgruppe S'!F57*(1-Maklertarif!$J$1),3) -> 2.793 | G72: =ROUND('Tarifgruppe S'!G57*(1-Maklertarif!$J$1),3) -> 2.727 | H72: =ROUND('Tarifgruppe S'!H57*(1-Maklertarif!$J$1),3) -> 32.661 | I72: =ROUND('Tarifgruppe S'!I57*(1-Maklertarif!$J$1),3) -> 4.418 | J72: =ROUND('Tarifgruppe S'!J57*(1-Maklertarif!$J$1),3) -> 6.223 | K72: =ROUND('Tarifgruppe S'!K57*(1-Maklertarif!$J$1),3) -> 7.686 | L72: =ROUND('Tarifgruppe S'!L57*(1-Maklertarif!$J$1),3) -> 3.477 | M72: =ROUND('Tarifgruppe S'!M57*(1-Maklertarif!$J$1),3) -> 2.328 | N72: =ROUND('Tarifgruppe S'!N57*(1-Maklertarif!$J$1),3) -> 2.271 | O72: =ROUND('Tarifgruppe S'!O57*(1-Maklertarif!$J$1),3) -> 27.218 | Q72: 44 | R72: =ROUND('Tarif URP'!B53*(1-Maklertarif!$J$1),3) -> 2.413 | S72: =ROUND('Tarif URP'!C53*(1-Maklertarif!$J$1),3) -> 2.546 | T72: =ROUND('Tarif URP'!D53*(1-Maklertarif!$J$1),3) -> 3.772 | U72: =ROUND('Tarif URP'!E53*(1-Maklertarif!$J$1),3) -> 4.484
A73: 108 | B73: =ROUND('Tarifgruppe S'!B58*(1-Maklertarif!$J$1),3) -> 5.577 | C73: =ROUND('Tarifgruppe S'!C58*(1-Maklertarif!$J$1),3) -> 7.847 | D73: =ROUND('Tarifgruppe S'!D58*(1-Maklertarif!$J$1),3) -> 9.681 | E73: =ROUND('Tarifgruppe S'!E58*(1-Maklertarif!$J$1),3) -> 4.38 | F73: =ROUND('Tarifgruppe S'!F58*(1-Maklertarif!$J$1),3) -> 2.936 | G73: =ROUND('Tarifgruppe S'!G58*(1-Maklertarif!$J$1),3) -> 2.869 | H73: =ROUND('Tarifgruppe S'!H58*(1-Maklertarif!$J$1),3) -> 34.295 | I73: =ROUND('Tarifgruppe S'!I58*(1-Maklertarif!$J$1),3) -> 4.646 | J73: =ROUND('Tarifgruppe S'!J58*(1-Maklertarif!$J$1),3) -> 6.536 | K73: =ROUND('Tarifgruppe S'!K58*(1-Maklertarif!$J$1),3) -> 8.066 | L73: =ROUND('Tarifgruppe S'!L58*(1-Maklertarif!$J$1),3) -> 3.648 | M73: =ROUND('Tarifgruppe S'!M58*(1-Maklertarif!$J$1),3) -> 2.451 | N73: =ROUND('Tarifgruppe S'!N58*(1-Maklertarif!$J$1),3) -> 2.385 | O73: =ROUND('Tarifgruppe S'!O58*(1-Maklertarif!$J$1),3) -> 28.586 | Q73: 45 | R73: =ROUND('Tarif URP'!B54*(1-Maklertarif!$J$1),3) -> 2.508 | S73: =ROUND('Tarif URP'!C54*(1-Maklertarif!$J$1),3) -> 2.622 | T73: =ROUND('Tarif URP'!D54*(1-Maklertarif!$J$1),3) -> 3.99 | U73: =ROUND('Tarif URP'!E54*(1-Maklertarif!$J$1),3) -> 4.712
A74: 109 | B74: =ROUND('Tarifgruppe S'!B59*(1-Maklertarif!$J$1),3) -> 5.852 | C74: =ROUND('Tarifgruppe S'!C59*(1-Maklertarif!$J$1),3) -> 8.237 | D74: =ROUND('Tarifgruppe S'!D59*(1-Maklertarif!$J$1),3) -> 10.165 | E74: =ROUND('Tarifgruppe S'!E59*(1-Maklertarif!$J$1),3) -> 4.598 | F74: =ROUND('Tarifgruppe S'!F59*(1-Maklertarif!$J$1),3) -> 3.088 | G74: =ROUND('Tarifgruppe S'!G59*(1-Maklertarif!$J$1),3) -> 3.012 | H74: =ROUND('Tarifgruppe S'!H59*(1-Maklertarif!$J$1),3) -> 36.015 | I74: =ROUND('Tarifgruppe S'!I59*(1-Maklertarif!$J$1),3) -> 4.874 | J74: =ROUND('Tarifgruppe S'!J59*(1-Maklertarif!$J$1),3) -> 6.869 | K74: =ROUND('Tarifgruppe S'!K59*(1-Maklertarif!$J$1),3) -> 8.474 | L74: =ROUND('Tarifgruppe S'!L59*(1-Maklertarif!$J$1),3) -> 3.838 | M74: =ROUND('Tarifgruppe S'!M59*(1-Maklertarif!$J$1),3) -> 2.565 | N74: =ROUND('Tarifgruppe S'!N59*(1-Maklertarif!$J$1),3) -> 2.508 | O74: =ROUND('Tarifgruppe S'!O59*(1-Maklertarif!$J$1),3) -> 30.011 | Q74: 46 | R74: =ROUND('Tarif URP'!B55*(1-Maklertarif!$J$1),3) -> 2.66 | S74: =ROUND('Tarif URP'!C55*(1-Maklertarif!$J$1),3) -> 2.755 | T74: =ROUND('Tarif URP'!D55*(1-Maklertarif!$J$1),3) -> 4.332 | U74: =ROUND('Tarif URP'!E55*(1-Maklertarif!$J$1),3) -> 5.092
A75: 110 | B75: =ROUND('Tarifgruppe S'!B60*(1-Maklertarif!$J$1),3) -> 6.147 | C75: =ROUND('Tarifgruppe S'!C60*(1-Maklertarif!$J$1),3) -> 8.645 | D75: =ROUND('Tarifgruppe S'!D60*(1-Maklertarif!$J$1),3) -> 10.669 | E75: =ROUND('Tarifgruppe S'!E60*(1-Maklertarif!$J$1),3) -> 4.836 | F75: =ROUND('Tarifgruppe S'!F60*(1-Maklertarif!$J$1),3) -> 3.24 | G75: =ROUND('Tarifgruppe S'!G60*(1-Maklertarif!$J$1),3) -> 3.164 | H75: =ROUND('Tarifgruppe S'!H60*(1-Maklertarif!$J$1),3) -> 37.81 | I75: =ROUND('Tarifgruppe S'!I60*(1-Maklertarif!$J$1),3) -> 5.121 | J75: =ROUND('Tarifgruppe S'!J60*(1-Maklertarif!$J$1),3) -> 7.211 | K75: =ROUND('Tarifgruppe S'!K60*(1-Maklertarif!$J$1),3) -> 8.892 | L75: =ROUND('Tarifgruppe S'!L60*(1-Maklertarif!$J$1),3) -> 4.028 | M75: =ROUND('Tarifgruppe S'!M60*(1-Maklertarif!$J$1),3) -> 2.698 | N75: =ROUND('Tarifgruppe S'!N60*(1-Maklertarif!$J$1),3) -> 2.632 | O75: =ROUND('Tarifgruppe S'!O60*(1-Maklertarif!$J$1),3) -> 31.512 | Q75: 47 | R75: =ROUND('Tarif URP'!B56*(1-Maklertarif!$J$1),3) -> 2.803 | S75: =ROUND('Tarif URP'!C56*(1-Maklertarif!$J$1),3) -> 2.898 | T75: =ROUND('Tarif URP'!D56*(1-Maklertarif!$J$1),3) -> 4.712 | U75: =ROUND('Tarif URP'!E56*(1-Maklertarif!$J$1),3) -> 5.51
A76: 111 | B76: =ROUND('Tarifgruppe S'!B61*(1-Maklertarif!$J$1),3) -> 6.451 | C76: =ROUND('Tarifgruppe S'!C61*(1-Maklertarif!$J$1),3) -> 9.082 | D76: =ROUND('Tarifgruppe S'!D61*(1-Maklertarif!$J$1),3) -> 11.21 | E76: =ROUND('Tarifgruppe S'!E61*(1-Maklertarif!$J$1),3) -> 5.073 | F76: =ROUND('Tarifgruppe S'!F61*(1-Maklertarif!$J$1),3) -> 3.401 | G76: =ROUND('Tarifgruppe S'!G61*(1-Maklertarif!$J$1),3) -> 3.316 | H76: =ROUND('Tarifgruppe S'!H61*(1-Maklertarif!$J$1),3) -> 39.701 | I76: =ROUND('Tarifgruppe S'!I61*(1-Maklertarif!$J$1),3) -> 5.377 | J76: =ROUND('Tarifgruppe S'!J61*(1-Maklertarif!$J$1),3) -> 7.572 | K76: =ROUND('Tarifgruppe S'!K61*(1-Maklertarif!$J$1),3) -> 9.339 | L76: =ROUND('Tarifgruppe S'!L61*(1-Maklertarif!$J$1),3) -> 4.228 | M76: =ROUND('Tarifgruppe S'!M61*(1-Maklertarif!$J$1),3) -> 2.831 | N76: =ROUND('Tarifgruppe S'!N61*(1-Maklertarif!$J$1),3) -> 2.765 | O76: =ROUND('Tarifgruppe S'!O61*(1-Maklertarif!$J$1),3) -> 33.089 | Q76: 48 | R76: =ROUND('Tarif URP'!B57*(1-Maklertarif!$J$1),3) -> 2.964 | S76: =ROUND('Tarif URP'!C57*(1-Maklertarif!$J$1),3) -> 3.05 | T76: =ROUND('Tarif URP'!D57*(1-Maklertarif!$J$1),3) -> 5.14 | U76: =ROUND('Tarif URP'!E57*(1-Maklertarif!$J$1),3) -> 5.985
A77: 112 | B77: =ROUND('Tarifgruppe S'!B62*(1-Maklertarif!$J$1),3) -> 6.774 | C77: =ROUND('Tarifgruppe S'!C62*(1-Maklertarif!$J$1),3) -> 9.538 | D77: =ROUND('Tarifgruppe S'!D62*(1-Maklertarif!$J$1),3) -> 11.771 | E77: =ROUND('Tarifgruppe S'!E62*(1-Maklertarif!$J$1),3) -> 5.33 | F77: =ROUND('Tarifgruppe S'!F62*(1-Maklertarif!$J$1),3) -> 3.572 | G77: =ROUND('Tarifgruppe S'!G62*(1-Maklertarif!$J$1),3) -> 3.487 | H77: =ROUND('Tarifgruppe S'!H62*(1-Maklertarif!$J$1),3) -> 41.686 | I77: =ROUND('Tarifgruppe S'!I62*(1-Maklertarif!$J$1),3) -> 5.643 | J77: =ROUND('Tarifgruppe S'!J62*(1-Maklertarif!$J$1),3) -> 7.942 | K77: =ROUND('Tarifgruppe S'!K62*(1-Maklertarif!$J$1),3) -> 9.804 | L77: =ROUND('Tarifgruppe S'!L62*(1-Maklertarif!$J$1),3) -> 4.437 | M77: =ROUND('Tarifgruppe S'!M62*(1-Maklertarif!$J$1),3) -> 2.974 | N77: =ROUND('Tarifgruppe S'!N62*(1-Maklertarif!$J$1),3) -> 2.898 | O77: =ROUND('Tarifgruppe S'!O62*(1-Maklertarif!$J$1),3) -> 34.742 | Q77: 49 | R77: =ROUND('Tarif URP'!B58*(1-Maklertarif!$J$1),3) -> 3.126 | S77: =ROUND('Tarif URP'!C58*(1-Maklertarif!$J$1),3) -> 3.192 | T77: =ROUND('Tarif URP'!D58*(1-Maklertarif!$J$1),3) -> 5.605 | U77: =ROUND('Tarif URP'!E58*(1-Maklertarif!$J$1),3) -> 6.498
A78: 113 | B78: =ROUND('Tarifgruppe S'!B63*(1-Maklertarif!$J$1),3) -> 7.116 | C78: =ROUND('Tarifgruppe S'!C63*(1-Maklertarif!$J$1),3) -> 10.013 | D78: =ROUND('Tarifgruppe S'!D63*(1-Maklertarif!$J$1),3) -> 12.36 | E78: =ROUND('Tarifgruppe S'!E63*(1-Maklertarif!$J$1),3) -> 5.596 | F78: =ROUND('Tarifgruppe S'!F63*(1-Maklertarif!$J$1),3) -> 3.753 | G78: =ROUND('Tarifgruppe S'!G63*(1-Maklertarif!$J$1),3) -> 3.658 | H78: =ROUND('Tarifgruppe S'!H63*(1-Maklertarif!$J$1),3) -> 43.776 | I78: =ROUND('Tarifgruppe S'!I63*(1-Maklertarif!$J$1),3) -> 5.928 | J78: =ROUND('Tarifgruppe S'!J63*(1-Maklertarif!$J$1),3) -> 8.341 | K78: =ROUND('Tarifgruppe S'!K63*(1-Maklertarif!$J$1),3) -> 10.298 | L78: =ROUND('Tarifgruppe S'!L63*(1-Maklertarif!$J$1),3) -> 4.665 | M78: =ROUND('Tarifgruppe S'!M63*(1-Maklertarif!$J$1),3) -> 3.126 | N78: =ROUND('Tarifgruppe S'!N63*(1-Maklertarif!$J$1),3) -> 3.05 | O78: =ROUND('Tarifgruppe S'!O63*(1-Maklertarif!$J$1),3) -> 36.48 | Q78: 50 | R78: =ROUND('Tarif URP'!B59*(1-Maklertarif!$J$1),3) -> 3.211 | S78: =ROUND('Tarif URP'!C59*(1-Maklertarif!$J$1),3) -> 3.259 | T78: =ROUND('Tarif URP'!D59*(1-Maklertarif!$J$1),3) -> 5.957 | U78: =ROUND('Tarif URP'!E59*(1-Maklertarif!$J$1),3) -> 6.859
A79: 114 | B79: =ROUND('Tarifgruppe S'!B64*(1-Maklertarif!$J$1),3) -> 7.467 | C79: =ROUND('Tarifgruppe S'!C64*(1-Maklertarif!$J$1),3) -> 10.517 | D79: =ROUND('Tarifgruppe S'!D64*(1-Maklertarif!$J$1),3) -> 12.977 | E79: =ROUND('Tarifgruppe S'!E64*(1-Maklertarif!$J$1),3) -> 5.871 | F79: =ROUND('Tarifgruppe S'!F64*(1-Maklertarif!$J$1),3) -> 3.933 | G79: =ROUND('Tarifgruppe S'!G64*(1-Maklertarif!$J$1),3) -> 3.838 | H79: =ROUND('Tarifgruppe S'!H64*(1-Maklertarif!$J$1),3) -> 45.961 | I79: =ROUND('Tarifgruppe S'!I64*(1-Maklertarif!$J$1),3) -> 6.223 | J79: =ROUND('Tarifgruppe S'!J64*(1-Maklertarif!$J$1),3) -> 8.759 | K79: =ROUND('Tarifgruppe S'!K64*(1-Maklertarif!$J$1),3) -> 10.811 | L79: =ROUND('Tarifgruppe S'!L64*(1-Maklertarif!$J$1),3) -> 4.893 | M79: =ROUND('Tarifgruppe S'!M64*(1-Maklertarif!$J$1),3) -> 3.278 | N79: =ROUND('Tarifgruppe S'!N64*(1-Maklertarif!$J$1),3) -> 3.202 | O79: =ROUND('Tarifgruppe S'!O64*(1-Maklertarif!$J$1),3) -> 38.304 | Q79: 51 | R79: =ROUND('Tarif URP'!B60*(1-Maklertarif!$J$1),3) -> 3.335 | S79: =ROUND('Tarif URP'!C60*(1-Maklertarif!$J$1),3) -> 3.373 | T79: =ROUND('Tarif URP'!D60*(1-Maklertarif!$J$1),3) -> 6.489 | U79: =ROUND('Tarif URP'!E60*(1-Maklertarif!$J$1),3) -> 7.429
A80: 115 | B80: =ROUND('Tarifgruppe S'!B65*(1-Maklertarif!$J$1),3) -> 7.838 | C80: =ROUND('Tarifgruppe S'!C65*(1-Maklertarif!$J$1),3) -> 11.039 | D80: =ROUND('Tarifgruppe S'!D65*(1-Maklertarif!$J$1),3) -> 13.623 | E80: =ROUND('Tarifgruppe S'!E65*(1-Maklertarif!$J$1),3) -> 6.166 | F80: =ROUND('Tarifgruppe S'!F65*(1-Maklertarif!$J$1),3) -> 4.133 | G80: =ROUND('Tarifgruppe S'!G65*(1-Maklertarif!$J$1),3) -> 4.028 | H80: =ROUND('Tarifgruppe S'!H65*(1-Maklertarif!$J$1),3) -> 48.26 | I80: =ROUND('Tarifgruppe S'!I65*(1-Maklertarif!$J$1),3) -> 6.536 | J80: =ROUND('Tarifgruppe S'!J65*(1-Maklertarif!$J$1),3) -> 9.196 | K80: =ROUND('Tarifgruppe S'!K65*(1-Maklertarif!$J$1),3) -> 11.353 | L80: =ROUND('Tarifgruppe S'!L65*(1-Maklertarif!$J$1),3) -> 5.14 | M80: =ROUND('Tarifgruppe S'!M65*(1-Maklertarif!$J$1),3) -> 3.439 | N80: =ROUND('Tarifgruppe S'!N65*(1-Maklertarif!$J$1),3) -> 3.363 | O80: =ROUND('Tarifgruppe S'!O65*(1-Maklertarif!$J$1),3) -> 40.214 | Q80: 52 | R80: =ROUND('Tarif URP'!B61*(1-Maklertarif!$J$1),3) -> 3.42 | S80: =ROUND('Tarif URP'!C61*(1-Maklertarif!$J$1),3) -> 3.43 | T80: =ROUND('Tarif URP'!D61*(1-Maklertarif!$J$1),3) -> 7.021 | U80: =ROUND('Tarif URP'!E61*(1-Maklertarif!$J$1),3) -> 8.009
A81: 116 | B81: =ROUND('Tarifgruppe S'!B66*(1-Maklertarif!$J$1),3) -> 8.237 | C81: =ROUND('Tarifgruppe S'!C66*(1-Maklertarif!$J$1),3) -> 11.59 | D81: =ROUND('Tarifgruppe S'!D66*(1-Maklertarif!$J$1),3) -> 14.307 | E81: =ROUND('Tarifgruppe S'!E66*(1-Maklertarif!$J$1),3) -> 6.47 | F81: =ROUND('Tarifgruppe S'!F66*(1-Maklertarif!$J$1),3) -> 4.342 | G81: =ROUND('Tarifgruppe S'!G66*(1-Maklertarif!$J$1),3) -> 4.237 | H81: =ROUND('Tarifgruppe S'!H66*(1-Maklertarif!$J$1),3) -> 50.673 | I81: =ROUND('Tarifgruppe S'!I66*(1-Maklertarif!$J$1),3) -> 6.859 | J81: =ROUND('Tarifgruppe S'!J66*(1-Maklertarif!$J$1),3) -> 9.662 | K81: =ROUND('Tarifgruppe S'!K66*(1-Maklertarif!$J$1),3) -> 11.923 | L81: =ROUND('Tarifgruppe S'!L66*(1-Maklertarif!$J$1),3) -> 5.396 | M81: =ROUND('Tarifgruppe S'!M66*(1-Maklertarif!$J$1),3) -> 3.62 | N81: =ROUND('Tarifgruppe S'!N66*(1-Maklertarif!$J$1),3) -> 3.525 | O81: =ROUND('Tarifgruppe S'!O66*(1-Maklertarif!$J$1),3) -> 42.228 | Q81: 53 | R81: =ROUND('Tarif URP'!B62*(1-Maklertarif!$J$1),3) -> 3.458 | S81: =ROUND('Tarif URP'!C62*(1-Maklertarif!$J$1),3) -> 3.458 | T81: =ROUND('Tarif URP'!D62*(1-Maklertarif!$J$1),3) -> 7.6 | U81: =ROUND('Tarif URP'!E62*(1-Maklertarif!$J$1),3) -> 8.636
A82: 117 | B82: =ROUND('Tarifgruppe S'!B67*(1-Maklertarif!$J$1),3) -> 8.645 | C82: =ROUND('Tarifgruppe S'!C67*(1-Maklertarif!$J$1),3) -> 12.17 | D82: =ROUND('Tarifgruppe S'!D67*(1-Maklertarif!$J$1),3) -> 15.02 | E82: =ROUND('Tarifgruppe S'!E67*(1-Maklertarif!$J$1),3) -> 6.802 | F82: =ROUND('Tarifgruppe S'!F67*(1-Maklertarif!$J$1),3) -> 4.56 | G82: =ROUND('Tarifgruppe S'!G67*(1-Maklertarif!$J$1),3) -> 4.446 | H82: =ROUND('Tarifgruppe S'!H67*(1-Maklertarif!$J$1),3) -> 53.21 | I82: =ROUND('Tarifgruppe S'!I67*(1-Maklertarif!$J$1),3) -> 7.201 | J82: =ROUND('Tarifgruppe S'!J67*(1-Maklertarif!$J$1),3) -> 10.146 | K82: =ROUND('Tarifgruppe S'!K67*(1-Maklertarif!$J$1),3) -> 12.512 | L82: =ROUND('Tarifgruppe S'!L67*(1-Maklertarif!$J$1),3) -> 5.662 | M82: =ROUND('Tarifgruppe S'!M67*(1-Maklertarif!$J$1),3) -> 3.8 | N82: =ROUND('Tarifgruppe S'!N67*(1-Maklertarif!$J$1),3) -> 3.705 | O82: =ROUND('Tarifgruppe S'!O67*(1-Maklertarif!$J$1),3) -> 44.337 | Q82: 54 | R82: =ROUND('Tarif URP'!B63*(1-Maklertarif!$J$1),3) -> 3.458 | S82: =ROUND('Tarif URP'!C63*(1-Maklertarif!$J$1),3) -> 3.439 | T82: =ROUND('Tarif URP'!D63*(1-Maklertarif!$J$1),3) -> 8.237 | U82: =ROUND('Tarif URP'!E63*(1-Maklertarif!$J$1),3) -> 9.329
A83: 118 | B83: =ROUND('Tarifgruppe S'!B68*(1-Maklertarif!$J$1),3) -> 9.073 | C83: =ROUND('Tarifgruppe S'!C68*(1-Maklertarif!$J$1),3) -> 12.778 | D83: =ROUND('Tarifgruppe S'!D68*(1-Maklertarif!$J$1),3) -> 15.77 | E83: =ROUND('Tarifgruppe S'!E68*(1-Maklertarif!$J$1),3) -> 7.135 | F83: =ROUND('Tarifgruppe S'!F68*(1-Maklertarif!$J$1),3) -> 4.788 | G83: =ROUND('Tarifgruppe S'!G68*(1-Maklertarif!$J$1),3) -> 4.665 | H83: =ROUND('Tarifgruppe S'!H68*(1-Maklertarif!$J$1),3) -> 55.87 | I83: =ROUND('Tarifgruppe S'!I68*(1-Maklertarif!$J$1),3) -> 7.562 | J83: =ROUND('Tarifgruppe S'!J68*(1-Maklertarif!$J$1),3) -> 10.65 | K83: =ROUND('Tarifgruppe S'!K68*(1-Maklertarif!$J$1),3) -> 13.139 | L83: =ROUND('Tarifgruppe S'!L68*(1-Maklertarif!$J$1),3) -> 5.947 | M83: =ROUND('Tarifgruppe S'!M68*(1-Maklertarif!$J$1),3) -> 3.99 | N83: =ROUND('Tarifgruppe S'!N68*(1-Maklertarif!$J$1),3) -> 3.886 | O83: =ROUND('Tarifgruppe S'!O68*(1-Maklertarif!$J$1),3) -> 46.56 | Q83: 55 | R83: =ROUND('Tarif URP'!B64*(1-Maklertarif!$J$1),3) -> 3.373 | S83: =ROUND('Tarif URP'!C64*(1-Maklertarif!$J$1),3) -> 3.335 | T83: =ROUND('Tarif URP'!D64*(1-Maklertarif!$J$1),3) -> 8.693 | U83: =ROUND('Tarif URP'!E64*(1-Maklertarif!$J$1),3) -> 9.776
A84: 119 | B84: =ROUND('Tarifgruppe S'!B69*(1-Maklertarif!$J$1),3) -> 9.529 | C84: =ROUND('Tarifgruppe S'!C69*(1-Maklertarif!$J$1),3) -> 13.414 | D84: =ROUND('Tarifgruppe S'!D69*(1-Maklertarif!$J$1),3) -> 16.559 | E84: =ROUND('Tarifgruppe S'!E69*(1-Maklertarif!$J$1),3) -> 7.496 | F84: =ROUND('Tarifgruppe S'!F69*(1-Maklertarif!$J$1),3) -> 5.026 | G84: =ROUND('Tarifgruppe S'!G69*(1-Maklertarif!$J$1),3) -> 4.902 | H84: =ROUND('Tarifgruppe S'!H69*(1-Maklertarif!$J$1),3) -> 58.663 | I84: =ROUND('Tarifgruppe S'!I69*(1-Maklertarif!$J$1),3) -> 7.942 | J84: =ROUND('Tarifgruppe S'!J69*(1-Maklertarif!$J$1),3) -> 11.182 | K84: =ROUND('Tarifgruppe S'!K69*(1-Maklertarif!$J$1),3) -> 13.794 | L84: =ROUND('Tarifgruppe S'!L69*(1-Maklertarif!$J$1),3) -> 6.242 | M84: =ROUND('Tarifgruppe S'!M69*(1-Maklertarif!$J$1),3) -> 4.19 | N84: =ROUND('Tarifgruppe S'!N69*(1-Maklertarif!$J$1),3) -> 4.085 | O84: =ROUND('Tarifgruppe S'!O69*(1-Maklertarif!$J$1),3) -> 48.887 | Q84: 56 | R84: =ROUND('Tarif URP'!B65*(1-Maklertarif!$J$1),3) -> 3.278 | S84: =ROUND('Tarif URP'!C65*(1-Maklertarif!$J$1),3) -> 3.23 | T84: =ROUND('Tarif URP'!D65*(1-Maklertarif!$J$1),3) -> 9.491 | U84: =ROUND('Tarif URP'!E65*(1-Maklertarif!$J$1),3) -> 10.64
A85: 120 | B85: =ROUND('Tarifgruppe S'!B70*(1-Maklertarif!$J$1),3) -> 10.004 | C85: =ROUND('Tarifgruppe S'!C70*(1-Maklertarif!$J$1),3) -> 14.089 | D85: =ROUND('Tarifgruppe S'!D70*(1-Maklertarif!$J$1),3) -> 17.385 | E85: =ROUND('Tarifgruppe S'!E70*(1-Maklertarif!$J$1),3) -> 7.866 | F85: =ROUND('Tarifgruppe S'!F70*(1-Maklertarif!$J$1),3) -> 5.273 | G85: =ROUND('Tarifgruppe S'!G70*(1-Maklertarif!$J$1),3) -> 5.149 | H85: =ROUND('Tarifgruppe S'!H70*(1-Maklertarif!$J$1),3) -> 61.589 | I85: =ROUND('Tarifgruppe S'!I70*(1-Maklertarif!$J$1),3) -> 8.341 | J85: =ROUND('Tarifgruppe S'!J70*(1-Maklertarif!$J$1),3) -> 11.742 | K85: =ROUND('Tarifgruppe S'!K70*(1-Maklertarif!$J$1),3) -> 14.488 | L85: =ROUND('Tarifgruppe S'!L70*(1-Maklertarif!$J$1),3) -> 6.555 | M85: =ROUND('Tarifgruppe S'!M70*(1-Maklertarif!$J$1),3) -> 4.399 | N85: =ROUND('Tarifgruppe S'!N70*(1-Maklertarif!$J$1),3) -> 4.285 | O85: =ROUND('Tarifgruppe S'!O70*(1-Maklertarif!$J$1),3) -> 51.329 | Q85: 57 | R85: =ROUND('Tarif URP'!B66*(1-Maklertarif!$J$1),3) -> 3.097 | S85: =ROUND('Tarif URP'!C66*(1-Maklertarif!$J$1),3) -> 3.04 | T85: =ROUND('Tarif URP'!D66*(1-Maklertarif!$J$1),3) -> 10.431 | U85: =ROUND('Tarif URP'!E66*(1-Maklertarif!$J$1),3) -> 11.647
A86: 121 | B86: =ROUND('Tarifgruppe S'!B71*(1-Maklertarif!$J$1),3) -> 10.507 | C86: =ROUND('Tarifgruppe S'!C71*(1-Maklertarif!$J$1),3) -> 14.792 | D86: =ROUND('Tarifgruppe S'!D71*(1-Maklertarif!$J$1),3) -> 18.259 | E86: =ROUND('Tarifgruppe S'!E71*(1-Maklertarif!$J$1),3) -> 8.265 | F86: =ROUND('Tarifgruppe S'!F71*(1-Maklertarif!$J$1),3) -> 5.539 | G86: =ROUND('Tarifgruppe S'!G71*(1-Maklertarif!$J$1),3) -> 5.406 | H86: =ROUND('Tarifgruppe S'!H71*(1-Maklertarif!$J$1),3) -> 64.676 | I86: =ROUND('Tarifgruppe S'!I71*(1-Maklertarif!$J$1),3) -> 8.759 | J86: =ROUND('Tarifgruppe S'!J71*(1-Maklertarif!$J$1),3) -> 12.331 | K86: =ROUND('Tarifgruppe S'!K71*(1-Maklertarif!$J$1),3) -> 15.21 | L86: =ROUND('Tarifgruppe S'!L71*(1-Maklertarif!$J$1),3) -> 6.888 | M86: =ROUND('Tarifgruppe S'!M71*(1-Maklertarif!$J$1),3) -> 4.617 | N86: =ROUND('Tarifgruppe S'!N71*(1-Maklertarif!$J$1),3) -> 4.503 | O86: =ROUND('Tarifgruppe S'!O71*(1-Maklertarif!$J$1),3) -> 53.894 | Q86: 58 | R86: =ROUND('Tarif URP'!B67*(1-Maklertarif!$J$1),3) -> 2.252 | S86: =ROUND('Tarif URP'!C67*(1-Maklertarif!$J$1),3) -> 2.204 | T86: =ROUND('Tarif URP'!D67*(1-Maklertarif!$J$1),3) -> 11.543 | U86: =ROUND('Tarif URP'!E67*(1-Maklertarif!$J$1),3) -> 12.854
A87: 122 | B87: =ROUND('Tarifgruppe S'!B72*(1-Maklertarif!$J$1),3) -> 11.03 | C87: =ROUND('Tarifgruppe S'!C72*(1-Maklertarif!$J$1),3) -> 15.533 | D87: =ROUND('Tarifgruppe S'!D72*(1-Maklertarif!$J$1),3) -> 19.171 | E87: =ROUND('Tarifgruppe S'!E72*(1-Maklertarif!$J$1),3) -> 8.674 | F87: =ROUND('Tarifgruppe S'!F72*(1-Maklertarif!$J$1),3) -> 5.814 | G87: =ROUND('Tarifgruppe S'!G72*(1-Maklertarif!$J$1),3) -> 5.672 | H87: =ROUND('Tarifgruppe S'!H72*(1-Maklertarif!$J$1),3) -> 67.906 | I87: =ROUND('Tarifgruppe S'!I72*(1-Maklertarif!$J$1),3) -> 9.196 | J87: =ROUND('Tarifgruppe S'!J72*(1-Maklertarif!$J$1),3) -> 12.939 | K87: =ROUND('Tarifgruppe S'!K72*(1-Maklertarif!$J$1),3) -> 15.97 | L87: =ROUND('Tarifgruppe S'!L72*(1-Maklertarif!$J$1),3) -> 7.23 | M87: =ROUND('Tarifgruppe S'!M72*(1-Maklertarif!$J$1),3) -> 4.845 | N87: =ROUND('Tarifgruppe S'!N72*(1-Maklertarif!$J$1),3) -> 4.731 | O87: =ROUND('Tarifgruppe S'!O72*(1-Maklertarif!$J$1),3) -> 56.592 | Q87: 59 | R87: =ROUND('Tarif URP'!B68*(1-Maklertarif!$J$1),3) -> 0.903 | S87: =ROUND('Tarif URP'!C68*(1-Maklertarif!$J$1),3) -> 0.884 | T87: =ROUND('Tarif URP'!D68*(1-Maklertarif!$J$1),3) -> 12.806 | U87: =ROUND('Tarif URP'!E68*(1-Maklertarif!$J$1),3) -> 14.212
A88: 123 | B88: =ROUND('Tarifgruppe S'!B73*(1-Maklertarif!$J$1),3) -> 11.581 | C88: =ROUND('Tarifgruppe S'!C73*(1-Maklertarif!$J$1),3) -> 16.312 | D88: =ROUND('Tarifgruppe S'!D73*(1-Maklertarif!$J$1),3) -> 20.121 | E88: =ROUND('Tarifgruppe S'!E73*(1-Maklertarif!$J$1),3) -> 9.111 | F88: =ROUND('Tarifgruppe S'!F73*(1-Maklertarif!$J$1),3) -> 6.109 | G88: =ROUND('Tarifgruppe S'!G73*(1-Maklertarif!$J$1),3) -> 5.957 | H88: =ROUND('Tarifgruppe S'!H73*(1-Maklertarif!$J$1),3) -> 71.298 | I88: =ROUND('Tarifgruppe S'!I73*(1-Maklertarif!$J$1),3) -> 9.652 | J88: =ROUND('Tarifgruppe S'!J73*(1-Maklertarif!$J$1),3) -> 13.595 | K88: =ROUND('Tarifgruppe S'!K73*(1-Maklertarif!$J$1),3) -> 16.768 | L88: =ROUND('Tarifgruppe S'!L73*(1-Maklertarif!$J$1),3) -> 7.591 | M88: =ROUND('Tarifgruppe S'!M73*(1-Maklertarif!$J$1),3) -> 5.092 | N88: =ROUND('Tarifgruppe S'!N73*(1-Maklertarif!$J$1),3) -> 4.959 | O88: =ROUND('Tarifgruppe S'!O73*(1-Maklertarif!$J$1),3) -> 59.423 | Q88: 60 | T88: =ROUND('Tarif URP'!D69*(1-Maklertarif!$J$1),3) -> 13.69 | U88: =ROUND('Tarif URP'!E69*(1-Maklertarif!$J$1),3) -> 15.077
A89: 124 | B89: =ROUND('Tarifgruppe S'!B74*(1-Maklertarif!$J$1),3) -> 12.16 | C89: =ROUND('Tarifgruppe S'!C74*(1-Maklertarif!$J$1),3) -> 17.129 | D89: =ROUND('Tarifgruppe S'!D74*(1-Maklertarif!$J$1),3) -> 21.128 | E89: =ROUND('Tarifgruppe S'!E74*(1-Maklertarif!$J$1),3) -> 9.567 | F89: =ROUND('Tarifgruppe S'!F74*(1-Maklertarif!$J$1),3) -> 6.413 | G89: =ROUND('Tarifgruppe S'!G74*(1-Maklertarif!$J$1),3) -> 6.251 | H89: =ROUND('Tarifgruppe S'!H74*(1-Maklertarif!$J$1),3) -> 74.87 | I89: =ROUND('Tarifgruppe S'!I74*(1-Maklertarif!$J$1),3) -> 10.137 | J89: =ROUND('Tarifgruppe S'!J74*(1-Maklertarif!$J$1),3) -> 14.269 | K89: =ROUND('Tarifgruppe S'!K74*(1-Maklertarif!$J$1),3) -> 17.613 | L89: =ROUND('Tarifgruppe S'!L74*(1-Maklertarif!$J$1),3) -> 7.971 | M89: =ROUND('Tarifgruppe S'!M74*(1-Maklertarif!$J$1),3) -> 5.339 | N89: =ROUND('Tarifgruppe S'!N74*(1-Maklertarif!$J$1),3) -> 5.216 | O89: =ROUND('Tarifgruppe S'!O74*(1-Maklertarif!$J$1),3) -> 62.387 | Q89: 61 | T89: =ROUND('Tarif URP'!D70*(1-Maklertarif!$J$1),3) -> 15.162 | U89: =ROUND('Tarif URP'!E70*(1-Maklertarif!$J$1),3) -> 16.654
A90: 125 | B90: =ROUND('Tarifgruppe S'!B75*(1-Maklertarif!$J$1),3) -> 12.768 | C90: =ROUND('Tarifgruppe S'!C75*(1-Maklertarif!$J$1),3) -> 17.984 | D90: =ROUND('Tarifgruppe S'!D75*(1-Maklertarif!$J$1),3) -> 22.192 | E90: =ROUND('Tarifgruppe S'!E75*(1-Maklertarif!$J$1),3) -> 10.042 | F90: =ROUND('Tarifgruppe S'!F75*(1-Maklertarif!$J$1),3) -> 6.736 | G90: =ROUND('Tarifgruppe S'!G75*(1-Maklertarif!$J$1),3) -> 6.565 | H90: =ROUND('Tarifgruppe S'!H75*(1-Maklertarif!$J$1),3) -> 78.613 | I90: =ROUND('Tarifgruppe S'!I75*(1-Maklertarif!$J$1),3) -> 10.64 | J90: =ROUND('Tarifgruppe S'!J75*(1-Maklertarif!$J$1),3) -> 14.982 | K90: =ROUND('Tarifgruppe S'!K75*(1-Maklertarif!$J$1),3) -> 18.487 | L90: =ROUND('Tarifgruppe S'!L75*(1-Maklertarif!$J$1),3) -> 8.37 | M90: =ROUND('Tarifgruppe S'!M75*(1-Maklertarif!$J$1),3) -> 5.605 | N90: =ROUND('Tarifgruppe S'!N75*(1-Maklertarif!$J$1),3) -> 5.472 | O90: =ROUND('Tarifgruppe S'!O75*(1-Maklertarif!$J$1),3) -> 65.512 | Q90: 62 | T90: =ROUND('Tarif URP'!D71*(1-Maklertarif!$J$1),3) -> 16.682 | U90: =ROUND('Tarif URP'!E71*(1-Maklertarif!$J$1),3) -> 18.278
Q91: 63 | T91: =ROUND('Tarif URP'!D72*(1-Maklertarif!$J$1),3) -> 18.174 | U91: =ROUND('Tarif URP'!E72*(1-Maklertarif!$J$1),3) -> 19.874
Q92: 64 | T92: =ROUND('Tarif URP'!D73*(1-Maklertarif!$J$1),3) -> 19.713 | U92: =ROUND('Tarif URP'!E73*(1-Maklertarif!$J$1),3) -> 21.508
Q93: 65 | T93: =ROUND('Tarif URP'!D74*(1-Maklertarif!$J$1),3) -> 20.501 | U93: =ROUND('Tarif URP'!E74*(1-Maklertarif!$J$1),3) -> 22.211
Q94: 66 | T94: =ROUND('Tarif URP'!D75*(1-Maklertarif!$J$1),3) -> 22.059 | U94: =ROUND('Tarif URP'!E75*(1-Maklertarif!$J$1),3) -> 23.845

Sheet V-Tarif (hidden)
I1: Nachlass | J1: 0.5
B2: Gefahrengruppe A, B, K für Einzelunfall
B3: Leistungsarten Erwachsene Kinder | D3: A | E3: B | F3: K | G3: S
A4: Progression | B4: ohne | C4: je 1.000 | D4: =ROUND(Tarifgruppen!D3*(1-'V-Tarif'!$J$1),2) -> 0.33 | E4: =ROUND(Tarifgruppen!E3*(1-'V-Tarif'!$J$1),2) -> 0.47 | F4: =ROUND(Tarifgruppen!I3*(1-'V-Tarif'!$J$1),2) -> 0.16
A5: Progression | B5: 3.5 | C5: je 1.000 | D5: =ROUND(Tarifgruppen!D4*(1-'V-Tarif'!$J$1),2) -> 0.47 | E5: =ROUND(Tarifgruppen!E4*(1-'V-Tarif'!$J$1),2) -> 0.67 | F5: =ROUND(Tarifgruppen!I4*(1-'V-Tarif'!$J$1),2) -> 0.21
A6: Progression | B6: 6 | C6: je 1.000 | D6: =ROUND(Tarifgruppen!D5*(1-'V-Tarif'!$J$1),2) -> 0.58 | E6: =ROUND(Tarifgruppen!E5*(1-'V-Tarif'!$J$1),2) -> 0.84 | F6: =ROUND(Tarifgruppen!I5*(1-'V-Tarif'!$J$1),2) -> 0.24
B7: mit verbesserter Gliedertaxe für Ärzte UIVGT | C7: je 1.000 | D7: =ROUND(Tarifgruppen!D6*(1-'V-Tarif'!$J$1),2) -> 0.68
B8: mit verbesserter Gliedertaxe für Ärzte mit UIVGP 350% | C8: je 1.000 | D8: =ROUND(Tarifgruppen!D7*(1-'V-Tarif'!$J$1),2) -> 1.46
B9: Invaliditätsrente 0 – 59 Jahre UIR 65 | C9: je 10 | D9: =ROUND(Tarifgruppen!D8*(1-'V-Tarif'!$J$1),2) -> 0.22 | E9: =ROUND(Tarifgruppen!E8*(1-'V-Tarif'!$J$1),2) -> 0.41 | F9: =ROUND(Tarifgruppen!I8*(1-'V-Tarif'!$J$1),2) -> 0.16
B10: Invaliditätsrente 0 – 59 Jahre UIR (ein Leben lang) | C10: je 10 | D10: =ROUND(Tarifgruppen!D9*(1-'V-Tarif'!$J$1),2) -> 0.4 | E10: =ROUND(Tarifgruppen!E9*(1-'V-Tarif'!$J$1),2) -> 0.65 | F10: =ROUND(Tarifgruppen!I9*(1-'V-Tarif'!$J$1),2) -> 0.18 | G10: =ROUND(Tarifgruppen!J9*(1-'V-Tarif'!$J$1),2) -> 0
D11: =ROUND(Tarifgruppen!D10*(1-'V-Tarif'!$J$1),2) -> 0 | E11: =ROUND(Tarifgruppen!E10*(1-'V-Tarif'!$J$1),2) -> 0 | F11: =ROUND(Tarifgruppen!I10*(1-'V-Tarif'!$J$1),2) -> 0 | G11: =ROUND(Tarifgruppen!J10*(1-'V-Tarif'!$J$1),2) -> 0
B12: Tod UT | C12: je 1.000 | D12: =ROUND(Tarifgruppen!D11*(1-'V-Tarif'!$J$1),2) -> 0.26 | E12: =ROUND(Tarifgruppen!E11*(1-'V-Tarif'!$J$1),2) -> 0.33 | F12: =ROUND(Tarifgruppen!J11*(1-'V-Tarif'!$J$1),2) -> 0.17
B13: Unfallkrankenhaustagegeld UKT | C13: je 1 | D13: =ROUND(Tarifgruppen!D12*(1-'V-Tarif'!$J$1),2) -> 0.18 | E13: =ROUND(Tarifgruppen!E12*(1-'V-Tarif'!$J$1),2) -> 0.23 | F13: =ROUND(Tarifgruppen!J12*(1-'V-Tarif'!$J$1),2) -> 0.11
B14: Genesungsgeld GG | C14: je 1 | D14: =ROUND(Tarifgruppen!D13*(1-'V-Tarif'!$J$1),2) -> 0.17 | E14: =ROUND(Tarifgruppen!E13*(1-'V-Tarif'!$J$1),2) -> 0.23 | F14: =ROUND(Tarifgruppen!J13*(1-'V-Tarif'!$J$1),2) -> 0.1
A15: Tagegeld | B15: ab 8. Tag | C15: je 1 | D15: =ROUND(Tarifgruppen!D14*(1-'V-Tarif'!$J$1),2) -> 2.23 | E15: =ROUND(Tarifgruppen!E14*(1-'V-Tarif'!$J$1),2) -> 3.47
A16: Tagegeld | B16: ab 15. Tag | C16: je 1 | D16: =ROUND(Tarifgruppen!D15*(1-'V-Tarif'!$J$1),2) -> 2.04 | E16: =ROUND(Tarifgruppen!E15*(1-'V-Tarif'!$J$1),2) -> 2.58
A17: Tagegeld | B17: ab 29. Tag | C17: je 1 | D17: =ROUND(Tarifgruppen!D16*(1-'V-Tarif'!$J$1),2) -> 1.48 | E17: =ROUND(Tarifgruppen!E16*(1-'V-Tarif'!$J$1),2) -> 2.19
A18: Tagegeld | B18: ab 43. Tag | C18: je 1 | D18: =ROUND(Tarifgruppen!D17*(1-'V-Tarif'!$J$1),2) -> 1.4 | E18: =ROUND(Tarifgruppen!E17*(1-'V-Tarif'!$J$1),2) -> 2.06
B19: Tagegeld Spezial TGsp | C19: je 1 | D19: =ROUND(Tarifgruppen!D18*(1-'V-Tarif'!$J$1),2) -> 2.04 | E19: =ROUND(Tarifgruppen!E18*(1-'V-Tarif'!$J$1),2) -> 2.58 | F19: =ROUND(Tarifgruppen!I18*(1-'V-Tarif'!$J$1),2) -> 1.94
B20: Kosmetische Operationen KOP | C20: je 5.000 | D20: =ROUND(Tarifgruppen!D19*(1-'V-Tarif'!$J$1),2) -> 3.35 | E20: =ROUND(Tarifgruppen!E19*(1-'V-Tarif'!$J$1),2) -> 3.35 | F20: =ROUND(Tarifgruppen!I19*(1-'V-Tarif'!$J$1),2) -> 1.68 | G20: =ROUND(Tarifgruppen!J19*(1-'V-Tarif'!$J$1),2) -> 3.35
B21: Bergungskosten BK bis 10.000 beitragsfrei | C21: je 5.000 | D21: =ROUND(Tarifgruppen!D20*(1-'V-Tarif'!$J$1),2) -> 2.4 | E21: =ROUND(Tarifgruppen!E20*(1-'V-Tarif'!$J$1),2) -> 2.4 | F21: =ROUND(Tarifgruppen!I20*(1-'V-Tarif'!$J$1),2) -> 1.2 | G21: =ROUND(Tarifgruppen!J20*(1-'V-Tarif'!$J$1),2) -> 2.4
B22: Baustein CuraPlus | D22: =ROUND(Tarifgruppen!D21*(1-'V-Tarif'!$J$1),2) -> 30 | E22: =ROUND(Tarifgruppen!E21*(1-'V-Tarif'!$J$1),2) -> 30 | F22: =ROUND(Tarifgruppen!I21*(1-'V-Tarif'!$J$1),2) -> 7.5 | G22: =ROUND(Tarifgruppen!J21*(1-'V-Tarif'!$J$1),2) -> 60
B26: Gefahrengruppe Senioren für Einzelunfall
B27: ohne Integralfranchise | I27: mit Integralfranchise | R27: URP 60 | T27: URP lebenslang
A28: Alter | B28: ohne Progression | C28: 350 Progression | D28: 600 Progression | E28: Unfalltod | F28: KHTG | G28: GG | H28: TG spez | I28: ohne Progression | J28: 350 Progression | K28: 600 Progression | L28: Unfalltod | M28: KHTG | N28: GG | O28: TG spez | Q28: Alter | R28: ohne Passivdynamik | S28: mit Passivdynamik | T28: ohne Passivdynamik | U28: mit Passivdynamik
Q29: 1 | R29: =ROUND('Tarif URP'!B10*(1-'V-Tarif'!$J$1),2) -> 0.54 | S29: =ROUND('Tarif URP'!C10*(1-'V-Tarif'!$J$1),2) -> 0.73 | T29: =ROUND('Tarif URP'!D10*(1-'V-Tarif'!$J$1),2) -> 0.62 | U29: =ROUND('Tarif URP'!E10*(1-'V-Tarif'!$J$1),2) -> 0.92
Q30: 2 | R30: =ROUND('Tarif URP'!B11*(1-'V-Tarif'!$J$1),2) -> 0.54 | S30: =ROUND('Tarif URP'!C11*(1-'V-Tarif'!$J$1),2) -> 0.73 | T30: =ROUND('Tarif URP'!D11*(1-'V-Tarif'!$J$1),2) -> 0.62 | U30: =ROUND('Tarif URP'!E11*(1-'V-Tarif'!$J$1),2) -> 0.92
Q31: 3 | R31: =ROUND('Tarif URP'!B12*(1-'V-Tarif'!$J$1),2) -> 0.54 | S31: =ROUND('Tarif URP'!C12*(1-'V-Tarif'!$J$1),2) -> 0.73 | T31: =ROUND('Tarif URP'!D12*(1-'V-Tarif'!$J$1),2) -> 0.62 | U31: =ROUND('Tarif URP'!E12*(1-'V-Tarif'!$J$1),2) -> 0.92
A32: 67 | B32: =ROUND('Tarifgruppe S'!B17*(1-'V-Tarif'!$J$1),2) -> 0.4 | C32: =ROUND('Tarifgruppe S'!C17*(1-'V-Tarif'!$J$1),2) -> 0.56 | D32: =ROUND('Tarifgruppe S'!D17*(1-'V-Tarif'!$J$1),2) -> 0.69 | E32: =ROUND('Tarifgruppe S'!E17*(1-'V-Tarif'!$J$1),2) -> 0.31 | F32: =ROUND('Tarifgruppe S'!F17*(1-'V-Tarif'!$J$1),2) -> 0.21 | G32: =ROUND('Tarifgruppe S'!G17*(1-'V-Tarif'!$J$1),2) -> 0.21 | H32: =ROUND('Tarifgruppe S'!H17*(1-'V-Tarif'!$J$1),2) -> 2.44 | I32: =ROUND('Tarifgruppe S'!I17*(1-'V-Tarif'!$J$1),2) -> 0.33 | J32: =ROUND('Tarifgruppe S'!J17*(1-'V-Tarif'!$J$1),2) -> 0.47 | K32: =ROUND('Tarifgruppe S'!K17*(1-'V-Tarif'!$J$1),2) -> 0.58 | L32: =ROUND('Tarifgruppe S'!L17*(1-'V-Tarif'!$J$1),2) -> 0.26 | M32: =ROUND('Tarifgruppe S'!M17*(1-'V-Tarif'!$J$1),2) -> 0.18 | N32: =ROUND('Tarifgruppe S'!N17*(1-'V-Tarif'!$J$1),2) -> 0.17 | O32: =ROUND('Tarifgruppe S'!O17*(1-'V-Tarif'!$J$1),2) -> 2.04 | Q32: 4 | R32: =ROUND('Tarif URP'!B13*(1-'V-Tarif'!$J$1),2) -> 0.54 | S32: =ROUND('Tarif URP'!C13*(1-'V-Tarif'!$J$1),2) -> 0.73 | T32: =ROUND('Tarif URP'!D13*(1-'V-Tarif'!$J$1),2) -> 0.62 | U32: =ROUND('Tarif URP'!E13*(1-'V-Tarif'!$J$1),2) -> 0.92
A33: 68 | B33: =ROUND('Tarifgruppe S'!B18*(1-'V-Tarif'!$J$1),2) -> 0.42 | C33: =ROUND('Tarifgruppe S'!C18*(1-'V-Tarif'!$J$1),2) -> 0.59 | D33: =ROUND('Tarifgruppe S'!D18*(1-'V-Tarif'!$J$1),2) -> 0.73 | E33: =ROUND('Tarifgruppe S'!E18*(1-'V-Tarif'!$J$1),2) -> 0.33 | F33: =ROUND('Tarifgruppe S'!F18*(1-'V-Tarif'!$J$1),2) -> 0.22 | G33: =ROUND('Tarifgruppe S'!G18*(1-'V-Tarif'!$J$1),2) -> 0.22 | H33: =ROUND('Tarifgruppe S'!H18*(1-'V-Tarif'!$J$1),2) -> 2.57 | I33: =ROUND('Tarifgruppe S'!I18*(1-'V-Tarif'!$J$1),2) -> 0.35 | J33: =ROUND('Tarifgruppe S'!J18*(1-'V-Tarif'!$J$1),2) -> 0.49 | K33: =ROUND('Tarifgruppe S'!K18*(1-'V-Tarif'!$J$1),2) -> 0.61 | L33: =ROUND('Tarifgruppe S'!L18*(1-'V-Tarif'!$J$1),2) -> 0.28 | M33: =ROUND('Tarifgruppe S'!M18*(1-'V-Tarif'!$J$1),2) -> 0.19 | N33: =ROUND('Tarifgruppe S'!N18*(1-'V-Tarif'!$J$1),2) -> 0.18 | O33: =ROUND('Tarifgruppe S'!O18*(1-'V-Tarif'!$J$1),2) -> 2.14 | Q33: 5 | R33: =ROUND('Tarif URP'!B14*(1-'V-Tarif'!$J$1),2) -> 0.54 | S33: =ROUND('Tarif URP'!C14*(1-'V-Tarif'!$J$1),2) -> 0.73 | T33: =ROUND('Tarif URP'!D14*(1-'V-Tarif'!$J$1),2) -> 0.62 | U33: =ROUND('Tarif URP'!E14*(1-'V-Tarif'!$J$1),2) -> 0.92
A34: 69 | B34: =ROUND('Tarifgruppe S'!B19*(1-'V-Tarif'!$J$1),2) -> 0.44 | C34: =ROUND('Tarifgruppe S'!C19*(1-'V-Tarif'!$J$1),2) -> 0.62 | D34: =ROUND('Tarifgruppe S'!D19*(1-'V-Tarif'!$J$1),2) -> 0.76 | E34: =ROUND('Tarifgruppe S'!E19*(1-'V-Tarif'!$J$1),2) -> 0.35 | F34: =ROUND('Tarifgruppe S'!F19*(1-'V-Tarif'!$J$1),2) -> 0.23 | G34: =ROUND('Tarifgruppe S'!G19*(1-'V-Tarif'!$J$1),2) -> 0.23 | H34: =ROUND('Tarifgruppe S'!H19*(1-'V-Tarif'!$J$1),2) -> 2.69 | I34: =ROUND('Tarifgruppe S'!I19*(1-'V-Tarif'!$J$1),2) -> 0.37 | J34: =ROUND('Tarifgruppe S'!J19*(1-'V-Tarif'!$J$1),2) -> 0.52 | K34: =ROUND('Tarifgruppe S'!K19*(1-'V-Tarif'!$J$1),2) -> 0.64 | L34: =ROUND('Tarifgruppe S'!L19*(1-'V-Tarif'!$J$1),2) -> 0.29 | M34: =ROUND('Tarifgruppe S'!M19*(1-'V-Tarif'!$J$1),2) -> 0.19 | N34: =ROUND('Tarifgruppe S'!N19*(1-'V-Tarif'!$J$1),2) -> 0.19 | O34: =ROUND('Tarifgruppe S'!O19*(1-'V-Tarif'!$J$1),2) -> 2.25 | Q34: 6 | R34: =ROUND('Tarif URP'!B15*(1-'V-Tarif'!$J$1),2) -> 0.54 | S34: =ROUND('Tarif URP'!C15*(1-'V-Tarif'!$J$1),2) -> 0.73 | T34: =ROUND('Tarif URP'!D15*(1-'V-Tarif'!$J$1),2) -> 0.62 | U34: =ROUND('Tarif URP'!E15*(1-'V-Tarif'!$J$1),2) -> 0.92
A35: 70 | B35: =ROUND('Tarifgruppe S'!B20*(1-'V-Tarif'!$J$1),2) -> 0.46 | C35: =ROUND('Tarifgruppe S'!C20*(1-'V-Tarif'!$J$1),2) -> 0.65 | D35: =ROUND('Tarifgruppe S'!D20*(1-'V-Tarif'!$J$1),2) -> 0.8 | E35: =ROUND('Tarifgruppe S'!E20*(1-'V-Tarif'!$J$1),2) -> 0.36 | F35: =ROUND('Tarifgruppe S'!F20*(1-'V-Tarif'!$J$1),2) -> 0.24 | G35: =ROUND('Tarifgruppe S'!G20*(1-'V-Tarif'!$J$1),2) -> 0.24 | H35: =ROUND('Tarifgruppe S'!H20*(1-'V-Tarif'!$J$1),2) -> 2.83 | I35: =ROUND('Tarifgruppe S'!I20*(1-'V-Tarif'!$J$1),2) -> 0.39 | J35: =ROUND('Tarifgruppe S'!J20*(1-'V-Tarif'!$J$1),2) -> 0.54 | K35: =ROUND('Tarifgruppe S'!K20*(1-'V-Tarif'!$J$1),2) -> 0.67 | L35: =ROUND('Tarifgruppe S'!L20*(1-'V-Tarif'!$J$1),2) -> 0.3 | M35: =ROUND('Tarifgruppe S'!M20*(1-'V-Tarif'!$J$1),2) -> 0.2 | N35: =ROUND('Tarifgruppe S'!N20*(1-'V-Tarif'!$J$1),2) -> 0.2 | O35: =ROUND('Tarifgruppe S'!O20*(1-'V-Tarif'!$J$1),2) -> 2.36 | Q35: 7 | R35: =ROUND('Tarif URP'!B16*(1-'V-Tarif'!$J$1),2) -> 0.54 | S35: =ROUND('Tarif URP'!C16*(1-'V-Tarif'!$J$1),2) -> 0.73 | T35: =ROUND('Tarif URP'!D16*(1-'V-Tarif'!$J$1),2) -> 0.62 | U35: =ROUND('Tarif URP'!E16*(1-'V-Tarif'!$J$1),2) -> 0.92
A36: 71 | B36: =ROUND('Tarifgruppe S'!B21*(1-'V-Tarif'!$J$1),2) -> 0.48 | C36: =ROUND('Tarifgruppe S'!C21*(1-'V-Tarif'!$J$1),2) -> 0.68 | D36: =ROUND('Tarifgruppe S'!D21*(1-'V-Tarif'!$J$1),2) -> 0.84 | E36: =ROUND('Tarifgruppe S'!E21*(1-'V-Tarif'!$J$1),2) -> 0.38 | F36: =ROUND('Tarifgruppe S'!F21*(1-'V-Tarif'!$J$1),2) -> 0.26 | G36: =ROUND('Tarifgruppe S'!G21*(1-'V-Tarif'!$J$1),2) -> 0.25 | H36: =ROUND('Tarifgruppe S'!H21*(1-'V-Tarif'!$J$1),2) -> 2.97 | I36: =ROUND('Tarifgruppe S'!I21*(1-'V-Tarif'!$J$1),2) -> 0.4 | J36: =ROUND('Tarifgruppe S'!J21*(1-'V-Tarif'!$J$1),2) -> 0.57 | K36: =ROUND('Tarifgruppe S'!K21*(1-'V-Tarif'!$J$1),2) -> 0.7 | L36: =ROUND('Tarifgruppe S'!L21*(1-'V-Tarif'!$J$1),2) -> 0.32 | M36: =ROUND('Tarifgruppe S'!M21*(1-'V-Tarif'!$J$1),2) -> 0.21 | N36: =ROUND('Tarifgruppe S'!N21*(1-'V-Tarif'!$J$1),2) -> 0.21 | O36: =ROUND('Tarifgruppe S'!O21*(1-'V-Tarif'!$J$1),2) -> 2.48 | Q36: 8 | R36: =ROUND('Tarif URP'!B17*(1-'V-Tarif'!$J$1),2) -> 0.54 | S36: =ROUND('Tarif URP'!C17*(1-'V-Tarif'!$J$1),2) -> 0.73 | T36: =ROUND('Tarif URP'!D17*(1-'V-Tarif'!$J$1),2) -> 0.62 | U36: =ROUND('Tarif URP'!E17*(1-'V-Tarif'!$J$1),2) -> 0.92
A37: 72 | B37: =ROUND('Tarifgruppe S'!B22*(1-'V-Tarif'!$J$1),2) -> 0.51 | C37: =ROUND('Tarifgruppe S'!C22*(1-'V-Tarif'!$J$1),2) -> 0.72 | D37: =ROUND('Tarifgruppe S'!D22*(1-'V-Tarif'!$J$1),2) -> 0.88 | E37: =ROUND('Tarifgruppe S'!E22*(1-'V-Tarif'!$J$1),2) -> 0.4 | F37: =ROUND('Tarifgruppe S'!F22*(1-'V-Tarif'!$J$1),2) -> 0.27 | G37: =ROUND('Tarifgruppe S'!G22*(1-'V-Tarif'!$J$1),2) -> 0.26 | H37: =ROUND('Tarifgruppe S'!H22*(1-'V-Tarif'!$J$1),2) -> 3.12 | I37: =ROUND('Tarifgruppe S'!I22*(1-'V-Tarif'!$J$1),2) -> 0.42 | J37: =ROUND('Tarifgruppe S'!J22*(1-'V-Tarif'!$J$1),2) -> 0.6 | K37: =ROUND('Tarifgruppe S'!K22*(1-'V-Tarif'!$J$1),2) -> 0.74 | L37: =ROUND('Tarifgruppe S'!L22*(1-'V-Tarif'!$J$1),2) -> 0.33 | M37: =ROUND('Tarifgruppe S'!M22*(1-'V-Tarif'!$J$1),2) -> 0.22 | N37: =ROUND('Tarifgruppe S'!N22*(1-'V-Tarif'!$J$1),2) -> 0.22 | O37: =ROUND('Tarifgruppe S'!O22*(1-'V-Tarif'!$J$1),2) -> 2.6 | Q37: 9 | R37: =ROUND('Tarif URP'!B18*(1-'V-Tarif'!$J$1),2) -> 0.54 | S37: =ROUND('Tarif URP'!C18*(1-'V-Tarif'!$J$1),2) -> 0.73 | T37: =ROUND('Tarif URP'!D18*(1-'V-Tarif'!$J$1),2) -> 0.62 | U37: =ROUND('Tarif URP'!E18*(1-'V-Tarif'!$J$1),2) -> 0.92
A38: 73 | B38: =ROUND('Tarifgruppe S'!B23*(1-'V-Tarif'!$J$1),2) -> 0.53 | C38: =ROUND('Tarifgruppe S'!C23*(1-'V-Tarif'!$J$1),2) -> 0.75 | D38: =ROUND('Tarifgruppe S'!D23*(1-'V-Tarif'!$J$1),2) -> 0.93 | E38: =ROUND('Tarifgruppe S'!E23*(1-'V-Tarif'!$J$1),2) -> 0.42 | F38: =ROUND('Tarifgruppe S'!F23*(1-'V-Tarif'!$J$1),2) -> 0.28 | G38: =ROUND('Tarifgruppe S'!G23*(1-'V-Tarif'!$J$1),2) -> 0.28 | H38: =ROUND('Tarifgruppe S'!H23*(1-'V-Tarif'!$J$1),2) -> 3.28 | I38: =ROUND('Tarifgruppe S'!I23*(1-'V-Tarif'!$J$1),2) -> 0.45 | J38: =ROUND('Tarifgruppe S'!J23*(1-'V-Tarif'!$J$1),2) -> 0.63 | K38: =ROUND('Tarifgruppe S'!K23*(1-'V-Tarif'!$J$1),2) -> 0.77 | L38: =ROUND('Tarifgruppe S'!L23*(1-'V-Tarif'!$J$1),2) -> 0.35 | M38: =ROUND('Tarifgruppe S'!M23*(1-'V-Tarif'!$J$1),2) -> 0.24 | N38: =ROUND('Tarifgruppe S'!N23*(1-'V-Tarif'!$J$1),2) -> 0.23 | O38: =ROUND('Tarifgruppe S'!O23*(1-'V-Tarif'!$J$1),2) -> 2.73 | Q38: 10 | R38: =ROUND('Tarif URP'!B19*(1-'V-Tarif'!$J$1),2) -> 0.54 | S38: =ROUND('Tarif URP'!C19*(1-'V-Tarif'!$J$1),2) -> 0.73 | T38: =ROUND('Tarif URP'!D19*(1-'V-Tarif'!$J$1),2) -> 0.62 | U38: =ROUND('Tarif URP'!E19*(1-'V-Tarif'!$J$1),2) -> 0.92
A39: 74 | B39: =ROUND('Tarifgruppe S'!B24*(1-'V-Tarif'!$J$1),2) -> 0.56 | C39: =ROUND('Tarifgruppe S'!C24*(1-'V-Tarif'!$J$1),2) -> 0.79 | D39: =ROUND('Tarifgruppe S'!D24*(1-'V-Tarif'!$J$1),2) -> 0.97 | E39: =ROUND('Tarifgruppe S'!E24*(1-'V-Tarif'!$J$1),2) -> 0.44 | F39: =ROUND('Tarifgruppe S'!F24*(1-'V-Tarif'!$J$1),2) -> 0.3 | G39: =ROUND('Tarifgruppe S'!G24*(1-'V-Tarif'!$J$1),2) -> 0.29 | H39: =ROUND('Tarifgruppe S'!H24*(1-'V-Tarif'!$J$1),2) -> 3.44 | I39: =ROUND('Tarifgruppe S'!I24*(1-'V-Tarif'!$J$1),2) -> 0.47 | J39: =ROUND('Tarifgruppe S'!J24*(1-'V-Tarif'!$J$1),2) -> 0.66 | K39: =ROUND('Tarifgruppe S'!K24*(1-'V-Tarif'!$J$1),2) -> 0.81 | L39: =ROUND('Tarifgruppe S'!L24*(1-'V-Tarif'!$J$1),2) -> 0.37 | M39: =ROUND('Tarifgruppe S'!M24*(1-'V-Tarif'!$J$1),2) -> 0.25 | N39: =ROUND('Tarifgruppe S'!N24*(1-'V-Tarif'!$J$1),2) -> 0.24 | O39: =ROUND('Tarifgruppe S'!O24*(1-'V-Tarif'!$J$1),2) -> 2.87 | Q39: 11 | R39: =ROUND('Tarif URP'!B20*(1-'V-Tarif'!$J$1),2) -> 0.54 | S39: =ROUND('Tarif URP'!C20*(1-'V-Tarif'!$J$1),2) -> 0.73 | T39: =ROUND('Tarif URP'!D20*(1-'V-Tarif'!$J$1),2) -> 0.62 | U39: =ROUND('Tarif URP'!E20*(1-'V-Tarif'!$J$1),2) -> 0.92
A40: 75 | B40: =ROUND('Tarifgruppe S'!B25*(1-'V-Tarif'!$J$1),2) -> 0.59 | C40: =ROUND('Tarifgruppe S'!C25*(1-'V-Tarif'!$J$1),2) -> 0.83 | D40: =ROUND('Tarifgruppe S'!D25*(1-'V-Tarif'!$J$1),2) -> 1.02 | E40: =ROUND('Tarifgruppe S'!E25*(1-'V-Tarif'!$J$1),2) -> 0.46 | F40: =ROUND('Tarifgruppe S'!F25*(1-'V-Tarif'!$J$1),2) -> 0.31 | G40: =ROUND('Tarifgruppe S'!G25*(1-'V-Tarif'!$J$1),2) -> 0.3 | H40: =ROUND('Tarifgruppe S'!H25*(1-'V-Tarif'!$J$1),2) -> 3.61 | I40: =ROUND('Tarifgruppe S'!I25*(1-'V-Tarif'!$J$1),2) -> 0.49 | J40: =ROUND('Tarifgruppe S'!J25*(1-'V-Tarif'!$J$1),2) -> 0.69 | K40: =ROUND('Tarifgruppe S'!K25*(1-'V-Tarif'!$J$1),2) -> 0.85 | L40: =ROUND('Tarifgruppe S'!L25*(1-'V-Tarif'!$J$1),2) -> 0.39 | M40: =ROUND('Tarifgruppe S'!M25*(1-'V-Tarif'!$J$1),2) -> 0.26 | N40: =ROUND('Tarifgruppe S'!N25*(1-'V-Tarif'!$J$1),2) -> 0.25 | O40: =ROUND('Tarifgruppe S'!O25*(1-'V-Tarif'!$J$1),2) -> 3.01 | Q40: 12 | R40: =ROUND('Tarif URP'!B21*(1-'V-Tarif'!$J$1),2) -> 0.54 | S40: =ROUND('Tarif URP'!C21*(1-'V-Tarif'!$J$1),2) -> 0.73 | T40: =ROUND('Tarif URP'!D21*(1-'V-Tarif'!$J$1),2) -> 0.62 | U40: =ROUND('Tarif URP'!E21*(1-'V-Tarif'!$J$1),2) -> 0.92
A41: 76 | B41: =ROUND('Tarifgruppe S'!B26*(1-'V-Tarif'!$J$1),2) -> 0.62 | C41: =ROUND('Tarifgruppe S'!C26*(1-'V-Tarif'!$J$1),2) -> 0.87 | D41: =ROUND('Tarifgruppe S'!D26*(1-'V-Tarif'!$J$1),2) -> 1.07 | E41: =ROUND('Tarifgruppe S'!E26*(1-'V-Tarif'!$J$1),2) -> 0.49 | F41: =ROUND('Tarifgruppe S'!F26*(1-'V-Tarif'!$J$1),2) -> 0.33 | G41: =ROUND('Tarifgruppe S'!G26*(1-'V-Tarif'!$J$1),2) -> 0.32 | H41: =ROUND('Tarifgruppe S'!H26*(1-'V-Tarif'!$J$1),2) -> 3.79 | I41: =ROUND('Tarifgruppe S'!I26*(1-'V-Tarif'!$J$1),2) -> 0.52 | J41: =ROUND('Tarifgruppe S'!J26*(1-'V-Tarif'!$J$1),2) -> 0.72 | K41: =ROUND('Tarifgruppe S'!K26*(1-'V-Tarif'!$J$1),2) -> 0.89 | L41: =ROUND('Tarifgruppe S'!L26*(1-'V-Tarif'!$J$1),2) -> 0.41 | M41: =ROUND('Tarifgruppe S'!M26*(1-'V-Tarif'!$J$1),2) -> 0.27 | N41: =ROUND('Tarifgruppe S'!N26*(1-'V-Tarif'!$J$1),2) -> 0.27 | O41: =ROUND('Tarifgruppe S'!O26*(1-'V-Tarif'!$J$1),2) -> 3.16 | Q41: 13 | R41: =ROUND('Tarif URP'!B22*(1-'V-Tarif'!$J$1),2) -> 0.54 | S41: =ROUND('Tarif URP'!C22*(1-'V-Tarif'!$J$1),2) -> 0.73 | T41: =ROUND('Tarif URP'!D22*(1-'V-Tarif'!$J$1),2) -> 0.62 | U41: =ROUND('Tarif URP'!E22*(1-'V-Tarif'!$J$1),2) -> 0.92
A42: 77 | B42: =ROUND('Tarifgruppe S'!B27*(1-'V-Tarif'!$J$1),2) -> 0.65 | C42: =ROUND('Tarifgruppe S'!C27*(1-'V-Tarif'!$J$1),2) -> 0.91 | D42: =ROUND('Tarifgruppe S'!D27*(1-'V-Tarif'!$J$1),2) -> 1.13 | E42: =ROUND('Tarifgruppe S'!E27*(1-'V-Tarif'!$J$1),2) -> 0.51 | F42: =ROUND('Tarifgruppe S'!F27*(1-'V-Tarif'!$J$1),2) -> 0.34 | G42: =ROUND('Tarifgruppe S'!G27*(1-'V-Tarif'!$J$1),2) -> 0.33 | H42: =ROUND('Tarifgruppe S'!H27*(1-'V-Tarif'!$J$1),2) -> 3.98 | I42: =ROUND('Tarifgruppe S'!I27*(1-'V-Tarif'!$J$1),2) -> 0.54 | J42: =ROUND('Tarifgruppe S'!J27*(1-'V-Tarif'!$J$1),2) -> 0.76 | K42: =ROUND('Tarifgruppe S'!K27*(1-'V-Tarif'!$J$1),2) -> 0.94 | L42: =ROUND('Tarifgruppe S'!L27*(1-'V-Tarif'!$J$1),2) -> 0.43 | M42: =ROUND('Tarifgruppe S'!M27*(1-'V-Tarif'!$J$1),2) -> 0.29 | N42: =ROUND('Tarifgruppe S'!N27*(1-'V-Tarif'!$J$1),2) -> 0.28 | O42: =ROUND('Tarifgruppe S'!O27*(1-'V-Tarif'!$J$1),2) -> 3.32 | Q42: 14 | R42: =ROUND('Tarif URP'!B23*(1-'V-Tarif'!$J$1),2) -> 0.54 | S42: =ROUND('Tarif URP'!C23*(1-'V-Tarif'!$J$1),2) -> 0.73 | T42: =ROUND('Tarif URP'!D23*(1-'V-Tarif'!$J$1),2) -> 0.62 | U42: =ROUND('Tarif URP'!E23*(1-'V-Tarif'!$J$1),2) -> 0.92
A43: 78 | B43: =ROUND('Tarifgruppe S'!B28*(1-'V-Tarif'!$J$1),2) -> 0.68 | C43: =ROUND('Tarifgruppe S'!C28*(1-'V-Tarif'!$J$1),2) -> 0.96 | D43: =ROUND('Tarifgruppe S'!D28*(1-'V-Tarif'!$J$1),2) -> 1.18 | E43: =ROUND('Tarifgruppe S'!E28*(1-'V-Tarif'!$J$1),2) -> 0.54 | F43: =ROUND('Tarifgruppe S'!F28*(1-'V-Tarif'!$J$1),2) -> 0.36 | G43: =ROUND('Tarifgruppe S'!G28*(1-'V-Tarif'!$J$1),2) -> 0.35 | H43: =ROUND('Tarifgruppe S'!H28*(1-'V-Tarif'!$J$1),2) -> 4.18 | I43: =ROUND('Tarifgruppe S'!I28*(1-'V-Tarif'!$J$1),2) -> 0.57 | J43: =ROUND('Tarifgruppe S'!J28*(1-'V-Tarif'!$J$1),2) -> 0.8 | K43: =ROUND('Tarifgruppe S'!K28*(1-'V-Tarif'!$J$1),2) -> 0.98 | L43: =ROUND('Tarifgruppe S'!L28*(1-'V-Tarif'!$J$1),2) -> 0.45 | M43: =ROUND('Tarifgruppe S'!M28*(1-'V-Tarif'!$J$1),2) -> 0.3 | N43: =ROUND('Tarifgruppe S'!N28*(1-'V-Tarif'!$J$1),2) -> 0.29 | O43: =ROUND('Tarifgruppe S'!O28*(1-'V-Tarif'!$J$1),2) -> 3.48 | Q43: 15 | R43: =ROUND('Tarif URP'!B24*(1-'V-Tarif'!$J$1),2) -> 0.54 | S43: =ROUND('Tarif URP'!C24*(1-'V-Tarif'!$J$1),2) -> 0.73 | T43: =ROUND('Tarif URP'!D24*(1-'V-Tarif'!$J$1),2) -> 0.62 | U43: =ROUND('Tarif URP'!E24*(1-'V-Tarif'!$J$1),2) -> 0.92
A44: 79 | B44: =ROUND('Tarifgruppe S'!B29*(1-'V-Tarif'!$J$1),2) -> 0.71 | C44: =ROUND('Tarifgruppe S'!C29*(1-'V-Tarif'!$J$1),2) -> 1.01 | D44: =ROUND('Tarifgruppe S'!D29*(1-'V-Tarif'!$J$1),2) -> 1.24 | E44: =ROUND('Tarifgruppe S'!E29*(1-'V-Tarif'!$J$1),2) -> 0.56 | F44: =ROUND('Tarifgruppe S'!F29*(1-'V-Tarif'!$J$1),2) -> 0.38 | G44: =ROUND('Tarifgruppe S'!G29*(1-'V-Tarif'!$J$1),2) -> 0.37 | H44: =ROUND('Tarifgruppe S'!H29*(1-'V-Tarif'!$J$1),2) -> 4.39 | I44: =ROUND('Tarifgruppe S'!I29*(1-'V-Tarif'!$J$1),2) -> 0.6 | J44: =ROUND('Tarifgruppe S'!J29*(1-'V-Tarif'!$J$1),2) -> 0.84 | K44: =ROUND('Tarifgruppe S'!K29*(1-'V-Tarif'!$J$1),2) -> 1.03 | L44: =ROUND('Tarifgruppe S'!L29*(1-'V-Tarif'!$J$1),2) -> 0.47 | M44: =ROUND('Tarifgruppe S'!M29*(1-'V-Tarif'!$J$1),2) -> 0.32 | N44: =ROUND('Tarifgruppe S'!N29*(1-'V-Tarif'!$J$1),2) -> 0.31 | O44: =ROUND('Tarifgruppe S'!O29*(1-'V-Tarif'!$J$1),2) -> 3.66 | Q44: 16 | R44: =ROUND('Tarif URP'!B25*(1-'V-Tarif'!$J$1),2) -> 0.54 | S44: =ROUND('Tarif URP'!C25*(1-'V-Tarif'!$J$1),2) -> 0.73 | T44: =ROUND('Tarif URP'!D25*(1-'V-Tarif'!$J$1),2) -> 0.62 | U44: =ROUND('Tarif URP'!E25*(1-'V-Tarif'!$J$1),2) -> 0.92
A45: 80 | B45: =ROUND('Tarifgruppe S'!B30*(1-'V-Tarif'!$J$1),2) -> 0.75 | C45: =ROUND('Tarifgruppe S'!C30*(1-'V-Tarif'!$J$1),2) -> 1.06 | D45: =ROUND('Tarifgruppe S'!D30*(1-'V-Tarif'!$J$1),2) -> 1.3 | E45: =ROUND('Tarifgruppe S'!E30*(1-'V-Tarif'!$J$1),2) -> 0.59 | F45: =ROUND('Tarifgruppe S'!F30*(1-'V-Tarif'!$J$1),2) -> 0.4 | G45: =ROUND('Tarifgruppe S'!G30*(1-'V-Tarif'!$J$1),2) -> 0.39 | H45: =ROUND('Tarifgruppe S'!H30*(1-'V-Tarif'!$J$1),2) -> 4.61 | I45: =ROUND('Tarifgruppe S'!I30*(1-'V-Tarif'!$J$1),2) -> 0.63 | J45: =ROUND('Tarifgruppe S'!J30*(1-'V-Tarif'!$J$1),2) -> 0.88 | K45: =ROUND('Tarifgruppe S'!K30*(1-'V-Tarif'!$J$1),2) -> 1.09 | L45: =ROUND('Tarifgruppe S'!L30*(1-'V-Tarif'!$J$1),2) -> 0.49 | M45: =ROUND('Tarifgruppe S'!M30*(1-'V-Tarif'!$J$1),2) -> 0.33 | N45: =ROUND('Tarifgruppe S'!N30*(1-'V-Tarif'!$J$1),2) -> 0.32 | O45: =ROUND('Tarifgruppe S'!O30*(1-'V-Tarif'!$J$1),2) -> 3.84 | Q45: 17 | R45: =ROUND('Tarif URP'!B26*(1-'V-Tarif'!$J$1),2) -> 0.54 | S45: =ROUND('Tarif URP'!C26*(1-'V-Tarif'!$J$1),2) -> 0.73 | T45: =ROUND('Tarif URP'!D26*(1-'V-Tarif'!$J$1),2) -> 0.62 | U45: =ROUND('Tarif URP'!E26*(1-'V-Tarif'!$J$1),2) -> 0.92
A46: 81 | B46: =ROUND('Tarifgruppe S'!B31*(1-'V-Tarif'!$J$1),2) -> 0.79 | C46: =ROUND('Tarifgruppe S'!C31*(1-'V-Tarif'!$J$1),2) -> 1.11 | D46: =ROUND('Tarifgruppe S'!D31*(1-'V-Tarif'!$J$1),2) -> 1.37 | E46: =ROUND('Tarifgruppe S'!E31*(1-'V-Tarif'!$J$1),2) -> 0.62 | F46: =ROUND('Tarifgruppe S'!F31*(1-'V-Tarif'!$J$1),2) -> 0.42 | G46: =ROUND('Tarifgruppe S'!G31*(1-'V-Tarif'!$J$1),2) -> 0.41 | H46: =ROUND('Tarifgruppe S'!H31*(1-'V-Tarif'!$J$1),2) -> 4.84 | I46: =ROUND('Tarifgruppe S'!I31*(1-'V-Tarif'!$J$1),2) -> 0.66 | J46: =ROUND('Tarifgruppe S'!J31*(1-'V-Tarif'!$J$1),2) -> 0.92 | K46: =ROUND('Tarifgruppe S'!K31*(1-'V-Tarif'!$J$1),2) -> 1.14 | L46: =ROUND('Tarifgruppe S'!L31*(1-'V-Tarif'!$J$1),2) -> 0.52 | M46: =ROUND('Tarifgruppe S'!M31*(1-'V-Tarif'!$J$1),2) -> 0.35 | N46: =ROUND('Tarifgruppe S'!N31*(1-'V-Tarif'!$J$1),2) -> 0.34 | O46: =ROUND('Tarifgruppe S'!O31*(1-'V-Tarif'!$J$1),2) -> 4.03 | Q46: 18 | R46: =ROUND('Tarif URP'!B27*(1-'V-Tarif'!$J$1),2) -> 0.75 | S46: =ROUND('Tarif URP'!C27*(1-'V-Tarif'!$J$1),2) -> 0.91 | T46: =ROUND('Tarif URP'!D27*(1-'V-Tarif'!$J$1),2) -> 0.92 | U46: =ROUND('Tarif URP'!E27*(1-'V-Tarif'!$J$1),2) -> 1.32
A47: 82 | B47: =ROUND('Tarifgruppe S'!B32*(1-'V-Tarif'!$J$1),2) -> 0.83 | C47: =ROUND('Tarifgruppe S'!C32*(1-'V-Tarif'!$J$1),2) -> 1.16 | D47: =ROUND('Tarifgruppe S'!D32*(1-'V-Tarif'!$J$1),2) -> 1.44 | E47: =ROUND('Tarifgruppe S'!E32*(1-'V-Tarif'!$J$1),2) -> 0.65 | F47: =ROUND('Tarifgruppe S'!F32*(1-'V-Tarif'!$J$1),2) -> 0.44 | G47: =ROUND('Tarifgruppe S'!G32*(1-'V-Tarif'!$J$1),2) -> 0.43 | H47: =ROUND('Tarifgruppe S'!H32*(1-'V-Tarif'!$J$1),2) -> 5.08 | I47: =ROUND('Tarifgruppe S'!I32*(1-'V-Tarif'!$J$1),2) -> 0.69 | J47: =ROUND('Tarifgruppe S'!J32*(1-'V-Tarif'!$J$1),2) -> 0.97 | K47: =ROUND('Tarifgruppe S'!K32*(1-'V-Tarif'!$J$1),2) -> 1.2 | L47: =ROUND('Tarifgruppe S'!L32*(1-'V-Tarif'!$J$1),2) -> 0.54 | M47: =ROUND('Tarifgruppe S'!M32*(1-'V-Tarif'!$J$1),2) -> 0.36 | N47: =ROUND('Tarifgruppe S'!N32*(1-'V-Tarif'!$J$1),2) -> 0.36 | O47: =ROUND('Tarifgruppe S'!O32*(1-'V-Tarif'!$J$1),2) -> 4.23 | Q47: 19 | R47: =ROUND('Tarif URP'!B28*(1-'V-Tarif'!$J$1),2) -> 0.75 | S47: =ROUND('Tarif URP'!C28*(1-'V-Tarif'!$J$1),2) -> 0.91 | T47: =ROUND('Tarif URP'!D28*(1-'V-Tarif'!$J$1),2) -> 0.92 | U47: =ROUND('Tarif URP'!E28*(1-'V-Tarif'!$J$1),2) -> 1.32
A48: 83 | B48: =ROUND('Tarifgruppe S'!B33*(1-'V-Tarif'!$J$1),2) -> 0.87 | C48: =ROUND('Tarifgruppe S'!C33*(1-'V-Tarif'!$J$1),2) -> 1.22 | D48: =ROUND('Tarifgruppe S'!D33*(1-'V-Tarif'!$J$1),2) -> 1.51 | E48: =ROUND('Tarifgruppe S'!E33*(1-'V-Tarif'!$J$1),2) -> 0.68 | F48: =ROUND('Tarifgruppe S'!F33*(1-'V-Tarif'!$J$1),2) -> 0.46 | G48: =ROUND('Tarifgruppe S'!G33*(1-'V-Tarif'!$J$1),2) -> 0.45 | H48: =ROUND('Tarifgruppe S'!H33*(1-'V-Tarif'!$J$1),2) -> 5.33 | I48: =ROUND('Tarifgruppe S'!I33*(1-'V-Tarif'!$J$1),2) -> 0.72 | J48: =ROUND('Tarifgruppe S'!J33*(1-'V-Tarif'!$J$1),2) -> 1.02 | K48: =ROUND('Tarifgruppe S'!K33*(1-'V-Tarif'!$J$1),2) -> 1.26 | L48: =ROUND('Tarifgruppe S'!L33*(1-'V-Tarif'!$J$1),2) -> 0.57 | M48: =ROUND('Tarifgruppe S'!M33*(1-'V-Tarif'!$J$1),2) -> 0.38 | N48: =ROUND('Tarifgruppe S'!N33*(1-'V-Tarif'!$J$1),2) -> 0.37 | O48: =ROUND('Tarifgruppe S'!O33*(1-'V-Tarif'!$J$1),2) -> 4.44 | Q48: 20 | R48: =ROUND('Tarif URP'!B29*(1-'V-Tarif'!$J$1),2) -> 0.75 | S48: =ROUND('Tarif URP'!C29*(1-'V-Tarif'!$J$1),2) -> 0.91 | T48: =ROUND('Tarif URP'!D29*(1-'V-Tarif'!$J$1),2) -> 0.92 | U48: =ROUND('Tarif URP'!E29*(1-'V-Tarif'!$J$1),2) -> 1.32
A49: 84 | B49: =ROUND('Tarifgruppe S'!B34*(1-'V-Tarif'!$J$1),2) -> 0.91 | C49: =ROUND('Tarifgruppe S'!C34*(1-'V-Tarif'!$J$1),2) -> 1.28 | D49: =ROUND('Tarifgruppe S'!D34*(1-'V-Tarif'!$J$1),2) -> 1.58 | E49: =ROUND('Tarifgruppe S'!E34*(1-'V-Tarif'!$J$1),2) -> 0.72 | F49: =ROUND('Tarifgruppe S'!F34*(1-'V-Tarif'!$J$1),2) -> 0.48 | G49: =ROUND('Tarifgruppe S'!G34*(1-'V-Tarif'!$J$1),2) -> 0.47 | H49: =ROUND('Tarifgruppe S'!H34*(1-'V-Tarif'!$J$1),2) -> 5.6 | I49: =ROUND('Tarifgruppe S'!I34*(1-'V-Tarif'!$J$1),2) -> 0.76 | J49: =ROUND('Tarifgruppe S'!J34*(1-'V-Tarif'!$J$1),2) -> 1.07 | K49: =ROUND('Tarifgruppe S'!K34*(1-'V-Tarif'!$J$1),2) -> 1.32 | L49: =ROUND('Tarifgruppe S'!L34*(1-'V-Tarif'!$J$1),2) -> 0.6 | M49: =ROUND('Tarifgruppe S'!M34*(1-'V-Tarif'!$J$1),2) -> 0.4 | N49: =ROUND('Tarifgruppe S'!N34*(1-'V-Tarif'!$J$1),2) -> 0.39 | O49: =ROUND('Tarifgruppe S'!O34*(1-'V-Tarif'!$J$1),2) -> 4.67 | Q49: 21 | R49: =ROUND('Tarif URP'!B30*(1-'V-Tarif'!$J$1),2) -> 0.75 | S49: =ROUND('Tarif URP'!C30*(1-'V-Tarif'!$J$1),2) -> 0.91 | T49: =ROUND('Tarif URP'!D30*(1-'V-Tarif'!$J$1),2) -> 0.92 | U49: =ROUND('Tarif URP'!E30*(1-'V-Tarif'!$J$1),2) -> 1.32
A50: 85 | B50: =ROUND('Tarifgruppe S'!B35*(1-'V-Tarif'!$J$1),2) -> 0.96 | C50: =ROUND('Tarifgruppe S'!C35*(1-'V-Tarif'!$J$1),2) -> 1.35 | D50: =ROUND('Tarifgruppe S'!D35*(1-'V-Tarif'!$J$1),2) -> 1.66 | E50: =ROUND('Tarifgruppe S'!E35*(1-'V-Tarif'!$J$1),2) -> 0.75 | F50: =ROUND('Tarifgruppe S'!F35*(1-'V-Tarif'!$J$1),2) -> 0.51 | G50: =ROUND('Tarifgruppe S'!G35*(1-'V-Tarif'!$J$1),2) -> 0.49 | H50: =ROUND('Tarifgruppe S'!H35*(1-'V-Tarif'!$J$1),2) -> 5.88 | I50: =ROUND('Tarifgruppe S'!I35*(1-'V-Tarif'!$J$1),2) -> 0.8 | J50: =ROUND('Tarifgruppe S'!J35*(1-'V-Tarif'!$J$1),2) -> 1.12 | K50: =ROUND('Tarifgruppe S'!K35*(1-'V-Tarif'!$J$1),2) -> 1.38 | L50: =ROUND('Tarifgruppe S'!L35*(1-'V-Tarif'!$J$1),2) -> 0.63 | M50: =ROUND('Tarifgruppe S'!M35*(1-'V-Tarif'!$J$1),2) -> 0.42 | N50: =ROUND('Tarifgruppe S'!N35*(1-'V-Tarif'!$J$1),2) -> 0.41 | O50: =ROUND('Tarifgruppe S'!O35*(1-'V-Tarif'!$J$1),2) -> 4.9 | Q50: 22 | R50: =ROUND('Tarif URP'!B31*(1-'V-Tarif'!$J$1),2) -> 0.75 | S50: =ROUND('Tarif URP'!C31*(1-'V-Tarif'!$J$1),2) -> 0.91 | T50: =ROUND('Tarif URP'!D31*(1-'V-Tarif'!$J$1),2) -> 0.92 | U50: =ROUND('Tarif URP'!E31*(1-'V-Tarif'!$J$1),2) -> 1.32
A51: 86 | B51: =ROUND('Tarifgruppe S'!B36*(1-'V-Tarif'!$J$1),2) -> 1 | C51: =ROUND('Tarifgruppe S'!C36*(1-'V-Tarif'!$J$1),2) -> 1.41 | D51: =ROUND('Tarifgruppe S'!D36*(1-'V-Tarif'!$J$1),2) -> 1.74 | E51: =ROUND('Tarifgruppe S'!E36*(1-'V-Tarif'!$J$1),2) -> 0.79 | F51: =ROUND('Tarifgruppe S'!F36*(1-'V-Tarif'!$J$1),2) -> 0.53 | G51: =ROUND('Tarifgruppe S'!G36*(1-'V-Tarif'!$J$1),2) -> 0.52 | H51: =ROUND('Tarifgruppe S'!H36*(1-'V-Tarif'!$J$1),2) -> 6.17 | I51: =ROUND('Tarifgruppe S'!I36*(1-'V-Tarif'!$J$1),2) -> 0.84 | J51: =ROUND('Tarifgruppe S'!J36*(1-'V-Tarif'!$J$1),2) -> 1.18 | K51: =ROUND('Tarifgruppe S'!K36*(1-'V-Tarif'!$J$1),2) -> 1.45 | L51: =ROUND('Tarifgruppe S'!L36*(1-'V-Tarif'!$J$1),2) -> 0.66 | M51: =ROUND('Tarifgruppe S'!M36*(1-'V-Tarif'!$J$1),2) -> 0.44 | N51: =ROUND('Tarifgruppe S'!N36*(1-'V-Tarif'!$J$1),2) -> 0.43 | O51: =ROUND('Tarifgruppe S'!O36*(1-'V-Tarif'!$J$1),2) -> 5.14 | Q51: 23 | R51: =ROUND('Tarif URP'!B32*(1-'V-Tarif'!$J$1),2) -> 0.75 | S51: =ROUND('Tarif URP'!C32*(1-'V-Tarif'!$J$1),2) -> 0.91 | T51: =ROUND('Tarif URP'!D32*(1-'V-Tarif'!$J$1),2) -> 0.92 | U51: =ROUND('Tarif URP'!E32*(1-'V-Tarif'!$J$1),2) -> 1.32
A52: 87 | B52: =ROUND('Tarifgruppe S'!B37*(1-'V-Tarif'!$J$1),2) -> 1.06 | C52: =ROUND('Tarifgruppe S'!C37*(1-'V-Tarif'!$J$1),2) -> 1.48 | D52: =ROUND('Tarifgruppe S'!D37*(1-'V-Tarif'!$J$1),2) -> 1.83 | E52: =ROUND('Tarifgruppe S'!E37*(1-'V-Tarif'!$J$1),2) -> 0.83 | F52: =ROUND('Tarifgruppe S'!F37*(1-'V-Tarif'!$J$1),2) -> 0.56 | G52: =ROUND('Tarifgruppe S'!G37*(1-'V-Tarif'!$J$1),2) -> 0.54 | H52: =ROUND('Tarifgruppe S'!H37*(1-'V-Tarif'!$J$1),2) -> 6.48 | I52: =ROUND('Tarifgruppe S'!I37*(1-'V-Tarif'!$J$1),2) -> 0.88 | J52: =ROUND('Tarifgruppe S'!J37*(1-'V-Tarif'!$J$1),2) -> 1.24 | K52: =ROUND('Tarifgruppe S'!K37*(1-'V-Tarif'!$J$1),2) -> 1.53 | L52: =ROUND('Tarifgruppe S'!L37*(1-'V-Tarif'!$J$1),2) -> 0.69 | M52: =ROUND('Tarifgruppe S'!M37*(1-'V-Tarif'!$J$1),2) -> 0.46 | N52: =ROUND('Tarifgruppe S'!N37*(1-'V-Tarif'!$J$1),2) -> 0.45 | O52: =ROUND('Tarifgruppe S'!O37*(1-'V-Tarif'!$J$1),2) -> 5.4 | Q52: 24 | R52: =ROUND('Tarif URP'!B33*(1-'V-Tarif'!$J$1),2) -> 0.75 | S52: =ROUND('Tarif URP'!C33*(1-'V-Tarif'!$J$1),2) -> 0.91 | T52: =ROUND('Tarif URP'!D33*(1-'V-Tarif'!$J$1),2) -> 0.92 | U52: =ROUND('Tarif URP'!E33*(1-'V-Tarif'!$J$1),2) -> 1.32
A53: 88 | B53: =ROUND('Tarifgruppe S'!B38*(1-'V-Tarif'!$J$1),2) -> 1.11 | C53: =ROUND('Tarifgruppe S'!C38*(1-'V-Tarif'!$J$1),2) -> 1.56 | D53: =ROUND('Tarifgruppe S'!D38*(1-'V-Tarif'!$J$1),2) -> 1.92 | E53: =ROUND('Tarifgruppe S'!E38*(1-'V-Tarif'!$J$1),2) -> 0.87 | F53: =ROUND('Tarifgruppe S'!F38*(1-'V-Tarif'!$J$1),2) -> 0.59 | G53: =ROUND('Tarifgruppe S'!G38*(1-'V-Tarif'!$J$1),2) -> 0.57 | H53: =ROUND('Tarifgruppe S'!H38*(1-'V-Tarif'!$J$1),2) -> 6.81 | I53: =ROUND('Tarifgruppe S'!I38*(1-'V-Tarif'!$J$1),2) -> 0.92 | J53: =ROUND('Tarifgruppe S'!J38*(1-'V-Tarif'!$J$1),2) -> 1.3 | K53: =ROUND('Tarifgruppe S'!K38*(1-'V-Tarif'!$J$1),2) -> 1.6 | L53: =ROUND('Tarifgruppe S'!L38*(1-'V-Tarif'!$J$1),2) -> 0.73 | M53: =ROUND('Tarifgruppe S'!M38*(1-'V-Tarif'!$J$1),2) -> 0.49 | N53: =ROUND('Tarifgruppe S'!N38*(1-'V-Tarif'!$J$1),2) -> 0.48 | O53: =ROUND('Tarifgruppe S'!O38*(1-'V-Tarif'!$J$1),2) -> 5.67 | Q53: 25 | R53: =ROUND('Tarif URP'!B34*(1-'V-Tarif'!$J$1),2) -> 0.75 | S53: =ROUND('Tarif URP'!C34*(1-'V-Tarif'!$J$1),2) -> 0.91 | T53: =ROUND('Tarif URP'!D34*(1-'V-Tarif'!$J$1),2) -> 0.92 | U53: =ROUND('Tarif URP'!E34*(1-'V-Tarif'!$J$1),2) -> 1.32
A54: 89 | B54: =ROUND('Tarifgruppe S'!B39*(1-'V-Tarif'!$J$1),2) -> 1.16 | C54: =ROUND('Tarifgruppe S'!C39*(1-'V-Tarif'!$J$1),2) -> 1.64 | D54: =ROUND('Tarifgruppe S'!D39*(1-'V-Tarif'!$J$1),2) -> 2.02 | E54: =ROUND('Tarifgruppe S'!E39*(1-'V-Tarif'!$J$1),2) -> 0.92 | F54: =ROUND('Tarifgruppe S'!F39*(1-'V-Tarif'!$J$1),2) -> 0.61 | G54: =ROUND('Tarifgruppe S'!G39*(1-'V-Tarif'!$J$1),2) -> 0.6 | H54: =ROUND('Tarifgruppe S'!H39*(1-'V-Tarif'!$J$1),2) -> 7.15 | I54: =ROUND('Tarifgruppe S'!I39*(1-'V-Tarif'!$J$1),2) -> 0.97 | J54: =ROUND('Tarifgruppe S'!J39*(1-'V-Tarif'!$J$1),2) -> 1.36 | K54: =ROUND('Tarifgruppe S'!K39*(1-'V-Tarif'!$J$1),2) -> 1.68 | L54: =ROUND('Tarifgruppe S'!L39*(1-'V-Tarif'!$J$1),2) -> 0.76 | M54: =ROUND('Tarifgruppe S'!M39*(1-'V-Tarif'!$J$1),2) -> 0.51 | N54: =ROUND('Tarifgruppe S'!N39*(1-'V-Tarif'!$J$1),2) -> 0.5 | O54: =ROUND('Tarifgruppe S'!O39*(1-'V-Tarif'!$J$1),2) -> 5.96 | Q54: 26 | R54: =ROUND('Tarif URP'!B35*(1-'V-Tarif'!$J$1),2) -> 0.75 | S54: =ROUND('Tarif URP'!C35*(1-'V-Tarif'!$J$1),2) -> 0.91 | T54: =ROUND('Tarif URP'!D35*(1-'V-Tarif'!$J$1),2) -> 0.92 | U54: =ROUND('Tarif URP'!E35*(1-'V-Tarif'!$J$1),2) -> 1.32
A55: 90 | B55: =ROUND('Tarifgruppe S'!B40*(1-'V-Tarif'!$J$1),2) -> 1.22 | C55: =ROUND('Tarifgruppe S'!C40*(1-'V-Tarif'!$J$1),2) -> 1.72 | D55: =ROUND('Tarifgruppe S'!D40*(1-'V-Tarif'!$J$1),2) -> 2.12 | E55: =ROUND('Tarifgruppe S'!E40*(1-'V-Tarif'!$J$1),2) -> 0.96 | F55: =ROUND('Tarifgruppe S'!F40*(1-'V-Tarif'!$J$1),2) -> 0.64 | G55: =ROUND('Tarifgruppe S'!G40*(1-'V-Tarif'!$J$1),2) -> 0.63 | H55: =ROUND('Tarifgruppe S'!H40*(1-'V-Tarif'!$J$1),2) -> 7.5 | I55: =ROUND('Tarifgruppe S'!I40*(1-'V-Tarif'!$J$1),2) -> 1.02 | J55: =ROUND('Tarifgruppe S'!J40*(1-'V-Tarif'!$J$1),2) -> 1.43 | K55: =ROUND('Tarifgruppe S'!K40*(1-'V-Tarif'!$J$1),2) -> 1.77 | L55: =ROUND('Tarifgruppe S'!L40*(1-'V-Tarif'!$J$1),2) -> 0.8 | M55: =ROUND('Tarifgruppe S'!M40*(1-'V-Tarif'!$J$1),2) -> 0.54 | N55: =ROUND('Tarifgruppe S'!N40*(1-'V-Tarif'!$J$1),2) -> 0.52 | O55: =ROUND('Tarifgruppe S'!O40*(1-'V-Tarif'!$J$1),2) -> 6.25 | Q55: 27 | R55: =ROUND('Tarif URP'!B36*(1-'V-Tarif'!$J$1),2) -> 0.75 | S55: =ROUND('Tarif URP'!C36*(1-'V-Tarif'!$J$1),2) -> 0.91 | T55: =ROUND('Tarif URP'!D36*(1-'V-Tarif'!$J$1),2) -> 0.92 | U55: =ROUND('Tarif URP'!E36*(1-'V-Tarif'!$J$1),2) -> 1.32
A56: 91 | B56: =ROUND('Tarifgruppe S'!B41*(1-'V-Tarif'!$J$1),2) -> 1.28 | C56: =ROUND('Tarifgruppe S'!C41*(1-'V-Tarif'!$J$1),2) -> 1.8 | D56: =ROUND('Tarifgruppe S'!D41*(1-'V-Tarif'!$J$1),2) -> 2.23 | E56: =ROUND('Tarifgruppe S'!E41*(1-'V-Tarif'!$J$1),2) -> 1.01 | F56: =ROUND('Tarifgruppe S'!F41*(1-'V-Tarif'!$J$1),2) -> 0.68 | G56: =ROUND('Tarifgruppe S'!G41*(1-'V-Tarif'!$J$1),2) -> 0.66 | H56: =ROUND('Tarifgruppe S'!H41*(1-'V-Tarif'!$J$1),2) -> 7.88 | I56: =ROUND('Tarifgruppe S'!I41*(1-'V-Tarif'!$J$1),2) -> 1.07 | J56: =ROUND('Tarifgruppe S'!J41*(1-'V-Tarif'!$J$1),2) -> 1.5 | K56: =ROUND('Tarifgruppe S'!K41*(1-'V-Tarif'!$J$1),2) -> 1.85 | L56: =ROUND('Tarifgruppe S'!L41*(1-'V-Tarif'!$J$1),2) -> 0.84 | M56: =ROUND('Tarifgruppe S'!M41*(1-'V-Tarif'!$J$1),2) -> 0.56 | N56: =ROUND('Tarifgruppe S'!N41*(1-'V-Tarif'!$J$1),2) -> 0.55 | O56: =ROUND('Tarifgruppe S'!O41*(1-'V-Tarif'!$J$1),2) -> 6.57 | Q56: 28 | R56: =ROUND('Tarif URP'!B37*(1-'V-Tarif'!$J$1),2) -> 0.75 | S56: =ROUND('Tarif URP'!C37*(1-'V-Tarif'!$J$1),2) -> 0.91 | T56: =ROUND('Tarif URP'!D37*(1-'V-Tarif'!$J$1),2) -> 0.92 | U56: =ROUND('Tarif URP'!E37*(1-'V-Tarif'!$J$1),2) -> 1.32
A57: 92 | B57: =ROUND('Tarifgruppe S'!B42*(1-'V-Tarif'!$J$1),2) -> 1.35 | C57: =ROUND('Tarifgruppe S'!C42*(1-'V-Tarif'!$J$1),2) -> 1.89 | D57: =ROUND('Tarifgruppe S'!D42*(1-'V-Tarif'!$J$1),2) -> 2.34 | E57: =ROUND('Tarifgruppe S'!E42*(1-'V-Tarif'!$J$1),2) -> 1.06 | F57: =ROUND('Tarifgruppe S'!F42*(1-'V-Tarif'!$J$1),2) -> 0.71 | G57: =ROUND('Tarifgruppe S'!G42*(1-'V-Tarif'!$J$1),2) -> 0.69 | H57: =ROUND('Tarifgruppe S'!H42*(1-'V-Tarif'!$J$1),2) -> 8.27 | I57: =ROUND('Tarifgruppe S'!I42*(1-'V-Tarif'!$J$1),2) -> 1.12 | J57: =ROUND('Tarifgruppe S'!J42*(1-'V-Tarif'!$J$1),2) -> 1.58 | K57: =ROUND('Tarifgruppe S'!K42*(1-'V-Tarif'!$J$1),2) -> 1.95 | L57: =ROUND('Tarifgruppe S'!L42*(1-'V-Tarif'!$J$1),2) -> 0.88 | M57: =ROUND('Tarifgruppe S'!M42*(1-'V-Tarif'!$J$1),2) -> 0.59 | N57: =ROUND('Tarifgruppe S'!N42*(1-'V-Tarif'!$J$1),2) -> 0.58 | O57: =ROUND('Tarifgruppe S'!O42*(1-'V-Tarif'!$J$1),2) -> 6.89 | Q57: 29 | R57: =ROUND('Tarif URP'!B38*(1-'V-Tarif'!$J$1),2) -> 0.75 | S57: =ROUND('Tarif URP'!C38*(1-'V-Tarif'!$J$1),2) -> 0.91 | T57: =ROUND('Tarif URP'!D38*(1-'V-Tarif'!$J$1),2) -> 0.92 | U57: =ROUND('Tarif URP'!E38*(1-'V-Tarif'!$J$1),2) -> 1.32
A58: 93 | B58: =ROUND('Tarifgruppe S'!B43*(1-'V-Tarif'!$J$1),2) -> 1.41 | C58: =ROUND('Tarifgruppe S'!C43*(1-'V-Tarif'!$J$1),2) -> 1.99 | D58: =ROUND('Tarifgruppe S'!D43*(1-'V-Tarif'!$J$1),2) -> 2.45 | E58: =ROUND('Tarifgruppe S'!E43*(1-'V-Tarif'!$J$1),2) -> 1.11 | F58: =ROUND('Tarifgruppe S'!F43*(1-'V-Tarif'!$J$1),2) -> 0.75 | G58: =ROUND('Tarifgruppe S'!G43*(1-'V-Tarif'!$J$1),2) -> 0.73 | H58: =ROUND('Tarifgruppe S'!H43*(1-'V-Tarif'!$J$1),2) -> 8.69 | I58: =ROUND('Tarifgruppe S'!I43*(1-'V-Tarif'!$J$1),2) -> 1.18 | J58: =ROUND('Tarifgruppe S'!J43*(1-'V-Tarif'!$J$1),2) -> 1.66 | K58: =ROUND('Tarifgruppe S'!K43*(1-'V-Tarif'!$J$1),2) -> 2.04 | L58: =ROUND('Tarifgruppe S'!L43*(1-'V-Tarif'!$J$1),2) -> 0.93 | M58: =ROUND('Tarifgruppe S'!M43*(1-'V-Tarif'!$J$1),2) -> 0.62 | N58: =ROUND('Tarifgruppe S'!N43*(1-'V-Tarif'!$J$1),2) -> 0.61 | O58: =ROUND('Tarifgruppe S'!O43*(1-'V-Tarif'!$J$1),2) -> 7.24 | Q58: 30 | R58: =ROUND('Tarif URP'!B39*(1-'V-Tarif'!$J$1),2) -> 0.75 | S58: =ROUND('Tarif URP'!C39*(1-'V-Tarif'!$J$1),2) -> 0.91 | T58: =ROUND('Tarif URP'!D39*(1-'V-Tarif'!$J$1),2) -> 0.92 | U58: =ROUND('Tarif URP'!E39*(1-'V-Tarif'!$J$1),2) -> 1.32
A59: 94 | B59: =ROUND('Tarifgruppe S'!B44*(1-'V-Tarif'!$J$1),2) -> 1.48 | C59: =ROUND('Tarifgruppe S'!C44*(1-'V-Tarif'!$J$1),2) -> 2.09 | D59: =ROUND('Tarifgruppe S'!D44*(1-'V-Tarif'!$J$1),2) -> 2.58 | E59: =ROUND('Tarifgruppe S'!E44*(1-'V-Tarif'!$J$1),2) -> 1.17 | F59: =ROUND('Tarifgruppe S'!F44*(1-'V-Tarif'!$J$1),2) -> 0.78 | G59: =ROUND('Tarifgruppe S'!G44*(1-'V-Tarif'!$J$1),2) -> 0.76 | H59: =ROUND('Tarifgruppe S'!H44*(1-'V-Tarif'!$J$1),2) -> 9.12 | I59: =ROUND('Tarifgruppe S'!I44*(1-'V-Tarif'!$J$1),2) -> 1.24 | J59: =ROUND('Tarifgruppe S'!J44*(1-'V-Tarif'!$J$1),2) -> 1.74 | K59: =ROUND('Tarifgruppe S'!K44*(1-'V-Tarif'!$J$1),2) -> 2.15 | L59: =ROUND('Tarifgruppe S'!L44*(1-'V-Tarif'!$J$1),2) -> 0.97 | M59: =ROUND('Tarifgruppe S'!M44*(1-'V-Tarif'!$J$1),2) -> 0.65 | N59: =ROUND('Tarifgruppe S'!N44*(1-'V-Tarif'!$J$1),2) -> 0.64 | O59: =ROUND('Tarifgruppe S'!O44*(1-'V-Tarif'!$J$1),2) -> 7.6 | Q59: 31 | R59: =ROUND('Tarif URP'!B40*(1-'V-Tarif'!$J$1),2) -> 0.75 | S59: =ROUND('Tarif URP'!C40*(1-'V-Tarif'!$J$1),2) -> 0.91 | T59: =ROUND('Tarif URP'!D40*(1-'V-Tarif'!$J$1),2) -> 0.92 | U59: =ROUND('Tarif URP'!E40*(1-'V-Tarif'!$J$1),2) -> 1.32
A60: 95 | B60: =ROUND('Tarifgruppe S'!B45*(1-'V-Tarif'!$J$1),2) -> 1.56 | C60: =ROUND('Tarifgruppe S'!C45*(1-'V-Tarif'!$J$1),2) -> 2.19 | D60: =ROUND('Tarifgruppe S'!D45*(1-'V-Tarif'!$J$1),2) -> 2.7 | E60: =ROUND('Tarifgruppe S'!E45*(1-'V-Tarif'!$J$1),2) -> 1.23 | F60: =ROUND('Tarifgruppe S'!F45*(1-'V-Tarif'!$J$1),2) -> 0.82 | G60: =ROUND('Tarifgruppe S'!G45*(1-'V-Tarif'!$J$1),2) -> 0.8 | H60: =ROUND('Tarifgruppe S'!H45*(1-'V-Tarif'!$J$1),2) -> 9.58 | I60: =ROUND('Tarifgruppe S'!I45*(1-'V-Tarif'!$J$1),2) -> 1.3 | J60: =ROUND('Tarifgruppe S'!J45*(1-'V-Tarif'!$J$1),2) -> 1.83 | K60: =ROUND('Tarifgruppe S'!K45*(1-'V-Tarif'!$J$1),2) -> 2.25 | L60: =ROUND('Tarifgruppe S'!L45*(1-'V-Tarif'!$J$1),2) -> 1.02 | M60: =ROUND('Tarifgruppe S'!M45*(1-'V-Tarif'!$J$1),2) -> 0.69 | N60: =ROUND('Tarifgruppe S'!N45*(1-'V-Tarif'!$J$1),2) -> 0.67 | O60: =ROUND('Tarifgruppe S'!O45*(1-'V-Tarif'!$J$1),2) -> 7.98 | Q60: 32 | R60: =ROUND('Tarif URP'!B41*(1-'V-Tarif'!$J$1),2) -> 0.75 | S60: =ROUND('Tarif URP'!C41*(1-'V-Tarif'!$J$1),2) -> 0.91 | T60: =ROUND('Tarif URP'!D41*(1-'V-Tarif'!$J$1),2) -> 0.92 | U60: =ROUND('Tarif URP'!E41*(1-'V-Tarif'!$J$1),2) -> 1.32
A61: 96 | B61: =ROUND('Tarifgruppe S'!B46*(1-'V-Tarif'!$J$1),2) -> 1.64 | C61: =ROUND('Tarifgruppe S'!C46*(1-'V-Tarif'!$J$1),2) -> 2.3 | D61: =ROUND('Tarifgruppe S'!D46*(1-'V-Tarif'!$J$1),2) -> 2.84 | E61: =ROUND('Tarifgruppe S'!E46*(1-'V-Tarif'!$J$1),2) -> 1.29 | F61: =ROUND('Tarifgruppe S'!F46*(1-'V-Tarif'!$J$1),2) -> 0.86 | G61: =ROUND('Tarifgruppe S'!G46*(1-'V-Tarif'!$J$1),2) -> 0.84 | H61: =ROUND('Tarifgruppe S'!H46*(1-'V-Tarif'!$J$1),2) -> 10.05 | I61: =ROUND('Tarifgruppe S'!I46*(1-'V-Tarif'!$J$1),2) -> 1.36 | J61: =ROUND('Tarifgruppe S'!J46*(1-'V-Tarif'!$J$1),2) -> 1.92 | K61: =ROUND('Tarifgruppe S'!K46*(1-'V-Tarif'!$J$1),2) -> 2.37 | L61: =ROUND('Tarifgruppe S'!L46*(1-'V-Tarif'!$J$1),2) -> 1.07 | M61: =ROUND('Tarifgruppe S'!M46*(1-'V-Tarif'!$J$1),2) -> 0.72 | N61: =ROUND('Tarifgruppe S'!N46*(1-'V-Tarif'!$J$1),2) -> 0.7 | O61: =ROUND('Tarifgruppe S'!O46*(1-'V-Tarif'!$J$1),2) -> 8.38 | Q61: 33 | R61: =ROUND('Tarif URP'!B42*(1-'V-Tarif'!$J$1),2) -> 0.75 | S61: =ROUND('Tarif URP'!C42*(1-'V-Tarif'!$J$1),2) -> 0.91 | T61: =ROUND('Tarif URP'!D42*(1-'V-Tarif'!$J$1),2) -> 0.93 | U61: =ROUND('Tarif URP'!E42*(1-'V-Tarif'!$J$1),2) -> 1.32
A62: 97 | B62: =ROUND('Tarifgruppe S'!B47*(1-'V-Tarif'!$J$1),2) -> 1.72 | C62: =ROUND('Tarifgruppe S'!C47*(1-'V-Tarif'!$J$1),2) -> 2.42 | D62: =ROUND('Tarifgruppe S'!D47*(1-'V-Tarif'!$J$1),2) -> 2.98 | E62: =ROUND('Tarifgruppe S'!E47*(1-'V-Tarif'!$J$1),2) -> 1.35 | F62: =ROUND('Tarifgruppe S'!F47*(1-'V-Tarif'!$J$1),2) -> 0.91 | G62: =ROUND('Tarifgruppe S'!G47*(1-'V-Tarif'!$J$1),2) -> 0.88 | H62: =ROUND('Tarifgruppe S'!H47*(1-'V-Tarif'!$J$1),2) -> 10.56 | I62: =ROUND('Tarifgruppe S'!I47*(1-'V-Tarif'!$J$1),2) -> 1.43 | J62: =ROUND('Tarifgruppe S'!J47*(1-'V-Tarif'!$J$1),2) -> 2.01 | K62: =ROUND('Tarifgruppe S'!K47*(1-'V-Tarif'!$J$1),2) -> 2.49 | L62: =ROUND('Tarifgruppe S'!L47*(1-'V-Tarif'!$J$1),2) -> 1.13 | M62: =ROUND('Tarifgruppe S'!M47*(1-'V-Tarif'!$J$1),2) -> 0.76 | N62: =ROUND('Tarifgruppe S'!N47*(1-'V-Tarif'!$J$1),2) -> 0.74 | O62: =ROUND('Tarifgruppe S'!O47*(1-'V-Tarif'!$J$1),2) -> 8.8 | Q62: 34 | R62: =ROUND('Tarif URP'!B43*(1-'V-Tarif'!$J$1),2) -> 0.75 | S62: =ROUND('Tarif URP'!C43*(1-'V-Tarif'!$J$1),2) -> 0.91 | T62: =ROUND('Tarif URP'!D43*(1-'V-Tarif'!$J$1),2) -> 1 | U62: =ROUND('Tarif URP'!E43*(1-'V-Tarif'!$J$1),2) -> 1.32
A63: 98 | B63: =ROUND('Tarifgruppe S'!B48*(1-'V-Tarif'!$J$1),2) -> 1.8 | C63: =ROUND('Tarifgruppe S'!C48*(1-'V-Tarif'!$J$1),2) -> 2.54 | D63: =ROUND('Tarifgruppe S'!D48*(1-'V-Tarif'!$J$1),2) -> 3.13 | E63: =ROUND('Tarifgruppe S'!E48*(1-'V-Tarif'!$J$1),2) -> 1.42 | F63: =ROUND('Tarifgruppe S'!F48*(1-'V-Tarif'!$J$1),2) -> 0.95 | G63: =ROUND('Tarifgruppe S'!G48*(1-'V-Tarif'!$J$1),2) -> 0.93 | H63: =ROUND('Tarifgruppe S'!H48*(1-'V-Tarif'!$J$1),2) -> 11.08 | I63: =ROUND('Tarifgruppe S'!I48*(1-'V-Tarif'!$J$1),2) -> 1.5 | J63: =ROUND('Tarifgruppe S'!J48*(1-'V-Tarif'!$J$1),2) -> 2.11 | K63: =ROUND('Tarifgruppe S'!K48*(1-'V-Tarif'!$J$1),2) -> 2.61 | L63: =ROUND('Tarifgruppe S'!L48*(1-'V-Tarif'!$J$1),2) -> 1.18 | M63: =ROUND('Tarifgruppe S'!M48*(1-'V-Tarif'!$J$1),2) -> 0.79 | N63: =ROUND('Tarifgruppe S'!N48*(1-'V-Tarif'!$J$1),2) -> 0.77 | O63: =ROUND('Tarifgruppe S'!O48*(1-'V-Tarif'!$J$1),2) -> 9.24 | Q63: 35 | R63: =ROUND('Tarif URP'!B44*(1-'V-Tarif'!$J$1),2) -> 0.76 | S63: =ROUND('Tarif URP'!C44*(1-'V-Tarif'!$J$1),2) -> 0.91 | T63: =ROUND('Tarif URP'!D44*(1-'V-Tarif'!$J$1),2) -> 1.05 | U63: =ROUND('Tarif URP'!E44*(1-'V-Tarif'!$J$1),2) -> 1.32
A64: 99 | B64: =ROUND('Tarifgruppe S'!B49*(1-'V-Tarif'!$J$1),2) -> 1.89 | C64: =ROUND('Tarifgruppe S'!C49*(1-'V-Tarif'!$J$1),2) -> 2.66 | D64: =ROUND('Tarifgruppe S'!D49*(1-'V-Tarif'!$J$1),2) -> 3.29 | E64: =ROUND('Tarifgruppe S'!E49*(1-'V-Tarif'!$J$1),2) -> 1.49 | F64: =ROUND('Tarifgruppe S'!F49*(1-'V-Tarif'!$J$1),2) -> 1 | G64: =ROUND('Tarifgruppe S'!G49*(1-'V-Tarif'!$J$1),2) -> 0.97 | H64: =ROUND('Tarifgruppe S'!H49*(1-'V-Tarif'!$J$1),2) -> 11.64 | I64: =ROUND('Tarifgruppe S'!I49*(1-'V-Tarif'!$J$1),2) -> 1.58 | J64: =ROUND('Tarifgruppe S'!J49*(1-'V-Tarif'!$J$1),2) -> 2.22 | K64: =ROUND('Tarifgruppe S'!K49*(1-'V-Tarif'!$J$1),2) -> 2.74 | L64: =ROUND('Tarifgruppe S'!L49*(1-'V-Tarif'!$J$1),2) -> 1.24 | M64: =ROUND('Tarifgruppe S'!M49*(1-'V-Tarif'!$J$1),2) -> 0.83 | N64: =ROUND('Tarifgruppe S'!N49*(1-'V-Tarif'!$J$1),2) -> 0.81 | O64: =ROUND('Tarifgruppe S'!O49*(1-'V-Tarif'!$J$1),2) -> 9.7 | Q64: 36 | R64: =ROUND('Tarif URP'!B45*(1-'V-Tarif'!$J$1),2) -> 0.81 | S64: =ROUND('Tarif URP'!C45*(1-'V-Tarif'!$J$1),2) -> 0.91 | T64: =ROUND('Tarif URP'!D45*(1-'V-Tarif'!$J$1),2) -> 1.13 | U64: =ROUND('Tarif URP'!E45*(1-'V-Tarif'!$J$1),2) -> 1.41
A65: 100 | B65: =ROUND('Tarifgruppe S'!B50*(1-'V-Tarif'!$J$1),2) -> 1.99 | C65: =ROUND('Tarifgruppe S'!C50*(1-'V-Tarif'!$J$1),2) -> 2.8 | D65: =ROUND('Tarifgruppe S'!D50*(1-'V-Tarif'!$J$1),2) -> 3.45 | E65: =ROUND('Tarifgruppe S'!E50*(1-'V-Tarif'!$J$1),2) -> 1.56 | F65: =ROUND('Tarifgruppe S'!F50*(1-'V-Tarif'!$J$1),2) -> 1.05 | G65: =ROUND('Tarifgruppe S'!G50*(1-'V-Tarif'!$J$1),2) -> 1.02 | H65: =ROUND('Tarifgruppe S'!H50*(1-'V-Tarif'!$J$1),2) -> 12.22 | I65: =ROUND('Tarifgruppe S'!I50*(1-'V-Tarif'!$J$1),2) -> 1.66 | J65: =ROUND('Tarifgruppe S'!J50*(1-'V-Tarif'!$J$1),2) -> 2.33 | K65: =ROUND('Tarifgruppe S'!K50*(1-'V-Tarif'!$J$1),2) -> 2.88 | L65: =ROUND('Tarifgruppe S'!L50*(1-'V-Tarif'!$J$1),2) -> 1.3 | M65: =ROUND('Tarifgruppe S'!M50*(1-'V-Tarif'!$J$1),2) -> 0.87 | N65: =ROUND('Tarifgruppe S'!N50*(1-'V-Tarif'!$J$1),2) -> 0.85 | O65: =ROUND('Tarifgruppe S'!O50*(1-'V-Tarif'!$J$1),2) -> 10.18 | Q65: 37 | R65: =ROUND('Tarif URP'!B46*(1-'V-Tarif'!$J$1),2) -> 0.87 | S65: =ROUND('Tarif URP'!C46*(1-'V-Tarif'!$J$1),2) -> 0.95 | T65: =ROUND('Tarif URP'!D46*(1-'V-Tarif'!$J$1),2) -> 1.22 | U65: =ROUND('Tarif URP'!E46*(1-'V-Tarif'!$J$1),2) -> 1.51
A66: 101 | B66: =ROUND('Tarifgruppe S'!B51*(1-'V-Tarif'!$J$1),2) -> 2.09 | C66: =ROUND('Tarifgruppe S'!C51*(1-'V-Tarif'!$J$1),2) -> 2.94 | D66: =ROUND('Tarifgruppe S'!D51*(1-'V-Tarif'!$J$1),2) -> 3.62 | E66: =ROUND('Tarifgruppe S'!E51*(1-'V-Tarif'!$J$1),2) -> 1.64 | F66: =ROUND('Tarifgruppe S'!F51*(1-'V-Tarif'!$J$1),2) -> 1.1 | G66: =ROUND('Tarifgruppe S'!G51*(1-'V-Tarif'!$J$1),2) -> 1.07 | H66: =ROUND('Tarifgruppe S'!H51*(1-'V-Tarif'!$J$1),2) -> 12.83 | I66: =ROUND('Tarifgruppe S'!I51*(1-'V-Tarif'!$J$1),2) -> 1.74 | J66: =ROUND('Tarifgruppe S'!J51*(1-'V-Tarif'!$J$1),2) -> 2.45 | K66: =ROUND('Tarifgruppe S'!K51*(1-'V-Tarif'!$J$1),2) -> 3.02 | L66: =ROUND('Tarifgruppe S'!L51*(1-'V-Tarif'!$J$1),2) -> 1.37 | M66: =ROUND('Tarifgruppe S'!M51*(1-'V-Tarif'!$J$1),2) -> 0.92 | N66: =ROUND('Tarifgruppe S'!N51*(1-'V-Tarif'!$J$1),2) -> 0.9 | O66: =ROUND('Tarifgruppe S'!O51*(1-'V-Tarif'!$J$1),2) -> 10.69 | Q66: 38 | R66: =ROUND('Tarif URP'!B47*(1-'V-Tarif'!$J$1),2) -> 0.92 | S66: =ROUND('Tarif URP'!C47*(1-'V-Tarif'!$J$1),2) -> 1 | T66: =ROUND('Tarif URP'!D47*(1-'V-Tarif'!$J$1),2) -> 1.31 | U66: =ROUND('Tarif URP'!E47*(1-'V-Tarif'!$J$1),2) -> 1.61
A67: 102 | B67: =ROUND('Tarifgruppe S'!B52*(1-'V-Tarif'!$J$1),2) -> 2.19 | C67: =ROUND('Tarifgruppe S'!C52*(1-'V-Tarif'!$J$1),2) -> 3.08 | D67: =ROUND('Tarifgruppe S'!D52*(1-'V-Tarif'!$J$1),2) -> 3.8 | E67: =ROUND('Tarifgruppe S'!E52*(1-'V-Tarif'!$J$1),2) -> 1.72 | F67: =ROUND('Tarifgruppe S'!F52*(1-'V-Tarif'!$J$1),2) -> 1.16 | G67: =ROUND('Tarifgruppe S'!G52*(1-'V-Tarif'!$J$1),2) -> 1.13 | H67: =ROUND('Tarifgruppe S'!H52*(1-'V-Tarif'!$J$1),2) -> 13.47 | I67: =ROUND('Tarifgruppe S'!I52*(1-'V-Tarif'!$J$1),2) -> 1.83 | J67: =ROUND('Tarifgruppe S'!J52*(1-'V-Tarif'!$J$1),2) -> 2.57 | K67: =ROUND('Tarifgruppe S'!K52*(1-'V-Tarif'!$J$1),2) -> 3.17 | L67: =ROUND('Tarifgruppe S'!L52*(1-'V-Tarif'!$J$1),2) -> 1.44 | M67: =ROUND('Tarifgruppe S'!M52*(1-'V-Tarif'!$J$1),2) -> 0.96 | N67: =ROUND('Tarifgruppe S'!N52*(1-'V-Tarif'!$J$1),2) -> 0.94 | O67: =ROUND('Tarifgruppe S'!O52*(1-'V-Tarif'!$J$1),2) -> 11.23 | Q67: 39 | R67: =ROUND('Tarif URP'!B48*(1-'V-Tarif'!$J$1),2) -> 0.97 | S67: =ROUND('Tarif URP'!C48*(1-'V-Tarif'!$J$1),2) -> 1.05 | T67: =ROUND('Tarif URP'!D48*(1-'V-Tarif'!$J$1),2) -> 1.4 | U67: =ROUND('Tarif URP'!E48*(1-'V-Tarif'!$J$1),2) -> 1.71
A68: 103 | B68: =ROUND('Tarifgruppe S'!B53*(1-'V-Tarif'!$J$1),2) -> 2.3 | C68: =ROUND('Tarifgruppe S'!C53*(1-'V-Tarif'!$J$1),2) -> 3.24 | D68: =ROUND('Tarifgruppe S'!D53*(1-'V-Tarif'!$J$1),2) -> 3.99 | E68: =ROUND('Tarifgruppe S'!E53*(1-'V-Tarif'!$J$1),2) -> 1.81 | F68: =ROUND('Tarifgruppe S'!F53*(1-'V-Tarif'!$J$1),2) -> 1.21 | G68: =ROUND('Tarifgruppe S'!G53*(1-'V-Tarif'!$J$1),2) -> 1.18 | H68: =ROUND('Tarifgruppe S'!H53*(1-'V-Tarif'!$J$1),2) -> 14.15 | I68: =ROUND('Tarifgruppe S'!I53*(1-'V-Tarif'!$J$1),2) -> 1.92 | J68: =ROUND('Tarifgruppe S'!J53*(1-'V-Tarif'!$J$1),2) -> 2.7 | K68: =ROUND('Tarifgruppe S'!K53*(1-'V-Tarif'!$J$1),2) -> 3.33 | L68: =ROUND('Tarifgruppe S'!L53*(1-'V-Tarif'!$J$1),2) -> 1.51 | M68: =ROUND('Tarifgruppe S'!M53*(1-'V-Tarif'!$J$1),2) -> 1.01 | N68: =ROUND('Tarifgruppe S'!N53*(1-'V-Tarif'!$J$1),2) -> 0.99 | O68: =ROUND('Tarifgruppe S'!O53*(1-'V-Tarif'!$J$1),2) -> 11.79 | Q68: 40 | R68: =ROUND('Tarif URP'!B49*(1-'V-Tarif'!$J$1),2) -> 1 | S68: =ROUND('Tarif URP'!C49*(1-'V-Tarif'!$J$1),2) -> 1.08 | T68: =ROUND('Tarif URP'!D49*(1-'V-Tarif'!$J$1),2) -> 1.46 | U68: =ROUND('Tarif URP'!E49*(1-'V-Tarif'!$J$1),2) -> 1.77
A69: 104 | B69: =ROUND('Tarifgruppe S'!B54*(1-'V-Tarif'!$J$1),2) -> 2.42 | C69: =ROUND('Tarifgruppe S'!C54*(1-'V-Tarif'!$J$1),2) -> 3.4 | D69: =ROUND('Tarifgruppe S'!D54*(1-'V-Tarif'!$J$1),2) -> 4.19 | E69: =ROUND('Tarifgruppe S'!E54*(1-'V-Tarif'!$J$1),2) -> 1.9 | F69: =ROUND('Tarifgruppe S'!F54*(1-'V-Tarif'!$J$1),2) -> 1.27 | G69: =ROUND('Tarifgruppe S'!G54*(1-'V-Tarif'!$J$1),2) -> 1.24 | H69: =ROUND('Tarifgruppe S'!H54*(1-'V-Tarif'!$J$1),2) -> 14.85 | I69: =ROUND('Tarifgruppe S'!I54*(1-'V-Tarif'!$J$1),2) -> 2.01 | J69: =ROUND('Tarifgruppe S'!J54*(1-'V-Tarif'!$J$1),2) -> 2.83 | K69: =ROUND('Tarifgruppe S'!K54*(1-'V-Tarif'!$J$1),2) -> 3.5 | L69: =ROUND('Tarifgruppe S'!L54*(1-'V-Tarif'!$J$1),2) -> 1.58 | M69: =ROUND('Tarifgruppe S'!M54*(1-'V-Tarif'!$J$1),2) -> 1.06 | N69: =ROUND('Tarifgruppe S'!N54*(1-'V-Tarif'!$J$1),2) -> 1.04 | O69: =ROUND('Tarifgruppe S'!O54*(1-'V-Tarif'!$J$1),2) -> 12.38 | Q69: 41 | R69: =ROUND('Tarif URP'!B50*(1-'V-Tarif'!$J$1),2) -> 1.06 | S69: =ROUND('Tarif URP'!C50*(1-'V-Tarif'!$J$1),2) -> 1.14 | T69: =ROUND('Tarif URP'!D50*(1-'V-Tarif'!$J$1),2) -> 1.57 | U69: =ROUND('Tarif URP'!E50*(1-'V-Tarif'!$J$1),2) -> 1.9
A70: 105 | B70: =ROUND('Tarifgruppe S'!B55*(1-'V-Tarif'!$J$1),2) -> 2.54 | C70: =ROUND('Tarifgruppe S'!C55*(1-'V-Tarif'!$J$1),2) -> 3.57 | D70: =ROUND('Tarifgruppe S'!D55*(1-'V-Tarif'!$J$1),2) -> 4.4 | E70: =ROUND('Tarifgruppe S'!E55*(1-'V-Tarif'!$J$1),2) -> 1.99 | F70: =ROUND('Tarifgruppe S'!F55*(1-'V-Tarif'!$J$1),2) -> 1.34 | G70: =ROUND('Tarifgruppe S'!G55*(1-'V-Tarif'!$J$1),2) -> 1.31 | H70: =ROUND('Tarifgruppe S'!H55*(1-'V-Tarif'!$J$1),2) -> 15.6 | I70: =ROUND('Tarifgruppe S'!I55*(1-'V-Tarif'!$J$1),2) -> 2.11 | J70: =ROUND('Tarifgruppe S'!J55*(1-'V-Tarif'!$J$1),2) -> 2.97 | K70: =ROUND('Tarifgruppe S'!K55*(1-'V-Tarif'!$J$1),2) -> 3.67 | L70: =ROUND('Tarifgruppe S'!L55*(1-'V-Tarif'!$J$1),2) -> 1.66 | M70: =ROUND('Tarifgruppe S'!M55*(1-'V-Tarif'!$J$1),2) -> 1.12 | N70: =ROUND('Tarifgruppe S'!N55*(1-'V-Tarif'!$J$1),2) -> 1.09 | O70: =ROUND('Tarifgruppe S'!O55*(1-'V-Tarif'!$J$1),2) -> 13 | Q70: 42 | R70: =ROUND('Tarif URP'!B51*(1-'V-Tarif'!$J$1),2) -> 1.13 | S70: =ROUND('Tarif URP'!C51*(1-'V-Tarif'!$J$1),2) -> 1.2 | T70: =ROUND('Tarif URP'!D51*(1-'V-Tarif'!$J$1),2) -> 1.69 | U70: =ROUND('Tarif URP'!E51*(1-'V-Tarif'!$J$1),2) -> 2.03
A71: 106 | B71: =ROUND('Tarifgruppe S'!B56*(1-'V-Tarif'!$J$1),2) -> 2.66 | C71: =ROUND('Tarifgruppe S'!C56*(1-'V-Tarif'!$J$1),2) -> 3.75 | D71: =ROUND('Tarifgruppe S'!D56*(1-'V-Tarif'!$J$1),2) -> 4.62 | E71: =ROUND('Tarifgruppe S'!E56*(1-'V-Tarif'!$J$1),2) -> 2.09 | F71: =ROUND('Tarifgruppe S'!F56*(1-'V-Tarif'!$J$1),2) -> 1.4 | G71: =ROUND('Tarifgruppe S'!G56*(1-'V-Tarif'!$J$1),2) -> 1.37 | H71: =ROUND('Tarifgruppe S'!H56*(1-'V-Tarif'!$J$1),2) -> 16.38 | I71: =ROUND('Tarifgruppe S'!I56*(1-'V-Tarif'!$J$1),2) -> 2.22 | J71: =ROUND('Tarifgruppe S'!J56*(1-'V-Tarif'!$J$1),2) -> 3.12 | K71: =ROUND('Tarifgruppe S'!K56*(1-'V-Tarif'!$J$1),2) -> 3.85 | L71: =ROUND('Tarifgruppe S'!L56*(1-'V-Tarif'!$J$1),2) -> 1.75 | M71: =ROUND('Tarifgruppe S'!M56*(1-'V-Tarif'!$J$1),2) -> 1.17 | N71: =ROUND('Tarifgruppe S'!N56*(1-'V-Tarif'!$J$1),2) -> 1.14 | O71: =ROUND('Tarifgruppe S'!O56*(1-'V-Tarif'!$J$1),2) -> 13.65 | Q71: 43 | R71: =ROUND('Tarif URP'!B52*(1-'V-Tarif'!$J$1),2) -> 1.2 | S71: =ROUND('Tarif URP'!C52*(1-'V-Tarif'!$J$1),2) -> 1.27 | T71: =ROUND('Tarif URP'!D52*(1-'V-Tarif'!$J$1),2) -> 1.83 | U71: =ROUND('Tarif URP'!E52*(1-'V-Tarif'!$J$1),2) -> 2.19
A72: 107 | B72: =ROUND('Tarifgruppe S'!B57*(1-'V-Tarif'!$J$1),2) -> 2.8 | C72: =ROUND('Tarifgruppe S'!C57*(1-'V-Tarif'!$J$1),2) -> 3.93 | D72: =ROUND('Tarifgruppe S'!D57*(1-'V-Tarif'!$J$1),2) -> 4.86 | E72: =ROUND('Tarifgruppe S'!E57*(1-'V-Tarif'!$J$1),2) -> 2.2 | F72: =ROUND('Tarifgruppe S'!F57*(1-'V-Tarif'!$J$1),2) -> 1.47 | G72: =ROUND('Tarifgruppe S'!G57*(1-'V-Tarif'!$J$1),2) -> 1.44 | H72: =ROUND('Tarifgruppe S'!H57*(1-'V-Tarif'!$J$1),2) -> 17.19 | I72: =ROUND('Tarifgruppe S'!I57*(1-'V-Tarif'!$J$1),2) -> 2.33 | J72: =ROUND('Tarifgruppe S'!J57*(1-'V-Tarif'!$J$1),2) -> 3.28 | K72: =ROUND('Tarifgruppe S'!K57*(1-'V-Tarif'!$J$1),2) -> 4.05 | L72: =ROUND('Tarifgruppe S'!L57*(1-'V-Tarif'!$J$1),2) -> 1.83 | M72: =ROUND('Tarifgruppe S'!M57*(1-'V-Tarif'!$J$1),2) -> 1.23 | N72: =ROUND('Tarifgruppe S'!N57*(1-'V-Tarif'!$J$1),2) -> 1.2 | O72: =ROUND('Tarifgruppe S'!O57*(1-'V-Tarif'!$J$1),2) -> 14.33 | Q72: 44 | R72: =ROUND('Tarif URP'!B53*(1-'V-Tarif'!$J$1),2) -> 1.27 | S72: =ROUND('Tarif URP'!C53*(1-'V-Tarif'!$J$1),2) -> 1.34 | T72: =ROUND('Tarif URP'!D53*(1-'V-Tarif'!$J$1),2) -> 1.99 | U72: =ROUND('Tarif URP'!E53*(1-'V-Tarif'!$J$1),2) -> 2.36
A73: 108 | B73: =ROUND('Tarifgruppe S'!B58*(1-'V-Tarif'!$J$1),2) -> 2.94 | C73: =ROUND('Tarifgruppe S'!C58*(1-'V-Tarif'!$J$1),2) -> 4.13 | D73: =ROUND('Tarifgruppe S'!D58*(1-'V-Tarif'!$J$1),2) -> 5.1 | E73: =ROUND('Tarifgruppe S'!E58*(1-'V-Tarif'!$J$1),2) -> 2.31 | F73: =ROUND('Tarifgruppe S'!F58*(1-'V-Tarif'!$J$1),2) -> 1.55 | G73: =ROUND('Tarifgruppe S'!G58*(1-'V-Tarif'!$J$1),2) -> 1.51 | H73: =ROUND('Tarifgruppe S'!H58*(1-'V-Tarif'!$J$1),2) -> 18.05 | I73: =ROUND('Tarifgruppe S'!I58*(1-'V-Tarif'!$J$1),2) -> 2.45 | J73: =ROUND('Tarifgruppe S'!J58*(1-'V-Tarif'!$J$1),2) -> 3.44 | K73: =ROUND('Tarifgruppe S'!K58*(1-'V-Tarif'!$J$1),2) -> 4.25 | L73: =ROUND('Tarifgruppe S'!L58*(1-'V-Tarif'!$J$1),2) -> 1.92 | M73: =ROUND('Tarifgruppe S'!M58*(1-'V-Tarif'!$J$1),2) -> 1.29 | N73: =ROUND('Tarifgruppe S'!N58*(1-'V-Tarif'!$J$1),2) -> 1.26 | O73: =ROUND('Tarifgruppe S'!O58*(1-'V-Tarif'!$J$1),2) -> 15.05 | Q73: 45 | R73: =ROUND('Tarif URP'!B54*(1-'V-Tarif'!$J$1),2) -> 1.32 | S73: =ROUND('Tarif URP'!C54*(1-'V-Tarif'!$J$1),2) -> 1.38 | T73: =ROUND('Tarif URP'!D54*(1-'V-Tarif'!$J$1),2) -> 2.1 | U73: =ROUND('Tarif URP'!E54*(1-'V-Tarif'!$J$1),2) -> 2.48
A74: 109 | B74: =ROUND('Tarifgruppe S'!B59*(1-'V-Tarif'!$J$1),2) -> 3.08 | C74: =ROUND('Tarifgruppe S'!C59*(1-'V-Tarif'!$J$1),2) -> 4.34 | D74: =ROUND('Tarifgruppe S'!D59*(1-'V-Tarif'!$J$1),2) -> 5.35 | E74: =ROUND('Tarifgruppe S'!E59*(1-'V-Tarif'!$J$1),2) -> 2.42 | F74: =ROUND('Tarifgruppe S'!F59*(1-'V-Tarif'!$J$1),2) -> 1.63 | G74: =ROUND('Tarifgruppe S'!G59*(1-'V-Tarif'!$J$1),2) -> 1.59 | H74: =ROUND('Tarifgruppe S'!H59*(1-'V-Tarif'!$J$1),2) -> 18.96 | I74: =ROUND('Tarifgruppe S'!I59*(1-'V-Tarif'!$J$1),2) -> 2.57 | J74: =ROUND('Tarifgruppe S'!J59*(1-'V-Tarif'!$J$1),2) -> 3.62 | K74: =ROUND('Tarifgruppe S'!K59*(1-'V-Tarif'!$J$1),2) -> 4.46 | L74: =ROUND('Tarifgruppe S'!L59*(1-'V-Tarif'!$J$1),2) -> 2.02 | M74: =ROUND('Tarifgruppe S'!M59*(1-'V-Tarif'!$J$1),2) -> 1.35 | N74: =ROUND('Tarifgruppe S'!N59*(1-'V-Tarif'!$J$1),2) -> 1.32 | O74: =ROUND('Tarifgruppe S'!O59*(1-'V-Tarif'!$J$1),2) -> 15.8 | Q74: 46 | R74: =ROUND('Tarif URP'!B55*(1-'V-Tarif'!$J$1),2) -> 1.4 | S74: =ROUND('Tarif URP'!C55*(1-'V-Tarif'!$J$1),2) -> 1.45 | T74: =ROUND('Tarif URP'!D55*(1-'V-Tarif'!$J$1),2) -> 2.28 | U74: =ROUND('Tarif URP'!E55*(1-'V-Tarif'!$J$1),2) -> 2.68
A75: 110 | B75: =ROUND('Tarifgruppe S'!B60*(1-'V-Tarif'!$J$1),2) -> 3.24 | C75: =ROUND('Tarifgruppe S'!C60*(1-'V-Tarif'!$J$1),2) -> 4.55 | D75: =ROUND('Tarifgruppe S'!D60*(1-'V-Tarif'!$J$1),2) -> 5.62 | E75: =ROUND('Tarifgruppe S'!E60*(1-'V-Tarif'!$J$1),2) -> 2.55 | F75: =ROUND('Tarifgruppe S'!F60*(1-'V-Tarif'!$J$1),2) -> 1.71 | G75: =ROUND('Tarifgruppe S'!G60*(1-'V-Tarif'!$J$1),2) -> 1.67 | H75: =ROUND('Tarifgruppe S'!H60*(1-'V-Tarif'!$J$1),2) -> 19.9 | I75: =ROUND('Tarifgruppe S'!I60*(1-'V-Tarif'!$J$1),2) -> 2.7 | J75: =ROUND('Tarifgruppe S'!J60*(1-'V-Tarif'!$J$1),2) -> 3.8 | K75: =ROUND('Tarifgruppe S'!K60*(1-'V-Tarif'!$J$1),2) -> 4.68 | L75: =ROUND('Tarifgruppe S'!L60*(1-'V-Tarif'!$J$1),2) -> 2.12 | M75: =ROUND('Tarifgruppe S'!M60*(1-'V-Tarif'!$J$1),2) -> 1.42 | N75: =ROUND('Tarifgruppe S'!N60*(1-'V-Tarif'!$J$1),2) -> 1.39 | O75: =ROUND('Tarifgruppe S'!O60*(1-'V-Tarif'!$J$1),2) -> 16.59 | Q75: 47 | R75: =ROUND('Tarif URP'!B56*(1-'V-Tarif'!$J$1),2) -> 1.48 | S75: =ROUND('Tarif URP'!C56*(1-'V-Tarif'!$J$1),2) -> 1.53 | T75: =ROUND('Tarif URP'!D56*(1-'V-Tarif'!$J$1),2) -> 2.48 | U75: =ROUND('Tarif URP'!E56*(1-'V-Tarif'!$J$1),2) -> 2.9
A76: 111 | B76: =ROUND('Tarifgruppe S'!B61*(1-'V-Tarif'!$J$1),2) -> 3.4 | C76: =ROUND('Tarifgruppe S'!C61*(1-'V-Tarif'!$J$1),2) -> 4.78 | D76: =ROUND('Tarifgruppe S'!D61*(1-'V-Tarif'!$J$1),2) -> 5.9 | E76: =ROUND('Tarifgruppe S'!E61*(1-'V-Tarif'!$J$1),2) -> 2.67 | F76: =ROUND('Tarifgruppe S'!F61*(1-'V-Tarif'!$J$1),2) -> 1.79 | G76: =ROUND('Tarifgruppe S'!G61*(1-'V-Tarif'!$J$1),2) -> 1.75 | H76: =ROUND('Tarifgruppe S'!H61*(1-'V-Tarif'!$J$1),2) -> 20.9 | I76: =ROUND('Tarifgruppe S'!I61*(1-'V-Tarif'!$J$1),2) -> 2.83 | J76: =ROUND('Tarifgruppe S'!J61*(1-'V-Tarif'!$J$1),2) -> 3.99 | K76: =ROUND('Tarifgruppe S'!K61*(1-'V-Tarif'!$J$1),2) -> 4.92 | L76: =ROUND('Tarifgruppe S'!L61*(1-'V-Tarif'!$J$1),2) -> 2.23 | M76: =ROUND('Tarifgruppe S'!M61*(1-'V-Tarif'!$J$1),2) -> 1.49 | N76: =ROUND('Tarifgruppe S'!N61*(1-'V-Tarif'!$J$1),2) -> 1.46 | O76: =ROUND('Tarifgruppe S'!O61*(1-'V-Tarif'!$J$1),2) -> 17.42 | Q76: 48 | R76: =ROUND('Tarif URP'!B57*(1-'V-Tarif'!$J$1),2) -> 1.56 | S76: =ROUND('Tarif URP'!C57*(1-'V-Tarif'!$J$1),2) -> 1.61 | T76: =ROUND('Tarif URP'!D57*(1-'V-Tarif'!$J$1),2) -> 2.71 | U76: =ROUND('Tarif URP'!E57*(1-'V-Tarif'!$J$1),2) -> 3.15
A77: 112 | B77: =ROUND('Tarifgruppe S'!B62*(1-'V-Tarif'!$J$1),2) -> 3.57 | C77: =ROUND('Tarifgruppe S'!C62*(1-'V-Tarif'!$J$1),2) -> 5.02 | D77: =ROUND('Tarifgruppe S'!D62*(1-'V-Tarif'!$J$1),2) -> 6.2 | E77: =ROUND('Tarifgruppe S'!E62*(1-'V-Tarif'!$J$1),2) -> 2.81 | F77: =ROUND('Tarifgruppe S'!F62*(1-'V-Tarif'!$J$1),2) -> 1.88 | G77: =ROUND('Tarifgruppe S'!G62*(1-'V-Tarif'!$J$1),2) -> 1.84 | H77: =ROUND('Tarifgruppe S'!H62*(1-'V-Tarif'!$J$1),2) -> 21.94 | I77: =ROUND('Tarifgruppe S'!I62*(1-'V-Tarif'!$J$1),2) -> 2.97 | J77: =ROUND('Tarifgruppe S'!J62*(1-'V-Tarif'!$J$1),2) -> 4.18 | K77: =ROUND('Tarifgruppe S'!K62*(1-'V-Tarif'!$J$1),2) -> 5.16 | L77: =ROUND('Tarifgruppe S'!L62*(1-'V-Tarif'!$J$1),2) -> 2.34 | M77: =ROUND('Tarifgruppe S'!M62*(1-'V-Tarif'!$J$1),2) -> 1.57 | N77: =ROUND('Tarifgruppe S'!N62*(1-'V-Tarif'!$J$1),2) -> 1.53 | O77: =ROUND('Tarifgruppe S'!O62*(1-'V-Tarif'!$J$1),2) -> 18.29 | Q77: 49 | R77: =ROUND('Tarif URP'!B58*(1-'V-Tarif'!$J$1),2) -> 1.65 | S77: =ROUND('Tarif URP'!C58*(1-'V-Tarif'!$J$1),2) -> 1.68 | T77: =ROUND('Tarif URP'!D58*(1-'V-Tarif'!$J$1),2) -> 2.95 | U77: =ROUND('Tarif URP'!E58*(1-'V-Tarif'!$J$1),2) -> 3.42
A78: 113 | B78: =ROUND('Tarifgruppe S'!B63*(1-'V-Tarif'!$J$1),2) -> 3.75 | C78: =ROUND('Tarifgruppe S'!C63*(1-'V-Tarif'!$J$1),2) -> 5.27 | D78: =ROUND('Tarifgruppe S'!D63*(1-'V-Tarif'!$J$1),2) -> 6.51 | E78: =ROUND('Tarifgruppe S'!E63*(1-'V-Tarif'!$J$1),2) -> 2.95 | F78: =ROUND('Tarifgruppe S'!F63*(1-'V-Tarif'!$J$1),2) -> 1.98 | G78: =ROUND('Tarifgruppe S'!G63*(1-'V-Tarif'!$J$1),2) -> 1.93 | H78: =ROUND('Tarifgruppe S'!H63*(1-'V-Tarif'!$J$1),2) -> 23.04 | I78: =ROUND('Tarifgruppe S'!I63*(1-'V-Tarif'!$J$1),2) -> 3.12 | J78: =ROUND('Tarifgruppe S'!J63*(1-'V-Tarif'!$J$1),2) -> 4.39 | K78: =ROUND('Tarifgruppe S'!K63*(1-'V-Tarif'!$J$1),2) -> 5.42 | L78: =ROUND('Tarifgruppe S'!L63*(1-'V-Tarif'!$J$1),2) -> 2.46 | M78: =ROUND('Tarifgruppe S'!M63*(1-'V-Tarif'!$J$1),2) -> 1.65 | N78: =ROUND('Tarifgruppe S'!N63*(1-'V-Tarif'!$J$1),2) -> 1.61 | O78: =ROUND('Tarifgruppe S'!O63*(1-'V-Tarif'!$J$1),2) -> 19.2 | Q78: 50 | R78: =ROUND('Tarif URP'!B59*(1-'V-Tarif'!$J$1),2) -> 1.69 | S78: =ROUND('Tarif URP'!C59*(1-'V-Tarif'!$J$1),2) -> 1.72 | T78: =ROUND('Tarif URP'!D59*(1-'V-Tarif'!$J$1),2) -> 3.14 | U78: =ROUND('Tarif URP'!E59*(1-'V-Tarif'!$J$1),2) -> 3.61
A79: 114 | B79: =ROUND('Tarifgruppe S'!B64*(1-'V-Tarif'!$J$1),2) -> 3.93 | C79: =ROUND('Tarifgruppe S'!C64*(1-'V-Tarif'!$J$1),2) -> 5.54 | D79: =ROUND('Tarifgruppe S'!D64*(1-'V-Tarif'!$J$1),2) -> 6.83 | E79: =ROUND('Tarifgruppe S'!E64*(1-'V-Tarif'!$J$1),2) -> 3.09 | F79: =ROUND('Tarifgruppe S'!F64*(1-'V-Tarif'!$J$1),2) -> 2.07 | G79: =ROUND('Tarifgruppe S'!G64*(1-'V-Tarif'!$J$1),2) -> 2.02 | H79: =ROUND('Tarifgruppe S'!H64*(1-'V-Tarif'!$J$1),2) -> 24.19 | I79: =ROUND('Tarifgruppe S'!I64*(1-'V-Tarif'!$J$1),2) -> 3.28 | J79: =ROUND('Tarifgruppe S'!J64*(1-'V-Tarif'!$J$1),2) -> 4.61 | K79: =ROUND('Tarifgruppe S'!K64*(1-'V-Tarif'!$J$1),2) -> 5.69 | L79: =ROUND('Tarifgruppe S'!L64*(1-'V-Tarif'!$J$1),2) -> 2.58 | M79: =ROUND('Tarifgruppe S'!M64*(1-'V-Tarif'!$J$1),2) -> 1.73 | N79: =ROUND('Tarifgruppe S'!N64*(1-'V-Tarif'!$J$1),2) -> 1.69 | O79: =ROUND('Tarifgruppe S'!O64*(1-'V-Tarif'!$J$1),2) -> 20.16 | Q79: 51 | R79: =ROUND('Tarif URP'!B60*(1-'V-Tarif'!$J$1),2) -> 1.76 | S79: =ROUND('Tarif URP'!C60*(1-'V-Tarif'!$J$1),2) -> 1.78 | T79: =ROUND('Tarif URP'!D60*(1-'V-Tarif'!$J$1),2) -> 3.42 | U79: =ROUND('Tarif URP'!E60*(1-'V-Tarif'!$J$1),2) -> 3.91
A80: 115 | B80: =ROUND('Tarifgruppe S'!B65*(1-'V-Tarif'!$J$1),2) -> 4.13 | C80: =ROUND('Tarifgruppe S'!C65*(1-'V-Tarif'!$J$1),2) -> 5.81 | D80: =ROUND('Tarifgruppe S'!D65*(1-'V-Tarif'!$J$1),2) -> 7.17 | E80: =ROUND('Tarifgruppe S'!E65*(1-'V-Tarif'!$J$1),2) -> 3.25 | F80: =ROUND('Tarifgruppe S'!F65*(1-'V-Tarif'!$J$1),2) -> 2.18 | G80: =ROUND('Tarifgruppe S'!G65*(1-'V-Tarif'!$J$1),2) -> 2.12 | H80: =ROUND('Tarifgruppe S'!H65*(1-'V-Tarif'!$J$1),2) -> 25.4 | I80: =ROUND('Tarifgruppe S'!I65*(1-'V-Tarif'!$J$1),2) -> 3.44 | J80: =ROUND('Tarifgruppe S'!J65*(1-'V-Tarif'!$J$1),2) -> 4.84 | K80: =ROUND('Tarifgruppe S'!K65*(1-'V-Tarif'!$J$1),2) -> 5.98 | L80: =ROUND('Tarifgruppe S'!L65*(1-'V-Tarif'!$J$1),2) -> 2.71 | M80: =ROUND('Tarifgruppe S'!M65*(1-'V-Tarif'!$J$1),2) -> 1.81 | N80: =ROUND('Tarifgruppe S'!N65*(1-'V-Tarif'!$J$1),2) -> 1.77 | O80: =ROUND('Tarifgruppe S'!O65*(1-'V-Tarif'!$J$1),2) -> 21.17 | Q80: 52 | R80: =ROUND('Tarif URP'!B61*(1-'V-Tarif'!$J$1),2) -> 1.8 | S80: =ROUND('Tarif URP'!C61*(1-'V-Tarif'!$J$1),2) -> 1.81 | T80: =ROUND('Tarif URP'!D61*(1-'V-Tarif'!$J$1),2) -> 3.7 | U80: =ROUND('Tarif URP'!E61*(1-'V-Tarif'!$J$1),2) -> 4.22
A81: 116 | B81: =ROUND('Tarifgruppe S'!B66*(1-'V-Tarif'!$J$1),2) -> 4.34 | C81: =ROUND('Tarifgruppe S'!C66*(1-'V-Tarif'!$J$1),2) -> 6.1 | D81: =ROUND('Tarifgruppe S'!D66*(1-'V-Tarif'!$J$1),2) -> 7.53 | E81: =ROUND('Tarifgruppe S'!E66*(1-'V-Tarif'!$J$1),2) -> 3.41 | F81: =ROUND('Tarifgruppe S'!F66*(1-'V-Tarif'!$J$1),2) -> 2.29 | G81: =ROUND('Tarifgruppe S'!G66*(1-'V-Tarif'!$J$1),2) -> 2.23 | H81: =ROUND('Tarifgruppe S'!H66*(1-'V-Tarif'!$J$1),2) -> 26.67 | I81: =ROUND('Tarifgruppe S'!I66*(1-'V-Tarif'!$J$1),2) -> 3.61 | J81: =ROUND('Tarifgruppe S'!J66*(1-'V-Tarif'!$J$1),2) -> 5.09 | K81: =ROUND('Tarifgruppe S'!K66*(1-'V-Tarif'!$J$1),2) -> 6.28 | L81: =ROUND('Tarifgruppe S'!L66*(1-'V-Tarif'!$J$1),2) -> 2.84 | M81: =ROUND('Tarifgruppe S'!M66*(1-'V-Tarif'!$J$1),2) -> 1.91 | N81: =ROUND('Tarifgruppe S'!N66*(1-'V-Tarif'!$J$1),2) -> 1.86 | O81: =ROUND('Tarifgruppe S'!O66*(1-'V-Tarif'!$J$1),2) -> 22.23 | Q81: 53 | R81: =ROUND('Tarif URP'!B62*(1-'V-Tarif'!$J$1),2) -> 1.82 | S81: =ROUND('Tarif URP'!C62*(1-'V-Tarif'!$J$1),2) -> 1.82 | T81: =ROUND('Tarif URP'!D62*(1-'V-Tarif'!$J$1),2) -> 4 | U81: =ROUND('Tarif URP'!E62*(1-'V-Tarif'!$J$1),2) -> 4.55
A82: 117 | B82: =ROUND('Tarifgruppe S'!B67*(1-'V-Tarif'!$J$1),2) -> 4.55 | C82: =ROUND('Tarifgruppe S'!C67*(1-'V-Tarif'!$J$1),2) -> 6.41 | D82: =ROUND('Tarifgruppe S'!D67*(1-'V-Tarif'!$J$1),2) -> 7.91 | E82: =ROUND('Tarifgruppe S'!E67*(1-'V-Tarif'!$J$1),2) -> 3.58 | F82: =ROUND('Tarifgruppe S'!F67*(1-'V-Tarif'!$J$1),2) -> 2.4 | G82: =ROUND('Tarifgruppe S'!G67*(1-'V-Tarif'!$J$1),2) -> 2.34 | H82: =ROUND('Tarifgruppe S'!H67*(1-'V-Tarif'!$J$1),2) -> 28.01 | I82: =ROUND('Tarifgruppe S'!I67*(1-'V-Tarif'!$J$1),2) -> 3.79 | J82: =ROUND('Tarifgruppe S'!J67*(1-'V-Tarif'!$J$1),2) -> 5.34 | K82: =ROUND('Tarifgruppe S'!K67*(1-'V-Tarif'!$J$1),2) -> 6.59 | L82: =ROUND('Tarifgruppe S'!L67*(1-'V-Tarif'!$J$1),2) -> 2.98 | M82: =ROUND('Tarifgruppe S'!M67*(1-'V-Tarif'!$J$1),2) -> 2 | N82: =ROUND('Tarifgruppe S'!N67*(1-'V-Tarif'!$J$1),2) -> 1.95 | O82: =ROUND('Tarifgruppe S'!O67*(1-'V-Tarif'!$J$1),2) -> 23.34 | Q82: 54 | R82: =ROUND('Tarif URP'!B63*(1-'V-Tarif'!$J$1),2) -> 1.82 | S82: =ROUND('Tarif URP'!C63*(1-'V-Tarif'!$J$1),2) -> 1.81 | T82: =ROUND('Tarif URP'!D63*(1-'V-Tarif'!$J$1),2) -> 4.34 | U82: =ROUND('Tarif URP'!E63*(1-'V-Tarif'!$J$1),2) -> 4.91
A83: 118 | B83: =ROUND('Tarifgruppe S'!B68*(1-'V-Tarif'!$J$1),2) -> 4.78 | C83: =ROUND('Tarifgruppe S'!C68*(1-'V-Tarif'!$J$1),2) -> 6.73 | D83: =ROUND('Tarifgruppe S'!D68*(1-'V-Tarif'!$J$1),2) -> 8.3 | E83: =ROUND('Tarifgruppe S'!E68*(1-'V-Tarif'!$J$1),2) -> 3.76 | F83: =ROUND('Tarifgruppe S'!F68*(1-'V-Tarif'!$J$1),2) -> 2.52 | G83: =ROUND('Tarifgruppe S'!G68*(1-'V-Tarif'!$J$1),2) -> 2.46 | H83: =ROUND('Tarifgruppe S'!H68*(1-'V-Tarif'!$J$1),2) -> 29.41 | I83: =ROUND('Tarifgruppe S'!I68*(1-'V-Tarif'!$J$1),2) -> 3.98 | J83: =ROUND('Tarifgruppe S'!J68*(1-'V-Tarif'!$J$1),2) -> 5.61 | K83: =ROUND('Tarifgruppe S'!K68*(1-'V-Tarif'!$J$1),2) -> 6.92 | L83: =ROUND('Tarifgruppe S'!L68*(1-'V-Tarif'!$J$1),2) -> 3.13 | M83: =ROUND('Tarifgruppe S'!M68*(1-'V-Tarif'!$J$1),2) -> 2.1 | N83: =ROUND('Tarifgruppe S'!N68*(1-'V-Tarif'!$J$1),2) -> 2.05 | O83: =ROUND('Tarifgruppe S'!O68*(1-'V-Tarif'!$J$1),2) -> 24.51 | Q83: 55 | R83: =ROUND('Tarif URP'!B64*(1-'V-Tarif'!$J$1),2) -> 1.78 | S83: =ROUND('Tarif URP'!C64*(1-'V-Tarif'!$J$1),2) -> 1.76 | T83: =ROUND('Tarif URP'!D64*(1-'V-Tarif'!$J$1),2) -> 4.58 | U83: =ROUND('Tarif URP'!E64*(1-'V-Tarif'!$J$1),2) -> 5.15
A84: 119 | B84: =ROUND('Tarifgruppe S'!B69*(1-'V-Tarif'!$J$1),2) -> 5.02 | C84: =ROUND('Tarifgruppe S'!C69*(1-'V-Tarif'!$J$1),2) -> 7.06 | D84: =ROUND('Tarifgruppe S'!D69*(1-'V-Tarif'!$J$1),2) -> 8.72 | E84: =ROUND('Tarifgruppe S'!E69*(1-'V-Tarif'!$J$1),2) -> 3.95 | F84: =ROUND('Tarifgruppe S'!F69*(1-'V-Tarif'!$J$1),2) -> 2.65 | G84: =ROUND('Tarifgruppe S'!G69*(1-'V-Tarif'!$J$1),2) -> 2.58 | H84: =ROUND('Tarifgruppe S'!H69*(1-'V-Tarif'!$J$1),2) -> 30.88 | I84: =ROUND('Tarifgruppe S'!I69*(1-'V-Tarif'!$J$1),2) -> 4.18 | J84: =ROUND('Tarifgruppe S'!J69*(1-'V-Tarif'!$J$1),2) -> 5.89 | K84: =ROUND('Tarifgruppe S'!K69*(1-'V-Tarif'!$J$1),2) -> 7.26 | L84: =ROUND('Tarifgruppe S'!L69*(1-'V-Tarif'!$J$1),2) -> 3.29 | M84: =ROUND('Tarifgruppe S'!M69*(1-'V-Tarif'!$J$1),2) -> 2.21 | N84: =ROUND('Tarifgruppe S'!N69*(1-'V-Tarif'!$J$1),2) -> 2.15 | O84: =ROUND('Tarifgruppe S'!O69*(1-'V-Tarif'!$J$1),2) -> 25.73 | Q84: 56 | R84: =ROUND('Tarif URP'!B65*(1-'V-Tarif'!$J$1),2) -> 1.73 | S84: =ROUND('Tarif URP'!C65*(1-'V-Tarif'!$J$1),2) -> 1.7 | T84: =ROUND('Tarif URP'!D65*(1-'V-Tarif'!$J$1),2) -> 5 | U84: =ROUND('Tarif URP'!E65*(1-'V-Tarif'!$J$1),2) -> 5.6
A85: 120 | B85: =ROUND('Tarifgruppe S'!B70*(1-'V-Tarif'!$J$1),2) -> 5.27 | C85: =ROUND('Tarifgruppe S'!C70*(1-'V-Tarif'!$J$1),2) -> 7.42 | D85: =ROUND('Tarifgruppe S'!D70*(1-'V-Tarif'!$J$1),2) -> 9.15 | E85: =ROUND('Tarifgruppe S'!E70*(1-'V-Tarif'!$J$1),2) -> 4.14 | F85: =ROUND('Tarifgruppe S'!F70*(1-'V-Tarif'!$J$1),2) -> 2.78 | G85: =ROUND('Tarifgruppe S'!G70*(1-'V-Tarif'!$J$1),2) -> 2.71 | H85: =ROUND('Tarifgruppe S'!H70*(1-'V-Tarif'!$J$1),2) -> 32.42 | I85: =ROUND('Tarifgruppe S'!I70*(1-'V-Tarif'!$J$1),2) -> 4.39 | J85: =ROUND('Tarifgruppe S'!J70*(1-'V-Tarif'!$J$1),2) -> 6.18 | K85: =ROUND('Tarifgruppe S'!K70*(1-'V-Tarif'!$J$1),2) -> 7.63 | L85: =ROUND('Tarifgruppe S'!L70*(1-'V-Tarif'!$J$1),2) -> 3.45 | M85: =ROUND('Tarifgruppe S'!M70*(1-'V-Tarif'!$J$1),2) -> 2.32 | N85: =ROUND('Tarifgruppe S'!N70*(1-'V-Tarif'!$J$1),2) -> 2.26 | O85: =ROUND('Tarifgruppe S'!O70*(1-'V-Tarif'!$J$1),2) -> 27.02 | Q85: 57 | R85: =ROUND('Tarif URP'!B66*(1-'V-Tarif'!$J$1),2) -> 1.63 | S85: =ROUND('Tarif URP'!C66*(1-'V-Tarif'!$J$1),2) -> 1.6 | T85: =ROUND('Tarif URP'!D66*(1-'V-Tarif'!$J$1),2) -> 5.49 | U85: =ROUND('Tarif URP'!E66*(1-'V-Tarif'!$J$1),2) -> 6.13
A86: 121 | B86: =ROUND('Tarifgruppe S'!B71*(1-'V-Tarif'!$J$1),2) -> 5.53 | C86: =ROUND('Tarifgruppe S'!C71*(1-'V-Tarif'!$J$1),2) -> 7.79 | D86: =ROUND('Tarifgruppe S'!D71*(1-'V-Tarif'!$J$1),2) -> 9.61 | E86: =ROUND('Tarifgruppe S'!E71*(1-'V-Tarif'!$J$1),2) -> 4.35 | F86: =ROUND('Tarifgruppe S'!F71*(1-'V-Tarif'!$J$1),2) -> 2.92 | G86: =ROUND('Tarifgruppe S'!G71*(1-'V-Tarif'!$J$1),2) -> 2.85 | H86: =ROUND('Tarifgruppe S'!H71*(1-'V-Tarif'!$J$1),2) -> 34.04 | I86: =ROUND('Tarifgruppe S'!I71*(1-'V-Tarif'!$J$1),2) -> 4.61 | J86: =ROUND('Tarifgruppe S'!J71*(1-'V-Tarif'!$J$1),2) -> 6.49 | K86: =ROUND('Tarifgruppe S'!K71*(1-'V-Tarif'!$J$1),2) -> 8.01 | L86: =ROUND('Tarifgruppe S'!L71*(1-'V-Tarif'!$J$1),2) -> 3.63 | M86: =ROUND('Tarifgruppe S'!M71*(1-'V-Tarif'!$J$1),2) -> 2.43 | N86: =ROUND('Tarifgruppe S'!N71*(1-'V-Tarif'!$J$1),2) -> 2.37 | O86: =ROUND('Tarifgruppe S'!O71*(1-'V-Tarif'!$J$1),2) -> 28.37 | Q86: 58 | R86: =ROUND('Tarif URP'!B67*(1-'V-Tarif'!$J$1),2) -> 1.19 | S86: =ROUND('Tarif URP'!C67*(1-'V-Tarif'!$J$1),2) -> 1.16 | T86: =ROUND('Tarif URP'!D67*(1-'V-Tarif'!$J$1),2) -> 6.08 | U86: =ROUND('Tarif URP'!E67*(1-'V-Tarif'!$J$1),2) -> 6.77
A87: 122 | B87: =ROUND('Tarifgruppe S'!B72*(1-'V-Tarif'!$J$1),2) -> 5.81 | C87: =ROUND('Tarifgruppe S'!C72*(1-'V-Tarif'!$J$1),2) -> 8.18 | D87: =ROUND('Tarifgruppe S'!D72*(1-'V-Tarif'!$J$1),2) -> 10.09 | E87: =ROUND('Tarifgruppe S'!E72*(1-'V-Tarif'!$J$1),2) -> 4.57 | F87: =ROUND('Tarifgruppe S'!F72*(1-'V-Tarif'!$J$1),2) -> 3.06 | G87: =ROUND('Tarifgruppe S'!G72*(1-'V-Tarif'!$J$1),2) -> 2.99 | H87: =ROUND('Tarifgruppe S'!H72*(1-'V-Tarif'!$J$1),2) -> 35.74 | I87: =ROUND('Tarifgruppe S'!I72*(1-'V-Tarif'!$J$1),2) -> 4.84 | J87: =ROUND('Tarifgruppe S'!J72*(1-'V-Tarif'!$J$1),2) -> 6.81 | K87: =ROUND('Tarifgruppe S'!K72*(1-'V-Tarif'!$J$1),2) -> 8.41 | L87: =ROUND('Tarifgruppe S'!L72*(1-'V-Tarif'!$J$1),2) -> 3.81 | M87: =ROUND('Tarifgruppe S'!M72*(1-'V-Tarif'!$J$1),2) -> 2.55 | N87: =ROUND('Tarifgruppe S'!N72*(1-'V-Tarif'!$J$1),2) -> 2.49 | O87: =ROUND('Tarifgruppe S'!O72*(1-'V-Tarif'!$J$1),2) -> 29.79 | Q87: 59 | R87: =ROUND('Tarif URP'!B68*(1-'V-Tarif'!$J$1),2) -> 0.48 | S87: =ROUND('Tarif URP'!C68*(1-'V-Tarif'!$J$1),2) -> 0.47 | T87: =ROUND('Tarif URP'!D68*(1-'V-Tarif'!$J$1),2) -> 6.74 | U87: =ROUND('Tarif URP'!E68*(1-'V-Tarif'!$J$1),2) -> 7.48
A88: 123 | B88: =ROUND('Tarifgruppe S'!B73*(1-'V-Tarif'!$J$1),2) -> 6.1 | C88: =ROUND('Tarifgruppe S'!C73*(1-'V-Tarif'!$J$1),2) -> 8.59 | D88: =ROUND('Tarifgruppe S'!D73*(1-'V-Tarif'!$J$1),2) -> 10.59 | E88: =ROUND('Tarifgruppe S'!E73*(1-'V-Tarif'!$J$1),2) -> 4.8 | F88: =ROUND('Tarifgruppe S'!F73*(1-'V-Tarif'!$J$1),2) -> 3.22 | G88: =ROUND('Tarifgruppe S'!G73*(1-'V-Tarif'!$J$1),2) -> 3.14 | H88: =ROUND('Tarifgruppe S'!H73*(1-'V-Tarif'!$J$1),2) -> 37.53 | I88: =ROUND('Tarifgruppe S'!I73*(1-'V-Tarif'!$J$1),2) -> 5.08 | J88: =ROUND('Tarifgruppe S'!J73*(1-'V-Tarif'!$J$1),2) -> 7.16 | K88: =ROUND('Tarifgruppe S'!K73*(1-'V-Tarif'!$J$1),2) -> 8.83 | L88: =ROUND('Tarifgruppe S'!L73*(1-'V-Tarif'!$J$1),2) -> 4 | M88: =ROUND('Tarifgruppe S'!M73*(1-'V-Tarif'!$J$1),2) -> 2.68 | N88: =ROUND('Tarifgruppe S'!N73*(1-'V-Tarif'!$J$1),2) -> 2.61 | O88: =ROUND('Tarifgruppe S'!O73*(1-'V-Tarif'!$J$1),2) -> 31.28 | Q88: 60 | T88: =ROUND('Tarif URP'!D69*(1-'V-Tarif'!$J$1),2) -> 7.21 | U88: =ROUND('Tarif URP'!E69*(1-'V-Tarif'!$J$1),2) -> 7.94
A89: 124 | B89: =ROUND('Tarifgruppe S'!B74*(1-'V-Tarif'!$J$1),2) -> 6.4 | C89: =ROUND('Tarifgruppe S'!C74*(1-'V-Tarif'!$J$1),2) -> 9.02 | D89: =ROUND('Tarifgruppe S'!D74*(1-'V-Tarif'!$J$1),2) -> 11.12 | E89: =ROUND('Tarifgruppe S'!E74*(1-'V-Tarif'!$J$1),2) -> 5.04 | F89: =ROUND('Tarifgruppe S'!F74*(1-'V-Tarif'!$J$1),2) -> 3.38 | G89: =ROUND('Tarifgruppe S'!G74*(1-'V-Tarif'!$J$1),2) -> 3.29 | H89: =ROUND('Tarifgruppe S'!H74*(1-'V-Tarif'!$J$1),2) -> 39.41 | I89: =ROUND('Tarifgruppe S'!I74*(1-'V-Tarif'!$J$1),2) -> 5.34 | J89: =ROUND('Tarifgruppe S'!J74*(1-'V-Tarif'!$J$1),2) -> 7.51 | K89: =ROUND('Tarifgruppe S'!K74*(1-'V-Tarif'!$J$1),2) -> 9.27 | L89: =ROUND('Tarifgruppe S'!L74*(1-'V-Tarif'!$J$1),2) -> 4.2 | M89: =ROUND('Tarifgruppe S'!M74*(1-'V-Tarif'!$J$1),2) -> 2.81 | N89: =ROUND('Tarifgruppe S'!N74*(1-'V-Tarif'!$J$1),2) -> 2.75 | O89: =ROUND('Tarifgruppe S'!O74*(1-'V-Tarif'!$J$1),2) -> 32.84 | Q89: 61 | T89: =ROUND('Tarif URP'!D70*(1-'V-Tarif'!$J$1),2) -> 7.98 | U89: =ROUND('Tarif URP'!E70*(1-'V-Tarif'!$J$1),2) -> 8.77
A90: 125 | B90: =ROUND('Tarifgruppe S'!B75*(1-'V-Tarif'!$J$1),2) -> 6.72 | C90: =ROUND('Tarifgruppe S'!C75*(1-'V-Tarif'!$J$1),2) -> 9.47 | D90: =ROUND('Tarifgruppe S'!D75*(1-'V-Tarif'!$J$1),2) -> 11.68 | E90: =ROUND('Tarifgruppe S'!E75*(1-'V-Tarif'!$J$1),2) -> 5.29 | F90: =ROUND('Tarifgruppe S'!F75*(1-'V-Tarif'!$J$1),2) -> 3.55 | G90: =ROUND('Tarifgruppe S'!G75*(1-'V-Tarif'!$J$1),2) -> 3.46 | H90: =ROUND('Tarifgruppe S'!H75*(1-'V-Tarif'!$J$1),2) -> 41.38 | I90: =ROUND('Tarifgruppe S'!I75*(1-'V-Tarif'!$J$1),2) -> 5.6 | J90: =ROUND('Tarifgruppe S'!J75*(1-'V-Tarif'!$J$1),2) -> 7.89 | K90: =ROUND('Tarifgruppe S'!K75*(1-'V-Tarif'!$J$1),2) -> 9.73 | L90: =ROUND('Tarifgruppe S'!L75*(1-'V-Tarif'!$J$1),2) -> 4.41 | M90: =ROUND('Tarifgruppe S'!M75*(1-'V-Tarif'!$J$1),2) -> 2.95 | N90: =ROUND('Tarifgruppe S'!N75*(1-'V-Tarif'!$J$1),2) -> 2.88 | O90: =ROUND('Tarifgruppe S'!O75*(1-'V-Tarif'!$J$1),2) -> 34.48 | Q90: 62 | T90: =ROUND('Tarif URP'!D71*(1-'V-Tarif'!$J$1),2) -> 8.78 | U90: =ROUND('Tarif URP'!E71*(1-'V-Tarif'!$J$1),2) -> 9.62
Q91: 63 | T91: =ROUND('Tarif URP'!D72*(1-'V-Tarif'!$J$1),2) -> 9.57 | U91: =ROUND('Tarif URP'!E72*(1-'V-Tarif'!$J$1),2) -> 10.46
Q92: 64 | T92: =ROUND('Tarif URP'!D73*(1-'V-Tarif'!$J$1),2) -> 10.38 | U92: =ROUND('Tarif URP'!E73*(1-'V-Tarif'!$J$1),2) -> 11.32
Q93: 65 | T93: =ROUND('Tarif URP'!D74*(1-'V-Tarif'!$J$1),2) -> 10.79 | U93: =ROUND('Tarif URP'!E74*(1-'V-Tarif'!$J$1),2) -> 11.69
Q94: 66 | T94: =ROUND('Tarif URP'!D75*(1-'V-Tarif'!$J$1),2) -> 11.61 | U94: =ROUND('Tarif URP'!E75*(1-'V-Tarif'!$J$1),2) -> 12.55
